Body name,Body,Service Area Categorisation,Cost Centre Description,Detailed Expenses Type,Expenses Code,Date,Transaction Number,Amount,Supplier Name,Supplier ID
Solihull MBC,http://statistics.data.gov.uk/id/local-authority/00CT,Children & Education Services,Balsall Common J&I,Furniture & Equipment,D10000,11/11/2010,2821731,3251.06,4 Seasons Blinds & Awnings,275822
Solihull MBC,http://statistics.data.gov.uk/id/local-authority/00CT,Children & Education Services,Mill Lodge J&I PCP,Contractors,Y21000,08/11/2010,2819343,24548.83,A C Lloyd (Builders) Ltd,279835
Solihull MBC,http://statistics.data.gov.uk/id/local-authority/00CT,Children & Education Services,Special Transport,Extra District Transport,C30002,12/11/2010,2823868,550,A S C Birch,9523
Solihull MBC,http://statistics.data.gov.uk/id/local-authority/00CT,Adult Social Care,Care Trust Facilities,Community Care,E21000,12/11/2010,2823889,504,A S C Birch,9523
Solihull MBC,http://statistics.data.gov.uk/id/local-authority/00CT,Children & Education Services,Special Transport,Transport-Contract Hire,C30000,12/11/2010,2823866,1020,A S C Birch,9523
Solihull MBC,http://statistics.data.gov.uk/id/local-authority/00CT,Children & Education Services,Special Transport,Transport-Contract Hire,C30000,12/11/2010,2823872,864,A S C Birch,9523
Solihull MBC,http://statistics.data.gov.uk/id/local-authority/00CT,Children & Education Services,Special Transport,Transport-Contract Hire,C30000,12/11/2010,2823865,670,A S C Birch,9523
Solihull MBC,http://statistics.data.gov.uk/id/local-authority/00CT,Children & Education Services,Marston Green Inf,Capitation,D11001,05/11/2010,2817981,480,A T Flooring,203158
Solihull MBC,http://statistics.data.gov.uk/id/local-authority/00CT,Children & Education Services,Lyndon,Building Maint Planned,B31002,30/11/2010,2838271,528,A T Flooring,203158
Solihull MBC,http://statistics.data.gov.uk/id/local-authority/00CT,Children & Education Services,Special Transport,Transport-Contract Hire,C30000,12/11/2010,2823875,1021.28,A2B Radio Cars,9733
Solihull MBC,http://statistics.data.gov.uk/id/local-authority/00CT,Children & Education Services,Special Transport,Transport-Contract Hire,C30000,12/11/2010,2823882,1021.28,A2B Radio Cars,9733
Solihull MBC,http://statistics.data.gov.uk/id/local-authority/00CT,Children & Education Services,Special Transport,Transport-Contract Hire,C30000,12/11/2010,2823873,925.53,A2B Radio Cars,9733
Solihull MBC,http://statistics.data.gov.uk/id/local-authority/00CT,Children & Education Services,Special Transport,Transport-Contract Hire,C30000,12/11/2010,2823877,957.45,A2B Radio Cars,9733
Solihull MBC,http://statistics.data.gov.uk/id/local-authority/00CT,Children & Education Services,Special Transport,Transport-Contract Hire,C30000,12/11/2010,2823881,1348.09,A2B Radio Cars,9733
Solihull MBC,http://statistics.data.gov.uk/id/local-authority/00CT,Children & Education Services,Special Transport,Transport-Contract Hire,C30000,12/11/2010,2823880,1148.94,A2B Radio Cars,9733
Solihull MBC,http://statistics.data.gov.uk/id/local-authority/00CT,Children & Education Services,Special Transport,Transport-Contract Hire,C30000,12/11/2010,2823879,1085.11,A2B Radio Cars,9733
Solihull MBC,http://statistics.data.gov.uk/id/local-authority/00CT,Children & Education Services,Special Transport,Transport-Contract Hire,C30000,12/11/2010,2823885,1021.28,A2B Radio Cars,9733
Solihull MBC,http://statistics.data.gov.uk/id/local-authority/00CT,Children & Education Services,Special Transport,Transport-Contract Hire,C30000,12/11/2010,2823887,765.96,A2B Radio Cars,9733
Solihull MBC,http://statistics.data.gov.uk/id/local-authority/00CT,Children & Education Services,Special Transport,Transport-Contract Hire,C30000,12/11/2010,2823883,1021.28,A2B Radio Cars,9733
Solihull MBC,http://statistics.data.gov.uk/id/local-authority/00CT,Children & Education Services,Special Transport,Transport-Contract Hire,C30000,12/11/2010,2823886,765.96,A2B Radio Cars,9733
Solihull MBC,http://statistics.data.gov.uk/id/local-authority/00CT,Children & Education Services,Special Transport,Transport-Contract Hire,C30000,12/11/2010,2823874,1008.51,A2B Radio Cars,9733
Solihull MBC,http://statistics.data.gov.uk/id/local-authority/00CT,Children & Education Services,Special Transport,Transport-Contract Hire,C30000,12/11/2010,2823884,1497.87,A2B Radio Cars,9733
Solihull MBC,http://statistics.data.gov.uk/id/local-authority/00CT,Children & Education Services,Special Transport,Transport-Contract Hire,C30000,12/11/2010,2823876,957.45,A2B Radio Cars,9733
Solihull MBC,http://statistics.data.gov.uk/id/local-authority/00CT,Children & Education Services,Bishop Wilson J&I,Agency Staff: Teachers,A35001,03/11/2010,2812944,1092,ABC Teachers,189821
Solihull MBC,http://statistics.data.gov.uk/id/local-authority/00CT,Children & Education Services,St Peter's,Agency Staff: Teachers,A35001,15/11/2010,2824812,260,ABC Teachers,189821
Solihull MBC,http://statistics.data.gov.uk/id/local-authority/00CT,Children & Education Services,St Peter's,Agency Staff: Teachers,A35001,04/11/2010,2813209,975,ABC Teachers,189821
Solihull MBC,http://statistics.data.gov.uk/id/local-authority/00CT,Children & Education Services,St Peter's,Agency Staff: Teachers,A35001,15/11/2010,2824812,995,ABC Teachers,189821
Solihull MBC,http://statistics.data.gov.uk/id/local-authority/00CT,Children & Education Services,St Peter's,Agency Staff: Teachers,A35001,15/11/2010,2824812,975,ABC Teachers,189821
Solihull MBC,http://statistics.data.gov.uk/id/local-authority/00CT,Children & Education Services,St Peter's,Agency Staff: Teachers,A35001,01/11/2010,2810496,370,ABC Teachers,189821
Solihull MBC,http://statistics.data.gov.uk/id/local-authority/00CT,Children & Education Services,St Peter's,Agency Staff: Teachers,A35001,01/11/2010,2810496,975,ABC Teachers,189821
Solihull MBC,http://statistics.data.gov.uk/id/local-authority/00CT,Children & Education Services,St Peter's,Agency Staff: Teachers,A35001,01/11/2010,2810496,130,ABC Teachers,189821
Solihull MBC,http://statistics.data.gov.uk/id/local-authority/00CT,Children & Education Services,St Peter's,Agency Staff: Teachers,A35001,15/11/2010,2824812,740,ABC Teachers,189821
Solihull MBC,http://statistics.data.gov.uk/id/local-authority/00CT,Children & Education Services,St Peter's,Agency Staff: Teachers,A35001,29/11/2010,2837251,975,ABC Teachers,189821
Solihull MBC,http://statistics.data.gov.uk/id/local-authority/00CT,Children & Education Services,St Peter's,Agency Staff: Teachers,A35001,29/11/2010,2837251,370,ABC Teachers,189821
Solihull MBC,http://statistics.data.gov.uk/id/local-authority/00CT,Children & Education Services,St Peter's,Agency Staff: Teachers,A35001,19/11/2010,2829899,130,ABC Teachers,189821
Solihull MBC,http://statistics.data.gov.uk/id/local-authority/00CT,Children & Education Services,St Peter's,Agency Staff: Teachers,A35001,29/11/2010,2837251,130,ABC Teachers,189821
Solihull MBC,http://statistics.data.gov.uk/id/local-authority/00CT,Children & Education Services,St Peter's,Agency Staff: Teachers,A35001,19/11/2010,2829899,995,ABC Teachers,189821
Solihull MBC,http://statistics.data.gov.uk/id/local-authority/00CT,Children & Education Services,St Peter's,Agency Staff: Teachers,A35001,19/11/2010,2829899,796,ABC Teachers,189821
Solihull MBC,http://statistics.data.gov.uk/id/local-authority/00CT,Children & Education Services,St Peter's,Agency Staff: Teachers,A35001,29/11/2010,2837251,995,ABC Teachers,189821
Solihull MBC,http://statistics.data.gov.uk/id/local-authority/00CT,Children & Education Services,St Peter's,Agency Staff: Teachers,A35001,19/11/2010,2829899,370,ABC Teachers,189821
Solihull MBC,http://statistics.data.gov.uk/id/local-authority/00CT,Children & Education Services,St Peter's,Agency Staff: Teachers,A35001,29/11/2010,2837251,995,ABC Teachers,189821
Solihull MBC,http://statistics.data.gov.uk/id/local-authority/00CT,Children & Education Services,Langley J&I,Agency Staff: Teachers,A35001,24/11/2010,2832168,477,ABC Teachers,189821
Solihull MBC,http://statistics.data.gov.uk/id/local-authority/00CT,Children & Education Services,Langley J&I,Agency Staff: Teachers,A35001,24/11/2010,2832169,695,ABC Teachers,189821
Solihull MBC,http://statistics.data.gov.uk/id/local-authority/00CT,Children & Education Services,St Peter's,Agency Staff: Teachers,A35001,19/11/2010,2829899,975,ABC Teachers,189821
Solihull MBC,http://statistics.data.gov.uk/id/local-authority/00CT,Children & Education Services,UASC 18+,Grants,D92101,22/11/2010,2831415,627,Abdullah & Sons Co Limited,128651
Solihull MBC,http://statistics.data.gov.uk/id/local-authority/00CT,Children & Education Services,Specialist Inclusion Support Service,Training,A32000,09/11/2010,2819845,425.53,Ability Net,78589
Solihull MBC,http://statistics.data.gov.uk/id/local-authority/00CT,Adult Social Care,Appointee Spend- I-Proc,General Creditors,S00000,05/11/2010,2818176,745.8,Accord Housing Association,23450
Solihull MBC,http://statistics.data.gov.uk/id/local-authority/00CT,Children & Education Services,St Patrick's CE J&I,Cleaning Contracts,B40001,04/11/2010,2817062,860,Ace Cleaning Company,48575
Solihull MBC,http://statistics.data.gov.uk/id/local-authority/00CT,Children & Education Services,Balsall Common J&I,Cleaning Contracts,B40001,03/11/2010,2812468,3104.17,Ace Cleaning Company,48575
Solihull MBC,http://statistics.data.gov.uk/id/local-authority/00CT,Children & Education Services,Alderbrook,Cleaning Contracts,B40001,12/11/2010,2823341,480,Ace Cleaning Company,48575
Solihull MBC,http://statistics.data.gov.uk/id/local-authority/00CT,Children & Education Services,St Patrick's CE J&I,Cleaning Contracts,B40001,17/11/2010,2826043,860,Ace Cleaning Company,48575
Solihull MBC,http://statistics.data.gov.uk/id/local-authority/00CT,Children & Education Services,Ext. Fostering South/Central,Foster Parents,D50000,19/11/2010,2829970,755,Acorn Fostering Services Ltd,252616
Solihull MBC,http://statistics.data.gov.uk/id/local-authority/00CT,Children & Education Services,Smith's Wood,Capitation,D11001,08/10/2010,PC43119,482.55,Acorn Venture Ltd,Purchase Card Supplier
Solihull MBC,http://statistics.data.gov.uk/id/local-authority/00CT,Children & Education Services,EICTs Trading Account,IT Equipment & Software,D32000,01/11/2010,2810886,382,Active Visual Supplies Ltd,57805
Solihull MBC,http://statistics.data.gov.uk/id/local-authority/00CT,Children & Education Services,Our Lady Wayside J&I,IT Equipment & Software,D32000,15/11/2010,2825071,559,Active Visual Supplies Ltd,57805
Solihull MBC,http://statistics.data.gov.uk/id/local-authority/00CT,Children & Education Services,EICTs Trading Account,IT Equipment & Software,D32000,01/11/2010,2810886,384,Active Visual Supplies Ltd,57805
Solihull MBC,http://statistics.data.gov.uk/id/local-authority/00CT,Children & Education Services,EICTs Trading Account,IT Equipment & Software,D32000,01/11/2010,2810886,0,Active Visual Supplies Ltd,57805
Solihull MBC,http://statistics.data.gov.uk/id/local-authority/00CT,Children & Education Services,EICTs Trading Account,IT Equipment & Software,D32000,01/11/2010,2810886,450,Active Visual Supplies Ltd,57805
Solihull MBC,http://statistics.data.gov.uk/id/local-authority/00CT,Children & Education Services,Haslucks Green Jnr,IT Equipment & Software,D32000,02/11/2010,2811739,1984,Active Visual Supplies Ltd,57805
Solihull MBC,http://statistics.data.gov.uk/id/local-authority/00CT,Children & Education Services,EICTs Trading Account,IT Equipment & Software,D32000,01/11/2010,2810886,300,Active Visual Supplies Ltd,57805
Solihull MBC,http://statistics.data.gov.uk/id/local-authority/00CT,Children & Education Services,EICTs Trading Account,IT Equipment & Software,D32000,01/11/2010,2810886,400,Active Visual Supplies Ltd,57805
Solihull MBC,http://statistics.data.gov.uk/id/local-authority/00CT,Children & Education Services,EICTs Trading Account,IT Equipment & Software,D32000,01/11/2010,2810886,65,Active Visual Supplies Ltd,57805
Solihull MBC,http://statistics.data.gov.uk/id/local-authority/00CT,Children & Education Services,EICTs Trading Account,IT Equipment & Software,D32000,01/11/2010,2810886,637,Active Visual Supplies Ltd,57805
Solihull MBC,http://statistics.data.gov.uk/id/local-authority/00CT,Children & Education Services,EICTs Trading Account,IT Equipment & Software,D32000,01/11/2010,2810886,121,Active Visual Supplies Ltd,57805
Solihull MBC,http://statistics.data.gov.uk/id/local-authority/00CT,Children & Education Services,EICTs Trading Account,IT Equipment & Software,D32000,01/11/2010,2810886,1696,Active Visual Supplies Ltd,57805
Solihull MBC,http://statistics.data.gov.uk/id/local-authority/00CT,Children & Education Services,EICTs Trading Account,IT Equipment & Software,D32000,01/11/2010,2810886,149.6,Active Visual Supplies Ltd,57805
Solihull MBC,http://statistics.data.gov.uk/id/local-authority/00CT,Children & Education Services,EICTs Trading Account,IT Equipment & Software,D32000,01/11/2010,2810886,1593,Active Visual Supplies Ltd,57805
Solihull MBC,http://statistics.data.gov.uk/id/local-authority/00CT,Children & Education Services,EICTs Trading Account,IT Equipment & Software,D32000,01/11/2010,2810886,160,Active Visual Supplies Ltd,57805
Solihull MBC,http://statistics.data.gov.uk/id/local-authority/00CT,Children & Education Services,EICTs Trading Account,IT Equipment & Software,D32000,01/11/2010,2810886,614,Active Visual Supplies Ltd,57805
Solihull MBC,http://statistics.data.gov.uk/id/local-authority/00CT,Children & Education Services,Reynalds Cross,IT Equipment & Software,D32000,24/11/2010,2832570,135,Active Visual Supplies Ltd,57805
Solihull MBC,http://statistics.data.gov.uk/id/local-authority/00CT,Children & Education Services,EICTs Trading Account,IT Equipment & Software,D32000,29/11/2010,2837342,762,Active Visual Supplies Ltd,57805
Solihull MBC,http://statistics.data.gov.uk/id/local-authority/00CT,Children & Education Services,Reynalds Cross,IT Equipment & Software,D32000,24/11/2010,2832570,390,Active Visual Supplies Ltd,57805
Solihull MBC,http://statistics.data.gov.uk/id/local-authority/00CT,Children & Education Services,EICTs Trading Account,IT Equipment & Software,D32000,29/11/2010,2837344,1170,Active Visual Supplies Ltd,57805
Solihull MBC,http://statistics.data.gov.uk/id/local-authority/00CT,Children & Education Services,Castle Bromwich Jnr,Building Maint Planned,B31002,24/11/2010,2832578,1702,Active Visual Supplies Ltd,57805
Solihull MBC,http://statistics.data.gov.uk/id/local-authority/00CT,Children & Education Services,EICTs Trading Account,IT Equipment & Software,D32000,29/11/2010,2837344,215,Active Visual Supplies Ltd,57805
Solihull MBC,http://statistics.data.gov.uk/id/local-authority/00CT,Children & Education Services,EICTs Trading Account,IT Equipment & Software,D32000,19/11/2010,2830285,719,Active Visual Supplies Ltd,57805
Solihull MBC,http://statistics.data.gov.uk/id/local-authority/00CT,Central Services to the Public,CMT Secretariat,Training,A32000,05/11/2010,2818299,495,Adass,229700
Solihull MBC,http://statistics.data.gov.uk/id/local-authority/00CT,Children & Education Services,Adoption Services,Grant & Subscription (SCITT),D92000,02/11/2010,2812030,3240,Adoption Support,106021
Solihull MBC,http://statistics.data.gov.uk/id/local-authority/00CT,Children & Education Services,St Peter's,Building Maint Day To Day,B31001,04/11/2010,2813207,2201.61,Adt Fire And Security  PLC,206540
Solihull MBC,http://statistics.data.gov.uk/id/local-authority/00CT,Children & Education Services,St Augustine's J&I,Cleaning Contracts,B40001,09/11/2010,2820264,963.31,A-Kleen Cleaning Services,105447
Solihull MBC,http://statistics.data.gov.uk/id/local-authority/00CT,Children & Education Services,S.C.I.L. School Joint Costs,Alarms,B43002,01/11/2010,2811069,1000,Alarm & Vision,194179
Solihull MBC,http://statistics.data.gov.uk/id/local-authority/00CT,Children & Education Services,Forest Oak,Alarms,B43002,01/11/2010,2811106,750,Alarm & Vision,194179
Solihull MBC,http://statistics.data.gov.uk/id/local-authority/00CT,Children & Education Services,Secondary Transport,Transport-Contract Hire,C30000,04/11/2010,2817025,2704,A-Line Coaches,222599
Solihull MBC,http://statistics.data.gov.uk/id/local-authority/00CT,Cultural & Related Services,Pantomime,Furniture & Equipment,D10000,11/11/2010,2822865,660,Allbatteries (UK) Ltd,73729
Solihull MBC,http://statistics.data.gov.uk/id/local-authority/00CT,Housing Revenue Account,HRA Client Mgt A/C,Payment Charges,D52702,26/11/2010,,3547.06,Allpay-net Limited,Direct Debit Payment
Solihull MBC,http://statistics.data.gov.uk/id/local-authority/00CT,Housing Revenue Account,HRA Client Mgt A/C,Payment Charges,D52702,26/11/2010,,80.6,Allpay-net Limited,Direct Debit Payment
Solihull MBC,http://statistics.data.gov.uk/id/local-authority/00CT,Central Services to the Public,Income Team,Other Fees,D52000,26/11/2010,,1407.36,Allpay-net Limited,Direct Debit Payment
Solihull MBC,http://statistics.data.gov.uk/id/local-authority/00CT,Central Services to the Public,Income Team,Other Fees,D52000,26/11/2010,,20,Allpay-net Limited,Direct Debit Payment
Solihull MBC,http://statistics.data.gov.uk/id/local-authority/00CT,Children & Education Services,George Fentham J&I,Professional Fees,D51000,02/11/2010,2811165,1870.4,Allsports Schools Coaching Ltd,210780
Solihull MBC,http://statistics.data.gov.uk/id/local-authority/00CT,Children & Education Services,Heart Of England,IT Equipment & Software,D32000,10/11/2010,2821428,1265,Altman Technologies Ltd,101297
Solihull MBC,http://statistics.data.gov.uk/id/local-authority/00CT,Children & Education Services,Heart Of England,IT Equipment & Software,D32000,10/11/2010,2821428,50,Altman Technologies Ltd,101297
Solihull MBC,http://statistics.data.gov.uk/id/local-authority/00CT,Children & Education Services,Heart Of England,IT Equipment & Software,D32000,10/11/2010,2821428,245,Altman Technologies Ltd,101297
Solihull MBC,http://statistics.data.gov.uk/id/local-authority/00CT,Children & Education Services,Archbishop Grimshaw,Visits & Pupil Activities,D52002,01/11/2010,2810275,1196.25,Alton Castle,61355
Solihull MBC,http://statistics.data.gov.uk/id/local-authority/00CT,Children & Education Services,Peterbrook J&I,Capitation,D11001,12/10/2010,PC42180,476.96,Amazon Eu,Purchase Card Supplier
Solihull MBC,http://statistics.data.gov.uk/id/local-authority/00CT,Children & Education Services,Light Hall,Software Licenses & Support,D32906,15/11/2010,2824170,1300,Ami Educational Solutions,266711
Solihull MBC,http://statistics.data.gov.uk/id/local-authority/00CT,Planning & Development Services,Town Centre Management,Other Fees,D52000,18/11/2010,2829722,1330,Animal Enterprises,110758
Solihull MBC,http://statistics.data.gov.uk/id/local-authority/00CT,Highways & Transport Services,Civil Parking Enforcement,Other Contracted Services,E29000,08/11/2010,2818649,55143.61,Apcoa Parking (UK) Ltd,201518
Solihull MBC,http://statistics.data.gov.uk/id/local-authority/00CT,Highways & Transport Services,Civil Parking Enforcement,Other Contracted Services,E29000,01/11/2010,2810842,55217.86,Apcoa Parking (UK) Ltd,201518
Solihull MBC,http://statistics.data.gov.uk/id/local-authority/00CT,Highways & Transport Services,Civil Parking Enforcement,Other Contracted Services,E29000,24/11/2010,2832176,10009.43,Apcoa Parking (UK) Ltd,201518
Solihull MBC,http://statistics.data.gov.uk/id/local-authority/00CT,Children & Education Services,UASC 18+,Grants,D92101,15/11/2010,2824862,254.49,Appliance World,249913
Solihull MBC,http://statistics.data.gov.uk/id/local-authority/00CT,Children & Education Services,UASC 18+,Grants,D92101,15/11/2010,2824862,300.51,Appliance World,249913
Solihull MBC,http://statistics.data.gov.uk/id/local-authority/00CT,Children & Education Services,UASC 18+,Grants,D92101,22/11/2010,2831418,600,Appliance World,249913
Solihull MBC,http://statistics.data.gov.uk/id/local-authority/00CT,Children & Education Services,UASC 18+,Grants,D92101,23/11/2010,2831851,510,Appliance World,249913
Solihull MBC,http://statistics.data.gov.uk/id/local-authority/00CT,Children & Education Services,UASC 18+,Grants,D92101,29/11/2010,2837590,555,Appliance World,249913
Solihull MBC,http://statistics.data.gov.uk/id/local-authority/00CT,Children & Education Services,Castle Bromwich Inf,Health & Safety,B43003,04/11/2010,2817057,885,Aquaaid (Midlands),78951
Solihull MBC,http://statistics.data.gov.uk/id/local-authority/00CT,Children & Education Services,Arden,Capitation,D11001,09/11/2010,2820259,885,Aquaid,71388
Solihull MBC,http://statistics.data.gov.uk/id/local-authority/00CT,Children & Education Services,Education Otherwise,Other Contracted Services,E29000,15/11/2010,2824744,1856,Archway Academy Ltd,123794
Solihull MBC,http://statistics.data.gov.uk/id/local-authority/00CT,Children & Education Services,Residential South/Central,Other Contracted Services,E29000,04/11/2010,2816957,3200,Archways Care Ltd,162358
Solihull MBC,http://statistics.data.gov.uk/id/local-authority/00CT,Children & Education Services,Knowle J&I,Maintenance Of Grounds,B30000,19/11/2010,2829913,640,Arden Gates Ltd,275893
Solihull MBC,http://statistics.data.gov.uk/id/local-authority/00CT,Children & Education Services,16 + (S24) 18+ Not In Educ,Client Leaving Care Grant,D62020,22/10/2010,PC26132,509.93,Argos Retail Group,Purchase Card Supplier
Solihull MBC,http://statistics.data.gov.uk/id/local-authority/00CT,Planning & Development Services,Town Centre Management,Other Fees,D52000,19/11/2010,2830276,990,Aries Entertainment Ltd,221331
Solihull MBC,http://statistics.data.gov.uk/id/local-authority/00CT,Planning & Development Services,Town Centre Management,Other Fees,D52000,25/11/2010,2835109,3925,Aries Entertainment Ltd,221331
Solihull MBC,http://statistics.data.gov.uk/id/local-authority/00CT,Planning & Development Services,Town Centre Management,Other Fees,D52000,19/11/2010,2830275,645,Aries Entertainment Ltd,221331
Solihull MBC,http://statistics.data.gov.uk/id/local-authority/00CT,Planning & Development Services,Town Centre Management,Other Fees,D52000,16/11/2010,2825398,525,Aries Entertainment Ltd,221331
Solihull MBC,http://statistics.data.gov.uk/id/local-authority/00CT,Planning & Development Services,Town Centre Management,Other Fees,D52000,19/11/2010,2829869,625,Aries Entertainment Ltd,221331
Solihull MBC,http://statistics.data.gov.uk/id/local-authority/00CT,Central Services to the Public,HRE Management,Training,A32000,02/11/2010,PC02046,464.13,Armada Computer Pu,Purchase Card Supplier
Solihull MBC,http://statistics.data.gov.uk/id/local-authority/00CT,Children & Education Services,LDC Stores,Cleaning / Janitrl Materials,B40002,09/11/2010,2819895,2721.27,Arrow County Supplies,6340
Solihull MBC,http://statistics.data.gov.uk/id/local-authority/00CT,Children & Education Services,LDC Stores,Cleaning / Janitrl Materials,B40002,09/11/2010,2819897,560.63,Arrow County Supplies,6340
Solihull MBC,http://statistics.data.gov.uk/id/local-authority/00CT,Children & Education Services,LDC Stores,Cleaning / Janitrl Materials,B40002,09/11/2010,2819899,2060.71,Arrow County Supplies,6340
Solihull MBC,http://statistics.data.gov.uk/id/local-authority/00CT,Central Services to the Public,Council House Complex,Other Premise Costs,B43000,19/11/2010,2830235,807,Arrow County Supplies,6340
Solihull MBC,http://statistics.data.gov.uk/id/local-authority/00CT,Central Services to the Public,Contact Service Support,Training,A32000,25/11/2010,2834824,557.4,Ashridge,254956
Solihull MBC,http://statistics.data.gov.uk/id/local-authority/00CT,Cultural & Related Services,Libraries Resources Fund,Books,D11410,02/11/2010,2812077,65.79,Askews Library Services Ltd,6562
Solihull MBC,http://statistics.data.gov.uk/id/local-authority/00CT,Cultural & Related Services,Libraries Resources Fund,Books,D11410,02/11/2010,2812077,1073.06,Askews Library Services Ltd,6562
Solihull MBC,http://statistics.data.gov.uk/id/local-authority/00CT,Cultural & Related Services,Libraries Resources Fund,Books,D11410,10/11/2010,2821072,503.04,Askews Library Services Ltd,6562
Solihull MBC,http://statistics.data.gov.uk/id/local-authority/00CT,Cultural & Related Services,Libraries Resources Fund,Books,D11410,02/11/2010,2812077,366.62,Askews Library Services Ltd,6562
Solihull MBC,http://statistics.data.gov.uk/id/local-authority/00CT,Cultural & Related Services,Libraries Resources Fund,Books,D11410,10/11/2010,2821072,266.67,Askews Library Services Ltd,6562
Solihull MBC,http://statistics.data.gov.uk/id/local-authority/00CT,Cultural & Related Services,Libraries Resources Fund,Books,D11410,10/11/2010,2821072,482.08,Askews Library Services Ltd,6562
Solihull MBC,http://statistics.data.gov.uk/id/local-authority/00CT,Cultural & Related Services,Libraries Resources Fund,Books,D11410,10/11/2010,2821072,1997.79,Askews Library Services Ltd,6562
Solihull MBC,http://statistics.data.gov.uk/id/local-authority/00CT,Cultural & Related Services,Libraries Resources Fund,Books,D11410,10/11/2010,2821072,1199.5,Askews Library Services Ltd,6562
Solihull MBC,http://statistics.data.gov.uk/id/local-authority/00CT,Cultural & Related Services,Libraries Resources Fund,Books,D11410,10/11/2010,2821072,1.21,Askews Library Services Ltd,6562
Solihull MBC,http://statistics.data.gov.uk/id/local-authority/00CT,Cultural & Related Services,Libraries Resources Fund,Books,D11410,02/11/2010,2812077,1113.66,Askews Library Services Ltd,6562
Solihull MBC,http://statistics.data.gov.uk/id/local-authority/00CT,Cultural & Related Services,Libraries Resources Fund,Books,D11410,02/11/2010,2812077,485.02,Askews Library Services Ltd,6562
Solihull MBC,http://statistics.data.gov.uk/id/local-authority/00CT,Cultural & Related Services,Libraries Resources Fund,Books,D11410,30/11/2010,2838346,266.2,Askews Library Services Ltd,6562
Solihull MBC,http://statistics.data.gov.uk/id/local-authority/00CT,Cultural & Related Services,Libraries Resources Fund,Books,D11410,30/11/2010,2838346,152.72,Askews Library Services Ltd,6562
Solihull MBC,http://statistics.data.gov.uk/id/local-authority/00CT,Cultural & Related Services,Libraries Resources Fund,Books,D11410,24/11/2010,2832536,1052.26,Askews Library Services Ltd,6562
Solihull MBC,http://statistics.data.gov.uk/id/local-authority/00CT,Cultural & Related Services,Libraries Resources Fund,Books,D11410,16/11/2010,2825678,672.03,Askews Library Services Ltd,6562
Solihull MBC,http://statistics.data.gov.uk/id/local-authority/00CT,Cultural & Related Services,Libraries Resources Fund,Books,D11410,30/11/2010,2838346,750.33,Askews Library Services Ltd,6562
Solihull MBC,http://statistics.data.gov.uk/id/local-authority/00CT,Cultural & Related Services,Libraries Resources Fund,Books,D11410,16/11/2010,2825678,33.3,Askews Library Services Ltd,6562
Solihull MBC,http://statistics.data.gov.uk/id/local-authority/00CT,Cultural & Related Services,Libraries Resources Fund,Books,D11410,30/11/2010,2838346,8.92,Askews Library Services Ltd,6562
Solihull MBC,http://statistics.data.gov.uk/id/local-authority/00CT,Cultural & Related Services,Libraries Resources Fund,Books,D11410,16/11/2010,2825678,1.12,Askews Library Services Ltd,6562
Solihull MBC,http://statistics.data.gov.uk/id/local-authority/00CT,Cultural & Related Services,Libraries Resources Fund,Books,D11410,24/11/2010,2832536,731.45,Askews Library Services Ltd,6562
Solihull MBC,http://statistics.data.gov.uk/id/local-authority/00CT,Cultural & Related Services,Libraries Resources Fund,Books,D11410,24/11/2010,2832533,1282.75,Askews Library Services Ltd,6562
Solihull MBC,http://statistics.data.gov.uk/id/local-authority/00CT,Cultural & Related Services,Libraries Resources Fund,Books,D11410,16/11/2010,2825678,166.75,Askews Library Services Ltd,6562
Solihull MBC,http://statistics.data.gov.uk/id/local-authority/00CT,Cultural & Related Services,Libraries Resources Fund,Books,D11410,24/11/2010,2832536,93.02,Askews Library Services Ltd,6562
Solihull MBC,http://statistics.data.gov.uk/id/local-authority/00CT,Cultural & Related Services,Libraries Resources Fund,Books,D11410,30/11/2010,2838346,1396.59,Askews Library Services Ltd,6562
Solihull MBC,http://statistics.data.gov.uk/id/local-authority/00CT,Cultural & Related Services,Libraries Resources Fund,Books,D11410,16/11/2010,2825678,1356.15,Askews Library Services Ltd,6562
Solihull MBC,http://statistics.data.gov.uk/id/local-authority/00CT,Cultural & Related Services,Libraries Resources Fund,Books,D11410,24/11/2010,2832536,113.61,Askews Library Services Ltd,6562
Solihull MBC,http://statistics.data.gov.uk/id/local-authority/00CT,Cultural & Related Services,Libraries Resources Fund,Books,D11410,16/11/2010,2825678,981.21,Askews Library Services Ltd,6562
Solihull MBC,http://statistics.data.gov.uk/id/local-authority/00CT,Cultural & Related Services,Libraries Resources Fund,Books,D11410,24/11/2010,2832536,1272.67,Askews Library Services Ltd,6562
Solihull MBC,http://statistics.data.gov.uk/id/local-authority/00CT,Cultural & Related Services,Libraries Resources Fund,Books,D11410,30/11/2010,2838346,96.92,Askews Library Services Ltd,6562
Solihull MBC,http://statistics.data.gov.uk/id/local-authority/00CT,Children & Education Services,UASC 18+,Other Contracted Services,E29000,22/11/2010,2831227,1150,Aspects Housing Ltd,61897
Solihull MBC,http://statistics.data.gov.uk/id/local-authority/00CT,Children & Education Services,UASC 18+,Clients Expenses,D62000,22/11/2010,2831227,259.25,Aspects Housing Ltd,61897
Solihull MBC,http://statistics.data.gov.uk/id/local-authority/00CT,Children & Education Services,Smith's Wood,Agency Staff: Teachers,A35001,03/11/2010,2812710,575,Aspire,119244
Solihull MBC,http://statistics.data.gov.uk/id/local-authority/00CT,Children & Education Services,Smith's Wood,Agency Staff: Teachers,A35001,03/11/2010,2812715,460,Aspire,119244
Solihull MBC,http://statistics.data.gov.uk/id/local-authority/00CT,Children & Education Services,Smith's Wood,Agency Staff: Teachers,A35001,03/11/2010,2812717,575,Aspire,119244
Solihull MBC,http://statistics.data.gov.uk/id/local-authority/00CT,Children & Education Services,Smith's Wood,Agency Staff: Teachers,A35001,03/11/2010,2812712,575,Aspire,119244
Solihull MBC,http://statistics.data.gov.uk/id/local-authority/00CT,Children & Education Services,Smith's Wood,Agency Staff: Teachers,A35001,03/11/2010,2812718,575,Aspire,119244
Solihull MBC,http://statistics.data.gov.uk/id/local-authority/00CT,Children & Education Services,Smith's Wood,Agency Staff: Teachers,A35001,03/11/2010,2812709,575,Aspire,119244
Solihull MBC,http://statistics.data.gov.uk/id/local-authority/00CT,Children & Education Services,Smith's Wood,Agency Staff: Teachers,A35001,24/11/2010,2832396,575,Aspire,119244
Solihull MBC,http://statistics.data.gov.uk/id/local-authority/00CT,Children & Education Services,Smith's Wood,Agency Staff: Teachers,A35001,24/11/2010,2832347,575,Aspire,119244
Solihull MBC,http://statistics.data.gov.uk/id/local-authority/00CT,Children & Education Services,Smith's Wood,Agency Staff: Teachers,A35001,24/11/2010,2832387,575,Aspire,119244
Solihull MBC,http://statistics.data.gov.uk/id/local-authority/00CT,Children & Education Services,Smith's Wood,Agency Staff: Teachers,A35001,24/11/2010,2832395,460,Aspire,119244
Solihull MBC,http://statistics.data.gov.uk/id/local-authority/00CT,Children & Education Services,Smith's Wood,Agency Staff: Teachers,A35001,24/11/2010,2832352,575,Aspire,119244
Solihull MBC,http://statistics.data.gov.uk/id/local-authority/00CT,Children & Education Services,Smith's Wood,Agency Staff: Teachers,A35001,24/11/2010,2832401,575,Aspire,119244
Solihull MBC,http://statistics.data.gov.uk/id/local-authority/00CT,Children & Education Services,Light Hall,Agency Staff: Teachers,A35001,08/11/2010,2819182,358,Aspire People,190241
Solihull MBC,http://statistics.data.gov.uk/id/local-authority/00CT,Children & Education Services,Light Hall,Pay: Teachers Planned Supply,A11905,08/11/2010,2819182,179,Aspire People,190241
Solihull MBC,http://statistics.data.gov.uk/id/local-authority/00CT,Children & Education Services,Grants For Private Sector,Grant & Subscription (SCITT),D92000,01/11/2010,2810734,1337.7,Asquith Court Nursery,52772
Solihull MBC,http://statistics.data.gov.uk/id/local-authority/00CT,Children & Education Services,St Peter's,Examination Fees,D52001,15/11/2010,2824818,424.8,Assessment & Qualifications Alliance,34231
Solihull MBC,http://statistics.data.gov.uk/id/local-authority/00CT,Children & Education Services,Heart Of England,Examination Fees,D52001,04/11/2010,2816895,3164.15,Assessment & Qualifications Alliance,34231
Solihull MBC,http://statistics.data.gov.uk/id/local-authority/00CT,Children & Education Services,St Peter's,Examination Fees,D52001,02/11/2010,2811193,1674.25,Assessment & Qualifications Alliance,34231
Solihull MBC,http://statistics.data.gov.uk/id/local-authority/00CT,Children & Education Services,Langley Secondary,Examination Fees,D52001,02/11/2010,2811774,1026.75,Assessment & Qualifications Alliance,34231
Solihull MBC,http://statistics.data.gov.uk/id/local-authority/00CT,Children & Education Services,St Peter's,Examination Fees,D52001,15/11/2010,2824818,1187.2,Assessment & Qualifications Alliance,34231
Solihull MBC,http://statistics.data.gov.uk/id/local-authority/00CT,Children & Education Services,Archbishop Grimshaw,Examination Fees,D52001,01/11/2010,2811015,609.4,Assessment & Qualifications Alliance,34231
Solihull MBC,http://statistics.data.gov.uk/id/local-authority/00CT,Children & Education Services,Smith's Wood,Examination Fees,D52001,03/11/2010,2812456,4132.65,Assessment & Qualifications Alliance,34231
Solihull MBC,http://statistics.data.gov.uk/id/local-authority/00CT,Children & Education Services,Heart Of England,Examination Fees,D52001,10/11/2010,2821434,7341,Assessment & Qualifications Alliance,34231
Solihull MBC,http://statistics.data.gov.uk/id/local-authority/00CT,Children & Education Services,St Peter's,Examination Fees,D52001,15/11/2010,2824818,216,Assessment & Qualifications Alliance,34231
Solihull MBC,http://statistics.data.gov.uk/id/local-authority/00CT,Children & Education Services,St Peter's,Examination Fees,D52001,02/11/2010,2811193,712.8,Assessment & Qualifications Alliance,34231
Solihull MBC,http://statistics.data.gov.uk/id/local-authority/00CT,Children & Education Services,St Peter's,Examination Fees,D52001,02/11/2010,2811193,662.4,Assessment & Qualifications Alliance,34231
Solihull MBC,http://statistics.data.gov.uk/id/local-authority/00CT,Children & Education Services,St Peter's,Examination Fees,D52001,15/11/2010,2824818,343.2,Assessment & Qualifications Alliance,34231
Solihull MBC,http://statistics.data.gov.uk/id/local-authority/00CT,Children & Education Services,St Peter's,Examination Fees,D52001,15/11/2010,2824818,55.65,Assessment & Qualifications Alliance,34231
Solihull MBC,http://statistics.data.gov.uk/id/local-authority/00CT,Children & Education Services,St Peter's,Examination Fees,D52001,15/11/2010,2824818,508.4,Assessment & Qualifications Alliance,34231
Solihull MBC,http://statistics.data.gov.uk/id/local-authority/00CT,Children & Education Services,St Peter's,Examination Fees,D52001,15/11/2010,2824818,669.6,Assessment & Qualifications Alliance,34231
Solihull MBC,http://statistics.data.gov.uk/id/local-authority/00CT,Children & Education Services,St Peter's,Examination Fees,D52001,02/11/2010,2811193,139,Assessment & Qualifications Alliance,34231
Solihull MBC,http://statistics.data.gov.uk/id/local-authority/00CT,Children & Education Services,Lode Heath,Examination Fees,D52001,09/11/2010,2820199,2406.5,Assessment & Qualifications Alliance,34231
Solihull MBC,http://statistics.data.gov.uk/id/local-authority/00CT,Children & Education Services,St Peter's,Examination Fees,D52001,02/11/2010,2811193,27.75,Assessment & Qualifications Alliance,34231
Solihull MBC,http://statistics.data.gov.uk/id/local-authority/00CT,Children & Education Services,St Peter's,Examination Fees,D52001,02/11/2010,2811193,568.8,Assessment & Qualifications Alliance,34231
Solihull MBC,http://statistics.data.gov.uk/id/local-authority/00CT,Children & Education Services,St Peter's,Examination Fees,D52001,15/11/2010,2824818,83.4,Assessment & Qualifications Alliance,34231
Solihull MBC,http://statistics.data.gov.uk/id/local-authority/00CT,Children & Education Services,Alderbrook,Examination Fees,D52001,09/11/2010,2820129,4770.5,Assessment & Qualifications Alliance,34231
Solihull MBC,http://statistics.data.gov.uk/id/local-authority/00CT,Children & Education Services,St Peter's,Examination Fees,D52001,15/11/2010,2824818,204.05,Assessment & Qualifications Alliance,34231
Solihull MBC,http://statistics.data.gov.uk/id/local-authority/00CT,Children & Education Services,St Peter's,Examination Fees,D52001,15/11/2010,2824818,143,Assessment & Qualifications Alliance,34231
Solihull MBC,http://statistics.data.gov.uk/id/local-authority/00CT,Children & Education Services,St Peter's,Examination Fees,D52001,15/11/2010,2824818,111.3,Assessment & Qualifications Alliance,34231
Solihull MBC,http://statistics.data.gov.uk/id/local-authority/00CT,Children & Education Services,Smith's Wood,Examination Fees,D52001,03/11/2010,2812487,917.4,Assessment & Qualifications Alliance,34231
Solihull MBC,http://statistics.data.gov.uk/id/local-authority/00CT,Children & Education Services,St Peter's,Examination Fees,D52001,02/11/2010,2811193,326.65,Assessment & Qualifications Alliance,34231
Solihull MBC,http://statistics.data.gov.uk/id/local-authority/00CT,Children & Education Services,Light Hall,Examination Fees,D52001,01/11/2010,2811079,6882,Assessment & Qualifications Alliance,34231
Solihull MBC,http://statistics.data.gov.uk/id/local-authority/00CT,Children & Education Services,St Peter's,Examination Fees,D52001,15/11/2010,2824818,222.6,Assessment & Qualifications Alliance,34231
Solihull MBC,http://statistics.data.gov.uk/id/local-authority/00CT,Children & Education Services,St Peter's,Examination Fees,D52001,15/11/2010,2824818,432,Assessment & Qualifications Alliance,34231
Solihull MBC,http://statistics.data.gov.uk/id/local-authority/00CT,Children & Education Services,St Peter's,Examination Fees,D52001,15/11/2010,2824818,310,Assessment & Qualifications Alliance,34231
Solihull MBC,http://statistics.data.gov.uk/id/local-authority/00CT,Children & Education Services,Lode Heath,Examination Fees,D52001,09/11/2010,2820200,1238.55,Assessment & Qualifications Alliance,34231
Solihull MBC,http://statistics.data.gov.uk/id/local-authority/00CT,Children & Education Services,St Peter's,Examination Fees,D52001,15/11/2010,2824818,185.5,Assessment & Qualifications Alliance,34231
Solihull MBC,http://statistics.data.gov.uk/id/local-authority/00CT,Children & Education Services,Lyndon,Examination Fees,D52001,29/11/2010,2837525,1244.75,Assessment & Qualifications Alliance,34231
Solihull MBC,http://statistics.data.gov.uk/id/local-authority/00CT,Children & Education Services,St Peter's,Examination Fees,D52001,19/11/2010,2829918,416.1,Assessment & Qualifications Alliance,34231
Solihull MBC,http://statistics.data.gov.uk/id/local-authority/00CT,Children & Education Services,St Peter's,Examination Fees,D52001,19/11/2010,2829918,13.9,Assessment & Qualifications Alliance,34231
Solihull MBC,http://statistics.data.gov.uk/id/local-authority/00CT,Children & Education Services,Smith's Wood,Examination Fees,D52001,17/11/2010,2825753,2923.65,Assessment & Qualifications Alliance,34231
Solihull MBC,http://statistics.data.gov.uk/id/local-authority/00CT,Children & Education Services,St Peter's,Examination Fees,D52001,19/11/2010,2829918,87.6,Assessment & Qualifications Alliance,34231
Solihull MBC,http://statistics.data.gov.uk/id/local-authority/00CT,Children & Education Services,St Peter's,Examination Fees,D52001,19/11/2010,2829918,14.3,Assessment & Qualifications Alliance,34231
Solihull MBC,http://statistics.data.gov.uk/id/local-authority/00CT,Children & Education Services,St Peter's,Examination Fees,D52001,19/11/2010,2829918,-18.55,Assessment & Qualifications Alliance,34231
Solihull MBC,http://statistics.data.gov.uk/id/local-authority/00CT,Children & Education Services,St Peter's,Examination Fees,D52001,19/11/2010,2829918,18.5,Assessment & Qualifications Alliance,34231
Solihull MBC,http://statistics.data.gov.uk/id/local-authority/00CT,Central Services to the Public,Application Support,Training,A32000,16/11/2010,2825671,1100,Aston University,6684
Solihull MBC,http://statistics.data.gov.uk/id/local-authority/00CT,Children & Education Services,Lyndon,Visits & Pupil Activities,D52002,29/11/2010,2837480,500,Attain Travel Ltd,127011
Solihull MBC,http://statistics.data.gov.uk/id/local-authority/00CT,Cultural & Related Services,Pantomime,Advertising/Publicity/Promotion,D93000,11/11/2010,2823103,610,Audiences Central,109999
Solihull MBC,http://statistics.data.gov.uk/id/local-authority/00CT,Other Housing Services,Private Sector Services,Professional Fees,D51000,03/11/2010,2812855,1257.5,Audit Commission,6806
Solihull MBC,http://statistics.data.gov.uk/id/local-authority/00CT,Highways & Transport Services,TH&E Service Developement,Professional Fees,D51000,03/11/2010,2812855,465,Audit Commission,6806
Solihull MBC,http://statistics.data.gov.uk/id/local-authority/00CT,Central Services to the Public,Income Team,Professional Fees,D51000,03/11/2010,2812855,1065,Audit Commission,6806
Solihull MBC,http://statistics.data.gov.uk/id/local-authority/00CT,Housing Revenue Account,HRA Client Mgt A/C,Professional Fees,D51000,03/11/2010,2812855,3017.5,Audit Commission,6806
Solihull MBC,http://statistics.data.gov.uk/id/local-authority/00CT,Children & Education Services,Early Years Partnership,Professional Fees,D51000,03/11/2010,2812855,2252.5,Audit Commission,6806
Solihull MBC,http://statistics.data.gov.uk/id/local-authority/00CT,Housing Revenue Account,HRA Client Mgt A/C,Professional Fees,D51000,03/11/2010,2812855,2192.5,Audit Commission,6806
Solihull MBC,http://statistics.data.gov.uk/id/local-authority/00CT,Children & Education Services,Strategy And Regulation,Professional Fees,D51000,03/11/2010,2812855,1427.5,Audit Commission,6806
Solihull MBC,http://statistics.data.gov.uk/id/local-authority/00CT,Housing Revenue Account,HRA Client Mgt A/C,Professional Fees,D51000,03/11/2010,2812855,510,Audit Commission,6806
Solihull MBC,http://statistics.data.gov.uk/id/local-authority/00CT,Central Services to the Public,Awards Team,Professional Fees,D51000,03/11/2010,2812855,5828,Audit Commission,6806
Solihull MBC,http://statistics.data.gov.uk/id/local-authority/00CT,Corporate & Democratic Core,External Audit Fees,Professional Fees,D51000,16/11/2010,2825358,27250,Audit Commission,6806
Solihull MBC,http://statistics.data.gov.uk/id/local-authority/00CT,Central Services to the Public,Accountancy,Professional Fees,D51000,19/11/2010,2830281,2000,Audit Commission,6806
Solihull MBC,http://statistics.data.gov.uk/id/local-authority/00CT,Children & Education Services,Education Otherwise,Professional Fees,D51000,08/11/2010,2819621,2595,Autism Treatment Services,219750
Solihull MBC,http://statistics.data.gov.uk/id/local-authority/00CT,Children & Education Services,Education Otherwise,Professional Fees,D51000,08/11/2010,2819620,1297,Autism Treatment Services,219750
Solihull MBC,http://statistics.data.gov.uk/id/local-authority/00CT,Children & Education Services,Dcatch,Grant & Subscription (SCITT),D92000,03/11/2010,2812733,14989.25,Autism West Midlands,80510
Solihull MBC,http://statistics.data.gov.uk/id/local-authority/00CT,Children & Education Services,Chapel Fields Jnr,IT Equipment & Software,D32000,04/11/2010,2817839,435,AV Parts Master,124433
Solihull MBC,http://statistics.data.gov.uk/id/local-authority/00CT,Children & Education Services,St Patrick's CE J&I,Furniture & Equipment,D10000,04/11/2010,2817063,952.96,Avt Communication System Ltd,59553
Solihull MBC,http://statistics.data.gov.uk/id/local-authority/00CT,Cultural & Related Services,Pantomime,Other Fees,D52000,25/11/2010,2834869,2410,B Hipkiss T/A Barrington Music Publishing,225799
Solihull MBC,http://statistics.data.gov.uk/id/local-authority/00CT,Central Services to the Public,ICT: Desktop Team Helpdesk,IT Equipment & Software,D32000,30/11/2010,2837855,16411.92,B2Net Ltd,184798
Solihull MBC,http://statistics.data.gov.uk/id/local-authority/00CT,Central Services to the Public,ICT: Desktop Team Helpdesk,IT Equipment & Software,D32000,30/11/2010,2837855,3000,B2Net Ltd,184798
Solihull MBC,http://statistics.data.gov.uk/id/local-authority/00CT,Central Services to the Public,ICT: Desktop Team Helpdesk,IT Equipment & Software,D32000,30/11/2010,2837855,931,B2Net Ltd,184798
Solihull MBC,http://statistics.data.gov.uk/id/local-authority/00CT,Children & Education Services,Adoption Team,Advertising/Publicity/Promotion,D93000,01/11/2010,2811042,444,Baaf,124674
Solihull MBC,http://statistics.data.gov.uk/id/local-authority/00CT,Children & Education Services,Ulverley J&I,Capitation,D11001,12/11/2010,2823425,1149,Badger Books & Book Collections For Schools,253447
Solihull MBC,http://statistics.data.gov.uk/id/local-authority/00CT,Children & Education Services,Coleshill Heath J&I,Capitation,D11001,25/11/2010,2834416,-214.73,Badges Plus Ltd,7440
Solihull MBC,http://statistics.data.gov.uk/id/local-authority/00CT,Children & Education Services,Coleshill Heath J&I,Capitation,D11001,25/11/2010,2834416,1441.73,Badges Plus Ltd,7440
Solihull MBC,http://statistics.data.gov.uk/id/local-authority/00CT,Children & Education Services,St Mary & Margaret J&I,Building Maint Planned,B31002,12/11/2010,2823511,1378,Baker Flooring Ltd,232934
Solihull MBC,http://statistics.data.gov.uk/id/local-authority/00CT,Children & Education Services,Langley J&I Child Centre,Building Maint Planned,B31002,10/11/2010,2820884,760,Baker Ward Ltd,235528
Solihull MBC,http://statistics.data.gov.uk/id/local-authority/00CT,Children & Education Services,Balsall Common J&I,Swimming Charges,I20002,11/11/2010,2821741,954,Balsall Common Primary School Pta,212361
Solihull MBC,http://statistics.data.gov.uk/id/local-authority/00CT,Children & Education Services,Sport Co-Ordinators Prog,Capitation,D11001,18/11/2010,2829226,437.5,Banana Moon Workshop Ltd,284645
Solihull MBC,http://statistics.data.gov.uk/id/local-authority/00CT,Children & Education Services,Sport Co-Ordinators Prog,Capitation,D11001,18/11/2010,2829226,175,Banana Moon Workshop Ltd,284645
Solihull MBC,http://statistics.data.gov.uk/id/local-authority/00CT,Cultural & Related Services,Arts Complex Hirings,Other Fees,D52000,10/11/2010,,8.98,Barclays Bank PLC,Direct Debit Payment
Solihull MBC,http://statistics.data.gov.uk/id/local-authority/00CT,Cultural & Related Services,Arts Complex Hirings,Other Fees,D52000,10/11/2010,,25,Barclays Bank PLC,Direct Debit Payment
Solihull MBC,http://statistics.data.gov.uk/id/local-authority/00CT,Children & Education Services,Langley Arts & Sports Complex,Other Fees,D52000,10/11/2010,,18.11,Barclays Bank PLC,Direct Debit Payment
Solihull MBC,http://statistics.data.gov.uk/id/local-authority/00CT,Children & Education Services,Langley Arts & Sports Complex,Other Fees,D52000,10/11/2010,,15,Barclays Bank PLC,Direct Debit Payment
Solihull MBC,http://statistics.data.gov.uk/id/local-authority/00CT,Central Services to the Public,Income Team,Debit Card Charges,D52900,10/11/2010,,5895.46,Barclays Bank PLC,Direct Debit Payment
Solihull MBC,http://statistics.data.gov.uk/id/local-authority/00CT,Central Services to the Public,Income Team,Debit Card Charges,D52900,10/11/2010,,6.11,Barclays Bank PLC,Direct Debit Payment
Solihull MBC,http://statistics.data.gov.uk/id/local-authority/00CT,Central Services to the Public,Income Team,Debit Card Charges,D52900,10/11/2010,,36,Barclays Bank PLC,Direct Debit Payment
Solihull MBC,http://statistics.data.gov.uk/id/local-authority/00CT,Cultural & Related Services,Arts Complex Hirings,Other Fees,D52000,10/11/2010,,767.73,Barclays Bank PLC,Direct Debit Payment
Solihull MBC,http://statistics.data.gov.uk/id/local-authority/00CT,Cultural & Related Services,Arts Complex Hirings,Other Fees,D52000,10/11/2010,,4.18,Barclays Bank PLC,Direct Debit Payment
Solihull MBC,http://statistics.data.gov.uk/id/local-authority/00CT,Cultural & Related Services,Arts Complex Hirings,Other Fees,D52000,10/11/2010,,30,Barclays Bank PLC,Direct Debit Payment
Solihull MBC,http://statistics.data.gov.uk/id/local-authority/00CT,Housing Revenue Account,HRA Client Mgt A/C,Payment Charges,D52702,10/11/2010,,748.49,Barclays Bank PLC,Direct Debit Payment
Solihull MBC,http://statistics.data.gov.uk/id/local-authority/00CT,Housing Revenue Account,HRA Client Mgt A/C,Payment Charges,D52702,10/11/2010,,0.28,Barclays Bank PLC,Direct Debit Payment
Solihull MBC,http://statistics.data.gov.uk/id/local-authority/00CT,Cultural & Related Services,Theatre Bar,Other Fees,D52000,10/11/2010,,34.04,Barclays Bank PLC,Direct Debit Payment
Solihull MBC,http://statistics.data.gov.uk/id/local-authority/00CT,Cultural & Related Services,Theatre Bar,Other Fees,D52000,10/11/2010,,25,Barclays Bank PLC,Direct Debit Payment
Solihull MBC,http://statistics.data.gov.uk/id/local-authority/00CT,Children & Education Services,Residential CIC,Other Contracted Services,E29000,02/11/2010,2811810,13600,Barford Care,165519
Solihull MBC,http://statistics.data.gov.uk/id/local-authority/00CT,Children & Education Services,UASC 18+,Clients Expenses,D62000,22/11/2010,2831422,582.8,Barnardos Manchester Leaving Care Service,284246
Solihull MBC,http://statistics.data.gov.uk/id/local-authority/00CT,Children & Education Services,Ext. Fostering South/Central,Foster Parents,D50000,04/11/2010,2816835,3985.71,Barnardos Midlands,121075
Solihull MBC,http://statistics.data.gov.uk/id/local-authority/00CT,Planning & Development Services,Building Control Holding Account,Professional Fees,D51000,15/11/2010,2824682,29.32,Barneveld Consultants,218451
Solihull MBC,http://statistics.data.gov.uk/id/local-authority/00CT,Planning & Development Services,Building Control Holding Account,Professional Fees,D51000,15/11/2010,2824682,900,Barneveld Consultants,218451
Solihull MBC,http://statistics.data.gov.uk/id/local-authority/00CT,Children & Education Services,Inclusion-Surestart Rev,Grant & Subscription (SCITT),D92000,11/11/2010,2823090,1500,Barnhouse Nursey T/A Daycare At St Martins,207625
Solihull MBC,http://statistics.data.gov.uk/id/local-authority/00CT,Children & Education Services,Marston Green Inf,Building Maint Day To Day,B31001,04/11/2010,2817844,11914.89,Beach Hut Leisure Ltd,284116
Solihull MBC,http://statistics.data.gov.uk/id/local-authority/00CT,Children & Education Services,Transformation Fund,Grant & Subscription (SCITT),D92000,01/11/2010,2810702,3000,Beechwood Childcare,7960
Solihull MBC,http://statistics.data.gov.uk/id/local-authority/00CT,Children & Education Services,Transformation Fund,Grant & Subscription (SCITT),D92000,01/11/2010,2810701,3000,Beechwood Childcare (Mill Lodge),7949
Solihull MBC,http://statistics.data.gov.uk/id/local-authority/00CT,Children & Education Services,Sustainability Cap,Grants,Y41000,29/11/2010,2837469,6785,Beechwood Childcare (Mill Lodge),7949
Solihull MBC,http://statistics.data.gov.uk/id/local-authority/00CT,Children & Education Services,Lyndon,Building Maint Planned,B31002,16/11/2010,2825611,3210,Berben Installations Ltd,20346
Solihull MBC,http://statistics.data.gov.uk/id/local-authority/00CT,Cultural & Related Services,Libraries Resources Fund,Books,D11410,12/11/2010,2823608,1576.88,Bertrams Library Services,221390
Solihull MBC,http://statistics.data.gov.uk/id/local-authority/00CT,Children & Education Services,Arden,Materials,D11000,30/11/2010,2837733,470.4,Beverages Direct Ltd,100222
Solihull MBC,http://statistics.data.gov.uk/id/local-authority/00CT,Children & Education Services,Arden,Materials,D11000,30/11/2010,2837733,62.29,Beverages Direct Ltd,100222
Solihull MBC,http://statistics.data.gov.uk/id/local-authority/00CT,Children & Education Services,Arden,Materials,D11000,30/11/2010,2837733,20.62,Beverages Direct Ltd,100222
Solihull MBC,http://statistics.data.gov.uk/id/local-authority/00CT,Highways & Transport Services,Tankers,Other Contracted Services,E29000,17/11/2010,2826141,600,Biffa Waste Services Ltd,29923
Solihull MBC,http://statistics.data.gov.uk/id/local-authority/00CT,Environmental and Regulatory Services,Moat Lane Waste Station,Other Contracted Services,E29000,17/11/2010,2826196,1299.04,Biffa Waste Services Ltd,29923
Solihull MBC,http://statistics.data.gov.uk/id/local-authority/00CT,Children & Education Services,Grants For Private Sector,Grant & Subscription (SCITT),D92000,08/11/2010,2819600,3567.2,Billy Bears Nursery,102085
Solihull MBC,http://statistics.data.gov.uk/id/local-authority/00CT,Children & Education Services,Section 17 South/Central,Client Sponsored Day Care,D62030,03/11/2010,2812805,740,Billy Bears Nursery,102085
Solihull MBC,http://statistics.data.gov.uk/id/local-authority/00CT,Children & Education Services,Section 17 South/Central,Client Sponsored Day Care,D62030,15/11/2010,2824867,995,Billy Bears Nursery,102085
Solihull MBC,http://statistics.data.gov.uk/id/local-authority/00CT,Central Services to the Public,Procurement,Training,A32000,01/11/2010,2810800,498,Bip Solutions Ltd,104703
Solihull MBC,http://statistics.data.gov.uk/id/local-authority/00CT,Children & Education Services,Childrens Centres,Other Contracted Services,E29000,23/11/2010,2831835,17083.74,Birmingham And Solihull Mental Health Trust,131135
Solihull MBC,http://statistics.data.gov.uk/id/local-authority/00CT,Cultural & Related Services,Woodland Mgt Project,Maintenance Of Grounds,B30000,04/11/2010,2817001,520,Birmingham And Solihull Midweek Conservation Group,190330
Solihull MBC,http://statistics.data.gov.uk/id/local-authority/00CT,Children & Education Services,Light Hall,Visits & Pupil Activities,D52002,08/11/2010,2819176,4760,Birmingham City Council,8616
Solihull MBC,http://statistics.data.gov.uk/id/local-authority/00CT,Corporate & Democratic Core,Joint Committee Servicing,Other Contracted Services,E29000,11/11/2010,2823084,9774,Birmingham City Council,8616
Solihull MBC,http://statistics.data.gov.uk/id/local-authority/00CT,Interest & Investment Income,Birmingham Airport,General Creditors,S00000,11/11/2010,2823084,57206,Birmingham City Council,8616
Solihull MBC,http://statistics.data.gov.uk/id/local-authority/00CT,Court Services,Coroners Court,Other Contracted Services,E29000,11/11/2010,2823084,79753,Birmingham City Council,8616
Solihull MBC,http://statistics.data.gov.uk/id/local-authority/00CT,Children & Education Services,Licence Fees,Professional Fees,D51000,11/11/2010,2822767,8244.5,Birmingham City Council,8616
Solihull MBC,http://statistics.data.gov.uk/id/local-authority/00CT,Central Services to the Public,I & A Management,Training,A32000,23/11/2010,2831912,14900,Birmingham City Council,8616
Solihull MBC,http://statistics.data.gov.uk/id/local-authority/00CT,Adult Social Care,Court Of Protection,General Creditors,S00000,24/11/2010,2831993,2854.5,Birmingham City Council,8616
Solihull MBC,http://statistics.data.gov.uk/id/local-authority/00CT,Central Services to the Public,I & A Management,Training,A32000,23/11/2010,2831912,886.33,Birmingham City Council,8616
Solihull MBC,http://statistics.data.gov.uk/id/local-authority/00CT,Children & Education Services,Lyndon,Visits & Pupil Activities,D52002,29/11/2010,2837425,975,Birmingham International Coaches Ltd,34755
Solihull MBC,http://statistics.data.gov.uk/id/local-authority/00CT,Children & Education Services,Tidbury Green J&I,Visits & Pupil Activities,D52002,02/11/2010,2812312,813.61,Birmingham Stage Company,40179
Solihull MBC,http://statistics.data.gov.uk/id/local-authority/00CT,Children & Education Services,Post Qualification,Training,A32000,19/11/2010,2830293,500,Birmingham Trust For Psychoanalytic Psychotherapy,22381
Solihull MBC,http://statistics.data.gov.uk/id/local-authority/00CT,Children & Education Services,Castle Bromwich Inf,Capitation,D11001,10/11/2010,2821486,565.5,Bishop Sports & Leisure Ltd,8738
Solihull MBC,http://statistics.data.gov.uk/id/local-authority/00CT,Children & Education Services,Marston Green Inf,IT Equipment & Software,D32000,24/11/2010,2832630,1484.58,Black & White Consumables Ltd,190418
Solihull MBC,http://statistics.data.gov.uk/id/local-authority/00CT,Children & Education Services,Education Management,Training,A32000,10/11/2010,2821066,1784.04,Blackpool Borough Council,72804
Solihull MBC,http://statistics.data.gov.uk/id/local-authority/00CT,Children & Education Services,Alderbrook,Maintenance Of Grounds,B30000,02/11/2010,2812290,741.96,Blooming Gardens Ltd,8970
Solihull MBC,http://statistics.data.gov.uk/id/local-authority/00CT,Children & Education Services,Hockley Heath J&I,Health & Safety,B43003,10/11/2010,2820571,580,Blooming Gardens Ltd,8970
Solihull MBC,http://statistics.data.gov.uk/id/local-authority/00CT,Children & Education Services,Langley Secondary,Maintenance Of Grounds,B30000,04/11/2010,2816756,875.63,Blooming Gardens Ltd,8970
Solihull MBC,http://statistics.data.gov.uk/id/local-authority/00CT,Children & Education Services,St Peter's,Maintenance Of Grounds,B30000,04/11/2010,2813217,1124,Blooming Gardens Ltd,8970
Solihull MBC,http://statistics.data.gov.uk/id/local-authority/00CT,Children & Education Services,"Ex-School, Auckland Drive",Other Contracted Services,E29000,02/11/2010,2812141,554.17,Blooming Gardens Ltd,8970
Solihull MBC,http://statistics.data.gov.uk/id/local-authority/00CT,Children & Education Services,UASC 18+,Clients Expenses,D62000,15/11/2010,2825038,237.4,Blueberry Housing Ltd,208121
Solihull MBC,http://statistics.data.gov.uk/id/local-authority/00CT,Children & Education Services,UASC 18+,Clients Transport Costs,C21000,15/11/2010,2825028,48,Blueberry Housing Ltd,208121
Solihull MBC,http://statistics.data.gov.uk/id/local-authority/00CT,Children & Education Services,UASC 18+,Other Contracted Services,E29000,15/11/2010,2825045,945.5,Blueberry Housing Ltd,208121
Solihull MBC,http://statistics.data.gov.uk/id/local-authority/00CT,Children & Education Services,UASC 16+,Other Contracted Services,E29000,15/11/2010,2824958,604.5,Blueberry Housing Ltd,208121
Solihull MBC,http://statistics.data.gov.uk/id/local-authority/00CT,Children & Education Services,UASC 16+,Other Contracted Services,E29000,15/11/2010,2824956,945.5,Blueberry Housing Ltd,208121
Solihull MBC,http://statistics.data.gov.uk/id/local-authority/00CT,Children & Education Services,UASC 16+,Other Contracted Services,E29000,15/11/2010,2824957,604.5,Blueberry Housing Ltd,208121
Solihull MBC,http://statistics.data.gov.uk/id/local-authority/00CT,Children & Education Services,UASC 16+,Clients Expenses,D62000,15/11/2010,2824958,237.4,Blueberry Housing Ltd,208121
Solihull MBC,http://statistics.data.gov.uk/id/local-authority/00CT,Children & Education Services,UASC 18+,Clients Expenses,D62000,15/11/2010,2825043,237.4,Blueberry Housing Ltd,208121
Solihull MBC,http://statistics.data.gov.uk/id/local-authority/00CT,Children & Education Services,UASC 18+,Other Contracted Services,E29000,15/11/2010,2825047,604.5,Blueberry Housing Ltd,208121
Solihull MBC,http://statistics.data.gov.uk/id/local-authority/00CT,Children & Education Services,UASC 16+,Other Contracted Services,E29000,15/11/2010,2824959,604.5,Blueberry Housing Ltd,208121
Solihull MBC,http://statistics.data.gov.uk/id/local-authority/00CT,Children & Education Services,UASC 18+,Clients Transport Costs,C21000,15/11/2010,2825032,96,Blueberry Housing Ltd,208121
Solihull MBC,http://statistics.data.gov.uk/id/local-authority/00CT,Children & Education Services,UASC 16+,Other Contracted Services,E29000,15/11/2010,2824956,604.5,Blueberry Housing Ltd,208121
Solihull MBC,http://statistics.data.gov.uk/id/local-authority/00CT,Children & Education Services,UASC 16+,Clients Transport Costs,C21000,15/11/2010,2824960,48,Blueberry Housing Ltd,208121
Solihull MBC,http://statistics.data.gov.uk/id/local-authority/00CT,Children & Education Services,UASC 18+,Clients Expenses,D62000,15/11/2010,2825053,50,Blueberry Housing Ltd,208121
Solihull MBC,http://statistics.data.gov.uk/id/local-authority/00CT,Children & Education Services,UASC 18+,Other Contracted Services,E29000,15/11/2010,2825053,604.5,Blueberry Housing Ltd,208121
Solihull MBC,http://statistics.data.gov.uk/id/local-authority/00CT,Children & Education Services,UASC 18+,Other Contracted Services,E29000,15/11/2010,2825049,945.5,Blueberry Housing Ltd,208121
Solihull MBC,http://statistics.data.gov.uk/id/local-authority/00CT,Children & Education Services,UASC 18+,Other Contracted Services,E29000,15/11/2010,2825038,224.87,Blueberry Housing Ltd,208121
Solihull MBC,http://statistics.data.gov.uk/id/local-authority/00CT,Children & Education Services,UASC 16+,Clients Expenses,D62000,15/11/2010,2824959,237.4,Blueberry Housing Ltd,208121
Solihull MBC,http://statistics.data.gov.uk/id/local-authority/00CT,Children & Education Services,UASC 18+,Other Contracted Services,E29000,15/11/2010,2825032,945.5,Blueberry Housing Ltd,208121
Solihull MBC,http://statistics.data.gov.uk/id/local-authority/00CT,Children & Education Services,UASC 18+,Clients Transport Costs,C21000,15/11/2010,2825051,96,Blueberry Housing Ltd,208121
Solihull MBC,http://statistics.data.gov.uk/id/local-authority/00CT,Children & Education Services,UASC 18+,Other Contracted Services,E29000,15/11/2010,2825038,351.73,Blueberry Housing Ltd,208121
Solihull MBC,http://statistics.data.gov.uk/id/local-authority/00CT,Children & Education Services,UASC 18+,Clients Expenses,D62000,15/11/2010,2825051,30,Blueberry Housing Ltd,208121
Solihull MBC,http://statistics.data.gov.uk/id/local-authority/00CT,Children & Education Services,UASC 16+,Clients Expenses,D62000,15/11/2010,2824957,257.4,Blueberry Housing Ltd,208121
Solihull MBC,http://statistics.data.gov.uk/id/local-authority/00CT,Children & Education Services,UASC 18+,Clients Expenses,D62000,15/11/2010,2825047,50,Blueberry Housing Ltd,208121
Solihull MBC,http://statistics.data.gov.uk/id/local-authority/00CT,Children & Education Services,UASC 16+,Clients Transport Costs,C21000,15/11/2010,2824959,96,Blueberry Housing Ltd,208121
Solihull MBC,http://statistics.data.gov.uk/id/local-authority/00CT,Children & Education Services,UASC 18+,Other Contracted Services,E29000,15/11/2010,2825026,224.87,Blueberry Housing Ltd,208121
Solihull MBC,http://statistics.data.gov.uk/id/local-authority/00CT,Children & Education Services,UASC 16+,Clients Expenses,D62000,15/11/2010,2824956,249.9,Blueberry Housing Ltd,208121
Solihull MBC,http://statistics.data.gov.uk/id/local-authority/00CT,Children & Education Services,UASC 18+,Other Contracted Services,E29000,15/11/2010,2825028,945.5,Blueberry Housing Ltd,208121
Solihull MBC,http://statistics.data.gov.uk/id/local-authority/00CT,Children & Education Services,UASC 18+,Other Contracted Services,E29000,15/11/2010,2825026,351.73,Blueberry Housing Ltd,208121
Solihull MBC,http://statistics.data.gov.uk/id/local-authority/00CT,Children & Education Services,UASC 18+,Other Contracted Services,E29000,15/11/2010,2825028,604.5,Blueberry Housing Ltd,208121
Solihull MBC,http://statistics.data.gov.uk/id/local-authority/00CT,Children & Education Services,UASC 16+,Clients Expenses,D62000,15/11/2010,2824960,257.4,Blueberry Housing Ltd,208121
Solihull MBC,http://statistics.data.gov.uk/id/local-authority/00CT,Children & Education Services,UASC 18+,Clients Transport Costs,C21000,15/11/2010,2825026,48,Blueberry Housing Ltd,208121
Solihull MBC,http://statistics.data.gov.uk/id/local-authority/00CT,Children & Education Services,UASC 18+,Other Contracted Services,E29000,15/11/2010,2825053,945.5,Blueberry Housing Ltd,208121
Solihull MBC,http://statistics.data.gov.uk/id/local-authority/00CT,Children & Education Services,UASC 16+,Clothing & Uniforms,D91000,15/11/2010,2824960,30,Blueberry Housing Ltd,208121
Solihull MBC,http://statistics.data.gov.uk/id/local-authority/00CT,Children & Education Services,UASC 18+,Clients Transport Costs,C21000,15/11/2010,2825043,48,Blueberry Housing Ltd,208121
Solihull MBC,http://statistics.data.gov.uk/id/local-authority/00CT,Children & Education Services,UASC 16+,Clients Transport Costs,C21000,15/11/2010,2824956,96,Blueberry Housing Ltd,208121
Solihull MBC,http://statistics.data.gov.uk/id/local-authority/00CT,Children & Education Services,UASC 18+,Other Contracted Services,E29000,15/11/2010,2825027,945.5,Blueberry Housing Ltd,208121
Solihull MBC,http://statistics.data.gov.uk/id/local-authority/00CT,Children & Education Services,UASC 18+,Clients Transport Costs,C21000,15/11/2010,2825038,48,Blueberry Housing Ltd,208121
Solihull MBC,http://statistics.data.gov.uk/id/local-authority/00CT,Children & Education Services,UASC 18+,Clothing & Uniforms,D91000,15/11/2010,2825043,30,Blueberry Housing Ltd,208121
Solihull MBC,http://statistics.data.gov.uk/id/local-authority/00CT,Children & Education Services,UASC 18+,Clients Expenses,D62000,15/11/2010,2825049,20,Blueberry Housing Ltd,208121
Solihull MBC,http://statistics.data.gov.uk/id/local-authority/00CT,Children & Education Services,UASC 18+,Clients Transport Costs,C21000,15/11/2010,2825049,48,Blueberry Housing Ltd,208121
Solihull MBC,http://statistics.data.gov.uk/id/local-authority/00CT,Children & Education Services,UASC 16+,Other Contracted Services,E29000,15/11/2010,2824958,945.5,Blueberry Housing Ltd,208121
Solihull MBC,http://statistics.data.gov.uk/id/local-authority/00CT,Children & Education Services,UASC 18+,Other Contracted Services,E29000,15/11/2010,2825049,604.5,Blueberry Housing Ltd,208121
Solihull MBC,http://statistics.data.gov.uk/id/local-authority/00CT,Children & Education Services,UASC 18+,Clients Expenses,D62000,15/11/2010,2825027,30,Blueberry Housing Ltd,208121
Solihull MBC,http://statistics.data.gov.uk/id/local-authority/00CT,Children & Education Services,UASC 16+,Clothing & Uniforms,D91000,15/11/2010,2824959,60,Blueberry Housing Ltd,208121
Solihull MBC,http://statistics.data.gov.uk/id/local-authority/00CT,Children & Education Services,UASC 18+,Clients Transport Costs,C21000,15/11/2010,2825053,48,Blueberry Housing Ltd,208121
Solihull MBC,http://statistics.data.gov.uk/id/local-authority/00CT,Children & Education Services,UASC 16+,Clients Transport Costs,C21000,15/11/2010,2824958,96,Blueberry Housing Ltd,208121
Solihull MBC,http://statistics.data.gov.uk/id/local-authority/00CT,Children & Education Services,UASC 18+,Clients Expenses,D62000,15/11/2010,2825028,30,Blueberry Housing Ltd,208121
Solihull MBC,http://statistics.data.gov.uk/id/local-authority/00CT,Children & Education Services,UASC 18+,Other Contracted Services,E29000,15/11/2010,2825027,604.5,Blueberry Housing Ltd,208121
Solihull MBC,http://statistics.data.gov.uk/id/local-authority/00CT,Children & Education Services,UASC 18+,Clients Expenses,D62000,15/11/2010,2825032,153.7,Blueberry Housing Ltd,208121
Solihull MBC,http://statistics.data.gov.uk/id/local-authority/00CT,Children & Education Services,UASC 16+,Other Contracted Services,E29000,15/11/2010,2824957,945.5,Blueberry Housing Ltd,208121
Solihull MBC,http://statistics.data.gov.uk/id/local-authority/00CT,Children & Education Services,UASC 18+,Clients Transport Costs,C21000,15/11/2010,2825047,48,Blueberry Housing Ltd,208121
Solihull MBC,http://statistics.data.gov.uk/id/local-authority/00CT,Children & Education Services,UASC 18+,Other Contracted Services,E29000,15/11/2010,2825051,604.5,Blueberry Housing Ltd,208121
Solihull MBC,http://statistics.data.gov.uk/id/local-authority/00CT,Children & Education Services,UASC 18+,Clients Transport Costs,C21000,15/11/2010,2825027,48,Blueberry Housing Ltd,208121
Solihull MBC,http://statistics.data.gov.uk/id/local-authority/00CT,Children & Education Services,UASC 18+,Other Contracted Services,E29000,15/11/2010,2825043,945.5,Blueberry Housing Ltd,208121
Solihull MBC,http://statistics.data.gov.uk/id/local-authority/00CT,Children & Education Services,UASC 18+,Other Contracted Services,E29000,15/11/2010,2825047,945.5,Blueberry Housing Ltd,208121
Solihull MBC,http://statistics.data.gov.uk/id/local-authority/00CT,Children & Education Services,UASC 18+,Other Contracted Services,E29000,15/11/2010,2825051,945.5,Blueberry Housing Ltd,208121
Solihull MBC,http://statistics.data.gov.uk/id/local-authority/00CT,Children & Education Services,UASC 18+,Clients Transport Costs,C21000,15/11/2010,2825045,48,Blueberry Housing Ltd,208121
Solihull MBC,http://statistics.data.gov.uk/id/local-authority/00CT,Children & Education Services,UASC 16+,Clients Transport Costs,C21000,15/11/2010,2824957,96,Blueberry Housing Ltd,208121
Solihull MBC,http://statistics.data.gov.uk/id/local-authority/00CT,Children & Education Services,UASC 16+,Other Contracted Services,E29000,15/11/2010,2824960,945.5,Blueberry Housing Ltd,208121
Solihull MBC,http://statistics.data.gov.uk/id/local-authority/00CT,Children & Education Services,UASC 16+,Other Contracted Services,E29000,15/11/2010,2824960,604.5,Blueberry Housing Ltd,208121
Solihull MBC,http://statistics.data.gov.uk/id/local-authority/00CT,Children & Education Services,UASC 18+,Other Contracted Services,E29000,15/11/2010,2825032,604.5,Blueberry Housing Ltd,208121
Solihull MBC,http://statistics.data.gov.uk/id/local-authority/00CT,Children & Education Services,UASC 18+,Other Contracted Services,E29000,15/11/2010,2825043,604.5,Blueberry Housing Ltd,208121
Solihull MBC,http://statistics.data.gov.uk/id/local-authority/00CT,Children & Education Services,UASC 18+,Other Contracted Services,E29000,15/11/2010,2825045,604.5,Blueberry Housing Ltd,208121
Solihull MBC,http://statistics.data.gov.uk/id/local-authority/00CT,Children & Education Services,UASC 16+,Other Contracted Services,E29000,15/11/2010,2824959,945.5,Blueberry Housing Ltd,208121
Solihull MBC,http://statistics.data.gov.uk/id/local-authority/00CT,Children & Education Services,UASC 18+,Clients Expenses,D62000,15/11/2010,2825026,237.4,Blueberry Housing Ltd,208121
Solihull MBC,http://statistics.data.gov.uk/id/local-authority/00CT,Children & Education Services,UASC U16,Other Contracted Services,E29000,23/11/2010,2831784,234,Blueberry Housing Ltd,208121
Solihull MBC,http://statistics.data.gov.uk/id/local-authority/00CT,Children & Education Services,UASC U16,Clients Expenses,D62000,23/11/2010,2831784,111.06,Blueberry Housing Ltd,208121
Solihull MBC,http://statistics.data.gov.uk/id/local-authority/00CT,Children & Education Services,UASC U16,Other Contracted Services,E29000,23/11/2010,2831784,366,Blueberry Housing Ltd,208121
Solihull MBC,http://statistics.data.gov.uk/id/local-authority/00CT,Children & Education Services,UASC U16,Clients Transport Costs,C21000,23/11/2010,2831784,30.75,Blueberry Housing Ltd,208121
Solihull MBC,http://statistics.data.gov.uk/id/local-authority/00CT,Children & Education Services,Lyndon,Consumables,D32907,30/11/2010,2838203,189.79,Bluepoint Corporation Ltd,132566
Solihull MBC,http://statistics.data.gov.uk/id/local-authority/00CT,Children & Education Services,Lyndon,IT Equipment & Software,D32000,30/11/2010,2838203,0.03,Bluepoint Corporation Ltd,132566
Solihull MBC,http://statistics.data.gov.uk/id/local-authority/00CT,Children & Education Services,Lyndon,IT Equipment & Software,D32000,30/11/2010,2838203,2.43,Bluepoint Corporation Ltd,132566
Solihull MBC,http://statistics.data.gov.uk/id/local-authority/00CT,Children & Education Services,Lyndon,Consumables,D32907,30/11/2010,2838203,2.43,Bluepoint Corporation Ltd,132566
Solihull MBC,http://statistics.data.gov.uk/id/local-authority/00CT,Children & Education Services,Lyndon,IT Equipment & Software,D32000,30/11/2010,2838203,276.78,Bluepoint Corporation Ltd,132566
Solihull MBC,http://statistics.data.gov.uk/id/local-authority/00CT,Children & Education Services,Lyndon,IT Equipment & Software,D32000,30/11/2010,2838203,3.54,Bluepoint Corporation Ltd,132566
Solihull MBC,http://statistics.data.gov.uk/id/local-authority/00CT,Children & Education Services,Lyndon,IT Equipment & Software,D32000,30/11/2010,2838203,3.54,Bluepoint Corporation Ltd,132566
Solihull MBC,http://statistics.data.gov.uk/id/local-authority/00CT,Children & Education Services,Lyndon,IT Equipment & Software,D32000,30/11/2010,2838203,403.67,Bluepoint Corporation Ltd,132566
Solihull MBC,http://statistics.data.gov.uk/id/local-authority/00CT,Children & Education Services,Lyndon,Consumables,D32907,30/11/2010,2838203,276.79,Bluepoint Corporation Ltd,132566
Solihull MBC,http://statistics.data.gov.uk/id/local-authority/00CT,Children & Education Services,Archbishop Grimshaw,Capitation,D11001,04/11/2010,2816746,520,Bob Ritchie Ltd,96215
Solihull MBC,http://statistics.data.gov.uk/id/local-authority/00CT,Children & Education Services,Children In Care Team,Client Sponsored Day Care,D62030,03/11/2010,2812849,581.4,Bosworth Wood Neighbourhood Nursery-Lawnswood,130961
Solihull MBC,http://statistics.data.gov.uk/id/local-authority/00CT,Central Services to the Public,ICT: Data Centre,IT Equipment & Software,D32000,09/11/2010,2820428,599,Bottomline Technologies,76349
Solihull MBC,http://statistics.data.gov.uk/id/local-authority/00CT,Central Services to the Public,ICT: Data Centre,IT Equipment & Software,D32000,11/11/2010,2821951,920,Bottomline Technologies,76349
Solihull MBC,http://statistics.data.gov.uk/id/local-authority/00CT,Central Services to the Public,ICT: Data Centre,IT Equipment & Software,D32000,09/11/2010,2820430,1800,Bottomline Technologies,76349
Solihull MBC,http://statistics.data.gov.uk/id/local-authority/00CT,Central Services to the Public,ICT: Data Centre,IT Equipment & Software,D32000,11/11/2010,2821949,920,Bottomline Technologies,76349
Solihull MBC,http://statistics.data.gov.uk/id/local-authority/00CT,Children & Education Services,Alderbrook,Catering Provisions,D20000,04/11/2010,2817511,802.63,Brake Bros Foodservice Ltd,9490
Solihull MBC,http://statistics.data.gov.uk/id/local-authority/00CT,Children & Education Services,Lyndon,Catering Provisions,D20000,02/11/2010,2811884,647.24,Brake Bros Foodservice Ltd,9490
Solihull MBC,http://statistics.data.gov.uk/id/local-authority/00CT,Children & Education Services,Parkhall Academy Catering,Catering Provisions,D20000,04/11/2010,2817389,523.67,Brake Bros Foodservice Ltd,9490
Solihull MBC,http://statistics.data.gov.uk/id/local-authority/00CT,Cultural & Related Services,Theatre Bar,Catering Provisions,D20000,02/11/2010,2812167,610.57,Brake Bros Foodservice Ltd,9490
Solihull MBC,http://statistics.data.gov.uk/id/local-authority/00CT,Children & Education Services,Arden,Catering Provisions,D20000,04/11/2010,2817607,751.9,Brake Bros Foodservice Ltd,9490
Solihull MBC,http://statistics.data.gov.uk/id/local-authority/00CT,Children & Education Services,Arden,Catering Provisions,D20000,02/11/2010,2811882,798.9,Brake Bros Foodservice Ltd,9490
Solihull MBC,http://statistics.data.gov.uk/id/local-authority/00CT,Children & Education Services,Parkhall Academy Catering,Catering Provisions,D20000,04/11/2010,2817514,582.7,Brake Bros Foodservice Ltd,9490
Solihull MBC,http://statistics.data.gov.uk/id/local-authority/00CT,Children & Education Services,Arden,Catering Provisions,D20000,02/11/2010,2811906,430.51,Brake Bros Foodservice Ltd,9490
Solihull MBC,http://statistics.data.gov.uk/id/local-authority/00CT,Children & Education Services,Parkhall Academy Catering,Catering Provisions,D20000,04/11/2010,2817608,555.66,Brake Bros Foodservice Ltd,9490
Solihull MBC,http://statistics.data.gov.uk/id/local-authority/00CT,Children & Education Services,Lode Heath,Catering Provisions,D20000,04/11/2010,2817610,551.94,Brake Bros Foodservice Ltd,9490
Solihull MBC,http://statistics.data.gov.uk/id/local-authority/00CT,Children & Education Services,Parkhall Academy Catering,Catering Provisions,D20000,02/11/2010,2811883,786.13,Brake Bros Foodservice Ltd,9490
Solihull MBC,http://statistics.data.gov.uk/id/local-authority/00CT,Children & Education Services,Heart Of England,Catering Provisions,D20000,04/11/2010,2817605,819.68,Brake Bros Foodservice Ltd,9490
Solihull MBC,http://statistics.data.gov.uk/id/local-authority/00CT,Children & Education Services,Parkhall Academy Catering,Catering Provisions,D20000,04/11/2010,2817604,911.69,Brake Bros Foodservice Ltd,9490
Solihull MBC,http://statistics.data.gov.uk/id/local-authority/00CT,Children & Education Services,Parkhall Academy Catering,Catering Provisions,D20000,04/11/2010,2817388,529.63,Brake Bros Foodservice Ltd,9490
Solihull MBC,http://statistics.data.gov.uk/id/local-authority/00CT,Children & Education Services,Lode Heath,Catering Provisions,D20000,10/11/2010,2821221,500.06,Brake Bros Foodservice Ltd,9490
Solihull MBC,http://statistics.data.gov.uk/id/local-authority/00CT,Children & Education Services,Langley,Catering Provisions,D20000,04/11/2010,2817512,743.52,Brake Bros Foodservice Ltd,9490
Solihull MBC,http://statistics.data.gov.uk/id/local-authority/00CT,Children & Education Services,Parkhall Academy Catering,Catering Provisions,D20000,10/11/2010,2821218,695.94,Brake Bros Foodservice Ltd,9490
Solihull MBC,http://statistics.data.gov.uk/id/local-authority/00CT,Children & Education Services,Light Hall,Catering Provisions,D20000,10/11/2010,2821223,512.03,Brake Bros Foodservice Ltd,9490
Solihull MBC,http://statistics.data.gov.uk/id/local-authority/00CT,Children & Education Services,Heart Of England,Catering Provisions,D20000,10/11/2010,2821222,547.74,Brake Bros Foodservice Ltd,9490
Solihull MBC,http://statistics.data.gov.uk/id/local-authority/00CT,Children & Education Services,Alderbrook,Catering Provisions,D20000,04/11/2010,2817606,815.38,Brake Bros Foodservice Ltd,9490
Solihull MBC,http://statistics.data.gov.uk/id/local-authority/00CT,Children & Education Services,Alderbrook,Catering Provisions,D20000,10/11/2010,2821220,681.77,Brake Bros Foodservice Ltd,9490
Solihull MBC,http://statistics.data.gov.uk/id/local-authority/00CT,Children & Education Services,Langley,Catering Provisions,D20000,04/11/2010,2817603,1280.31,Brake Bros Foodservice Ltd,9490
Solihull MBC,http://statistics.data.gov.uk/id/local-authority/00CT,Children & Education Services,Lyndon,Catering Provisions,D20000,04/11/2010,2817611,522.79,Brake Bros Foodservice Ltd,9490
Solihull MBC,http://statistics.data.gov.uk/id/local-authority/00CT,Children & Education Services,Alderbrook,Catering Provisions,D20000,02/11/2010,2811881,847.4,Brake Bros Foodservice Ltd,9490
Solihull MBC,http://statistics.data.gov.uk/id/local-authority/00CT,Children & Education Services,St Anne's J&I,Catering Provisions,D20000,10/11/2010,2821224,508.7,Brake Bros Foodservice Ltd,9490
Solihull MBC,http://statistics.data.gov.uk/id/local-authority/00CT,Children & Education Services,Parkhall Academy Catering,Catering Provisions,D20000,02/11/2010,2811905,535.6,Brake Bros Foodservice Ltd,9490
Solihull MBC,http://statistics.data.gov.uk/id/local-authority/00CT,Children & Education Services,Parkhall Academy Catering,Catering Provisions,D20000,10/11/2010,2821219,592.06,Brake Bros Foodservice Ltd,9490
Solihull MBC,http://statistics.data.gov.uk/id/local-authority/00CT,Children & Education Services,Lyndon,Catering Provisions,D20000,04/11/2010,2817513,590.06,Brake Bros Foodservice Ltd,9490
Solihull MBC,http://statistics.data.gov.uk/id/local-authority/00CT,Children & Education Services,Heart Of England,Catering Provisions,D20000,04/11/2010,2817609,472.51,Brake Bros Foodservice Ltd,9490
Solihull MBC,http://statistics.data.gov.uk/id/local-authority/00CT,Cultural & Related Services,Theatre Bar,Catering Provisions,D20000,02/11/2010,2812167,277.09,Brake Bros Foodservice Ltd,9490
Solihull MBC,http://statistics.data.gov.uk/id/local-authority/00CT,Children & Education Services,Parkhall Academy Catering,Catering Provisions,D20000,26/11/2010,2835561,595.34,Brake Bros Foodservice Ltd,9490
Solihull MBC,http://statistics.data.gov.uk/id/local-authority/00CT,Children & Education Services,Dorridge Jnr,Catering Provisions,D20000,26/11/2010,2835739,762.36,Brake Bros Foodservice Ltd,9490
Solihull MBC,http://statistics.data.gov.uk/id/local-authority/00CT,Children & Education Services,Light Hall,Catering Provisions,D20000,26/11/2010,2835743,538.63,Brake Bros Foodservice Ltd,9490
Solihull MBC,http://statistics.data.gov.uk/id/local-authority/00CT,Children & Education Services,Light Hall,Catering Provisions,D20000,26/11/2010,2835979,520.34,Brake Bros Foodservice Ltd,9490
Solihull MBC,http://statistics.data.gov.uk/id/local-authority/00CT,Children & Education Services,Parkhall Academy Catering,Catering Provisions,D20000,26/11/2010,2835971,826.61,Brake Bros Foodservice Ltd,9490
Solihull MBC,http://statistics.data.gov.uk/id/local-authority/00CT,Children & Education Services,Alderbrook,Catering Provisions,D20000,26/11/2010,2835738,829.27,Brake Bros Foodservice Ltd,9490
Solihull MBC,http://statistics.data.gov.uk/id/local-authority/00CT,Children & Education Services,Langley,Catering Provisions,D20000,26/11/2010,2835976,581.34,Brake Bros Foodservice Ltd,9490
Solihull MBC,http://statistics.data.gov.uk/id/local-authority/00CT,Children & Education Services,Parkhall Academy Catering,Catering Provisions,D20000,26/11/2010,2836260,935.55,Brake Bros Foodservice Ltd,9490
Solihull MBC,http://statistics.data.gov.uk/id/local-authority/00CT,Children & Education Services,Langley,Catering Provisions,D20000,26/11/2010,2836266,442.57,Brake Bros Foodservice Ltd,9490
Solihull MBC,http://statistics.data.gov.uk/id/local-authority/00CT,Children & Education Services,Arden,Catering Provisions,D20000,26/11/2010,2835975,586.16,Brake Bros Foodservice Ltd,9490
Solihull MBC,http://statistics.data.gov.uk/id/local-authority/00CT,Children & Education Services,Lode Heath,Catering Provisions,D20000,26/11/2010,2835744,530.5,Brake Bros Foodservice Ltd,9490
Solihull MBC,http://statistics.data.gov.uk/id/local-authority/00CT,Children & Education Services,Lyndon,Catering Provisions,D20000,26/11/2010,2835977,569.84,Brake Bros Foodservice Ltd,9490
Solihull MBC,http://statistics.data.gov.uk/id/local-authority/00CT,Children & Education Services,Alderbrook,Catering Provisions,D20000,26/11/2010,2836259,1128.34,Brake Bros Foodservice Ltd,9490
Solihull MBC,http://statistics.data.gov.uk/id/local-authority/00CT,Children & Education Services,Parkhall Academy Catering,Catering Provisions,D20000,26/11/2010,2836367,686.24,Brake Bros Foodservice Ltd,9490
Solihull MBC,http://statistics.data.gov.uk/id/local-authority/00CT,Children & Education Services,Parkhall Academy Catering,Catering Provisions,D20000,26/11/2010,2835972,625.94,Brake Bros Foodservice Ltd,9490
Solihull MBC,http://statistics.data.gov.uk/id/local-authority/00CT,Children & Education Services,Heart Of England,Catering Provisions,D20000,26/11/2010,2836262,688.75,Brake Bros Foodservice Ltd,9490
Solihull MBC,http://statistics.data.gov.uk/id/local-authority/00CT,Children & Education Services,Langley,Catering Provisions,D20000,26/11/2010,2836263,638.25,Brake Bros Foodservice Ltd,9490
Solihull MBC,http://statistics.data.gov.uk/id/local-authority/00CT,Children & Education Services,Smithswood,Catering Provisions,D20000,26/11/2010,2836264,545.98,Brake Bros Foodservice Ltd,9490
Solihull MBC,http://statistics.data.gov.uk/id/local-authority/00CT,Children & Education Services,Parkhall Academy Catering,Catering Provisions,D20000,26/11/2010,2835839,610.62,Brake Bros Foodservice Ltd,9490
Solihull MBC,http://statistics.data.gov.uk/id/local-authority/00CT,Children & Education Services,Alderbrook,Catering Provisions,D20000,26/11/2010,2836261,623.31,Brake Bros Foodservice Ltd,9490
Solihull MBC,http://statistics.data.gov.uk/id/local-authority/00CT,Children & Education Services,Langley,Catering Provisions,D20000,26/11/2010,2835741,634.15,Brake Bros Foodservice Ltd,9490
Solihull MBC,http://statistics.data.gov.uk/id/local-authority/00CT,Children & Education Services,Arden,Catering Provisions,D20000,26/11/2010,2835737,832.22,Brake Bros Foodservice Ltd,9490
Solihull MBC,http://statistics.data.gov.uk/id/local-authority/00CT,Children & Education Services,Light Hall,Catering Provisions,D20000,26/11/2010,2836368,515.8,Brake Bros Foodservice Ltd,9490
Solihull MBC,http://statistics.data.gov.uk/id/local-authority/00CT,Children & Education Services,Heart Of England,Catering Provisions,D20000,26/11/2010,2835973,691.43,Brake Bros Foodservice Ltd,9490
Solihull MBC,http://statistics.data.gov.uk/id/local-authority/00CT,Children & Education Services,Arden,Catering Provisions,D20000,26/11/2010,2835740,621.66,Brake Bros Foodservice Ltd,9490
Solihull MBC,http://statistics.data.gov.uk/id/local-authority/00CT,Children & Education Services,Langley,Catering Provisions,D20000,26/11/2010,2835974,574.34,Brake Bros Foodservice Ltd,9490
Solihull MBC,http://statistics.data.gov.uk/id/local-authority/00CT,Children & Education Services,Lyndon,Catering Provisions,D20000,26/11/2010,2835746,502.76,Brake Bros Foodservice Ltd,9490
Solihull MBC,http://statistics.data.gov.uk/id/local-authority/00CT,Children & Education Services,Heart Of England,Catering Provisions,D20000,26/11/2010,2835742,552.13,Brake Bros Foodservice Ltd,9490
Solihull MBC,http://statistics.data.gov.uk/id/local-authority/00CT,Children & Education Services,Lode Heath,Catering Provisions,D20000,26/11/2010,2836265,534.31,Brake Bros Foodservice Ltd,9490
Solihull MBC,http://statistics.data.gov.uk/id/local-authority/00CT,Children & Education Services,Lode Heath,Catering Provisions,D20000,26/11/2010,2835978,564.81,Brake Bros Foodservice Ltd,9490
Solihull MBC,http://statistics.data.gov.uk/id/local-authority/00CT,Children & Education Services,Arden,Catering Provisions,D20000,26/11/2010,2836267,511.24,Brake Bros Foodservice Ltd,9490
Solihull MBC,http://statistics.data.gov.uk/id/local-authority/00CT,Children & Education Services,Parkhall Academy Catering,Catering Provisions,D20000,26/11/2010,2835736,896.01,Brake Bros Foodservice Ltd,9490
Solihull MBC,http://statistics.data.gov.uk/id/local-authority/00CT,Children & Education Services,Heart Of England,Catering Provisions,D20000,26/11/2010,2835745,433.03,Brake Bros Foodservice Ltd,9490
Solihull MBC,http://statistics.data.gov.uk/id/local-authority/00CT,Children & Education Services,St Alphege Inf,Building Maint Day To Day,B31001,09/11/2010,2820193,342,Breese & Earle Electrical Services Ltd,9557
Solihull MBC,http://statistics.data.gov.uk/id/local-authority/00CT,Children & Education Services,St Alphege Inf,Building Maint Day To Day,B31001,09/11/2010,2820193,176.25,Breese & Earle Electrical Services Ltd,9557
Solihull MBC,http://statistics.data.gov.uk/id/local-authority/00CT,Children & Education Services,St Annes Regen,Contractors,Y21000,02/11/2010,2812092,646.25,British Gas,133203
Solihull MBC,http://statistics.data.gov.uk/id/local-authority/00CT,Central Services to the Public,Gas,General Creditors,S00000,25/11/2010,2834160,863.47,British Gas,133203
Solihull MBC,http://statistics.data.gov.uk/id/local-authority/00CT,Central Services to the Public,Gas,General Creditors,S00000,25/11/2010,2834157,5384.59,British Gas,133203
Solihull MBC,http://statistics.data.gov.uk/id/local-authority/00CT,Central Services to the Public,Gas,General Creditors,S00000,25/11/2010,2834158,14741.73,British Gas,133203
Solihull MBC,http://statistics.data.gov.uk/id/local-authority/00CT,Central Services to the Public,Gas,General Creditors,S00000,25/11/2010,2834158,6781.66,British Gas,133203
Solihull MBC,http://statistics.data.gov.uk/id/local-authority/00CT,Central Services to the Public,Gas,General Creditors,S00000,25/11/2010,2834157,65442.3,British Gas,133203
Solihull MBC,http://statistics.data.gov.uk/id/local-authority/00CT,Central Services to the Public,Gas,General Creditors,S00000,25/11/2010,2834160,251.88,British Gas,133203
Solihull MBC,http://statistics.data.gov.uk/id/local-authority/00CT,Central Services to the Public,Gas,General Creditors,S00000,23/11/2010,2831862,472.81,British Gas,133203
Solihull MBC,http://statistics.data.gov.uk/id/local-authority/00CT,Central Services to the Public,Gas,General Creditors,S00000,23/11/2010,2831771,-3295.3,British Gas,133203
Solihull MBC,http://statistics.data.gov.uk/id/local-authority/00CT,Central Services to the Public,Gas,General Creditors,S00000,23/11/2010,2831772,-2126.34,British Gas,133203
Solihull MBC,http://statistics.data.gov.uk/id/local-authority/00CT,Central Services to the Public,Social Care ICT,IT Equipment & Software,D32000,05/11/2010,2818227,606,British Telecommunications PLC,25251
Solihull MBC,http://statistics.data.gov.uk/id/local-authority/00CT,Children & Education Services,16+ (S24) 16-18 Years,Rents For Premises,B22000,04/11/2010,2816959,740.34,Bromford Corinthia Housing Association Ltd T/A Bromford Housing Group Ltd,60417
Solihull MBC,http://statistics.data.gov.uk/id/local-authority/00CT,Children & Education Services,16+ (S24) 16-18 Years,Rents For Premises,B22000,04/11/2010,2816958,185.08,Bromford Corinthia Housing Association Ltd T/A Bromford Housing Group Ltd,60417
Solihull MBC,http://statistics.data.gov.uk/id/local-authority/00CT,Children & Education Services,16+ (S24) 16-18 Years,Rents For Premises,B22000,04/11/2010,2816958,555.26,Bromford Corinthia Housing Association Ltd T/A Bromford Housing Group Ltd,60417
Solihull MBC,http://statistics.data.gov.uk/id/local-authority/00CT,Children & Education Services,Heart Of England,Capitation,D11001,19/11/2010,2830000,3100,Brook,88520
Solihull MBC,http://statistics.data.gov.uk/id/local-authority/00CT,Children & Education Services,Streetsbrook Inf PCP,Consultants,Y31000,17/11/2010,2826111,4612.24,Brown Matthews,215517
Solihull MBC,http://statistics.data.gov.uk/id/local-authority/00CT,Planning & Development Services,Neighbourhood Mgt Area 3,Strategic Highways Contract,E29200,15/11/2010,2824703,2189,Broxap Ltd,84252
Solihull MBC,http://statistics.data.gov.uk/id/local-authority/00CT,Children & Education Services,St Peter's,Capitation,D11001,15/11/2010,2824885,0.02,Brynteg Books,8974
Solihull MBC,http://statistics.data.gov.uk/id/local-authority/00CT,Children & Education Services,St Peter's,Capitation,D11001,15/11/2010,2824885,0.04,Brynteg Books,8974
Solihull MBC,http://statistics.data.gov.uk/id/local-authority/00CT,Children & Education Services,St Peter's,Capitation,D11001,15/11/2010,2824885,296.8,Brynteg Books,8974
Solihull MBC,http://statistics.data.gov.uk/id/local-authority/00CT,Children & Education Services,St Peter's,Capitation,D11001,15/11/2010,2824885,202.16,Brynteg Books,8974
Solihull MBC,http://statistics.data.gov.uk/id/local-authority/00CT,Children & Education Services,St Peter's,Capitation,D11001,15/11/2010,2824885,6.8,Brynteg Books,8974
Solihull MBC,http://statistics.data.gov.uk/id/local-authority/00CT,Children & Education Services,Archbishop Grimshaw,Capitation,D11001,01/11/2010,2811085,534.5,Brynteg Books (Winchcombe),8973
Solihull MBC,http://statistics.data.gov.uk/id/local-authority/00CT,Children & Education Services,Archbishop Grimshaw,Capitation,D11001,01/11/2010,2811085,51.68,Brynteg Books (Winchcombe),8973
Solihull MBC,http://statistics.data.gov.uk/id/local-authority/00CT,Children & Education Services,Archbishop Grimshaw,Capitation,D11001,01/11/2010,2811085,318.88,Brynteg Books (Winchcombe),8973
Solihull MBC,http://statistics.data.gov.uk/id/local-authority/00CT,Children & Education Services,St Peter's,Capitation,D11001,19/11/2010,2829898,63.74,Brynteg Books (Winchcombe),8973
Solihull MBC,http://statistics.data.gov.uk/id/local-authority/00CT,Children & Education Services,St Peter's,Capitation,D11001,19/11/2010,2829898,6.6,Brynteg Books (Winchcombe),8973
Solihull MBC,http://statistics.data.gov.uk/id/local-authority/00CT,Children & Education Services,St Peter's,Capitation,D11001,19/11/2010,2829898,103.15,Brynteg Books (Winchcombe),8973
Solihull MBC,http://statistics.data.gov.uk/id/local-authority/00CT,Children & Education Services,St Peter's,Capitation,D11001,19/11/2010,2829898,63.74,Brynteg Books (Winchcombe),8973
Solihull MBC,http://statistics.data.gov.uk/id/local-authority/00CT,Children & Education Services,St Peter's,Capitation,D11001,19/11/2010,2829898,361,Brynteg Books (Winchcombe),8973
Solihull MBC,http://statistics.data.gov.uk/id/local-authority/00CT,Children & Education Services,St Peter's,Capitation,D11001,19/11/2010,2829898,2.5,Brynteg Books (Winchcombe),8973
Solihull MBC,http://statistics.data.gov.uk/id/local-authority/00CT,Children & Education Services,St Peter's,Capitation,D11001,19/11/2010,2829898,63.74,Brynteg Books (Winchcombe),8973
Solihull MBC,http://statistics.data.gov.uk/id/local-authority/00CT,Children & Education Services,St Peter's,Capitation,D11001,19/11/2010,2829898,-0.6,Brynteg Books (Winchcombe),8973
Solihull MBC,http://statistics.data.gov.uk/id/local-authority/00CT,Children & Education Services,Tudor Grange,IT Equipment & Software,D32000,16/11/2010,2825539,2504.9,BT Business Direct Ltd,241969
Solihull MBC,http://statistics.data.gov.uk/id/local-authority/00CT,Children & Education Services,Lyndon,IT Equipment & Software,D32000,30/11/2010,2838201,1590,BT Business Direct Ltd,241969
Solihull MBC,http://statistics.data.gov.uk/id/local-authority/00CT,Children & Education Services,Lyndon,Consumables,D32907,30/11/2010,2838201,746,BT Business Direct Ltd,241969
Solihull MBC,http://statistics.data.gov.uk/id/local-authority/00CT,Children & Education Services,Lyndon,IT Equipment & Software,D32000,29/11/2010,2837431,575.1,BT Business Direct Ltd,241969
Solihull MBC,http://statistics.data.gov.uk/id/local-authority/00CT,Children & Education Services,Lyndon,IT Equipment & Software,D32000,23/11/2010,2831792,449.46,BT Business Direct Ltd,241969
Solihull MBC,http://statistics.data.gov.uk/id/local-authority/00CT,Central Services to the Public,BT - One Bill,General Creditors,S00000,16/11/2010,2825349,10318,BT Global Services,138961
Solihull MBC,http://statistics.data.gov.uk/id/local-authority/00CT,Central Services to the Public,BT - One Bill,General Creditors,S00000,16/11/2010,2825349,22.5,BT Global Services,138961
Solihull MBC,http://statistics.data.gov.uk/id/local-authority/00CT,Children & Education Services,Coppice Jnr,Building Maint Planned,B31002,23/11/2010,2831781,2485,Budget Roofing & Property Repairs,273673
Solihull MBC,http://statistics.data.gov.uk/id/local-authority/00CT,Children & Education Services,St Peter's Catering,Catering Provisions,D20000,08/11/2010,2818770,592,Bunzl Catering Supplies,53993
Solihull MBC,http://statistics.data.gov.uk/id/local-authority/00CT,Central Services to the Public,Contact Service Support,Clothing & Uniforms,D91000,05/11/2010,2818206,1436.97,Burlington Uniforms Ltd,9696
Solihull MBC,http://statistics.data.gov.uk/id/local-authority/00CT,Central Services to the Public,Contact Service Support,Clothing & Uniforms,D91000,24/11/2010,2832286,3087.56,Burlington Uniforms Ltd,9696
Solihull MBC,http://statistics.data.gov.uk/id/local-authority/00CT,Central Services to the Public,Contact Service Support,Clothing & Uniforms,D91000,24/11/2010,2832286,2186.88,Burlington Uniforms Ltd,9696
Solihull MBC,http://statistics.data.gov.uk/id/local-authority/00CT,Central Services to the Public,Contact Service Support,Clothing & Uniforms,D91000,05/11/2010,2818207,-524.53,Burlington Uniforms Ltd,9696
Solihull MBC,http://statistics.data.gov.uk/id/local-authority/00CT,Central Services to the Public,ICT Linux,IT Equipment & Software,D32000,24/11/2010,2832411,32813.68,Business Systems International,257608
Solihull MBC,http://statistics.data.gov.uk/id/local-authority/00CT,Children & Education Services,Langley Secondary,Professional Fees,D51000,04/11/2010,2816883,6486,BXL Services,228729
Solihull MBC,http://statistics.data.gov.uk/id/local-authority/00CT,Children & Education Services,Lyndon,Capitation,D11001,16/11/2010,2825524,495,BXL Services,228729
Solihull MBC,http://statistics.data.gov.uk/id/local-authority/00CT,Children & Education Services,Lanchester,Link Courses,D52003,29/11/2010,2837552,950,BXL Services,228729
Solihull MBC,http://statistics.data.gov.uk/id/local-authority/00CT,Children & Education Services,Hazel Oak,Link Courses,D52003,16/11/2010,2825131,1363,BXL Services,228729
Solihull MBC,http://statistics.data.gov.uk/id/local-authority/00CT,Children & Education Services,Lanchester,Link Courses,D52003,29/11/2010,2837568,7600,BXL Services,228729
Solihull MBC,http://statistics.data.gov.uk/id/local-authority/00CT,Children & Education Services,Ext. Fostering CIC,Foster Parents,D50000,02/11/2010,2811815,3817.96,By The Bridge,108127
Solihull MBC,http://statistics.data.gov.uk/id/local-authority/00CT,Children & Education Services,UASC U16,External Fostering,E29006,15/11/2010,2824646,3835.71,By The Bridge,108127
Solihull MBC,http://statistics.data.gov.uk/id/local-authority/00CT,Children & Education Services,UASC 16+,External Fostering,E29006,15/11/2010,2824652,3835.71,By The Bridge,108127
Solihull MBC,http://statistics.data.gov.uk/id/local-authority/00CT,Children & Education Services,UASC U16,External Fostering,E29006,15/11/2010,2824650,3835.71,By The Bridge,108127
Solihull MBC,http://statistics.data.gov.uk/id/local-authority/00CT,Children & Education Services,UASC 16+,External Fostering,E29006,15/11/2010,2824651,3835.71,By The Bridge,108127
Solihull MBC,http://statistics.data.gov.uk/id/local-authority/00CT,Children & Education Services,UASC 16+,External Fostering,E29006,15/11/2010,2824649,3835.71,By The Bridge,108127
Solihull MBC,http://statistics.data.gov.uk/id/local-authority/00CT,Children & Education Services,UASC U16,External Fostering,E29006,15/11/2010,2824645,3835.71,By The Bridge,108127
Solihull MBC,http://statistics.data.gov.uk/id/local-authority/00CT,Children & Education Services,UASC U16,External Fostering,E29006,15/11/2010,2824403,3835.71,By The Bridge,108127
Solihull MBC,http://statistics.data.gov.uk/id/local-authority/00CT,Children & Education Services,UASC U16,External Fostering,E29006,15/11/2010,2824647,3643.93,By The Bridge,108127
Solihull MBC,http://statistics.data.gov.uk/id/local-authority/00CT,Children & Education Services,Ext. Fostering CIC,Foster Parents,D50000,02/11/2010,2811782,3963.57,By The Bridge,108127
Solihull MBC,http://statistics.data.gov.uk/id/local-authority/00CT,Children & Education Services,Ext. Fostering CIC,Foster Parents,D50000,02/11/2010,2811781,3963.57,By The Bridge,108127
Solihull MBC,http://statistics.data.gov.uk/id/local-authority/00CT,Children & Education Services,16+ Childrens Placements,Ext Fostering Long Stay,D50101,01/11/2010,2810682,4331.14,By The Bridge,108127
Solihull MBC,http://statistics.data.gov.uk/id/local-authority/00CT,Children & Education Services,UASC 16+,External Fostering,E29006,15/11/2010,2824648,3835.71,By The Bridge,108127
Solihull MBC,http://statistics.data.gov.uk/id/local-authority/00CT,Children & Education Services,Ext. Fostering CIC,Foster Parents,D50000,02/11/2010,2811784,3565,By The Bridge,108127
Solihull MBC,http://statistics.data.gov.uk/id/local-authority/00CT,Children & Education Services,UASC 16+,External Fostering,E29006,15/11/2010,2824853,-2322.59,By The Bridge,108127
Solihull MBC,http://statistics.data.gov.uk/id/local-authority/00CT,Central Services to the Public,ICT: Corp Activities,IT Equipment & Software,D32000,19/11/2010,2830250,84.85,Bytes Technology Group,149549
Solihull MBC,http://statistics.data.gov.uk/id/local-authority/00CT,Highways & Transport Services,TH&E Service Developement,IT Equipment & Software,D32000,19/11/2010,2830250,167.24,Bytes Technology Group,149549
Solihull MBC,http://statistics.data.gov.uk/id/local-authority/00CT,Central Services to the Public,Telecommunication Support,IT Equipment & Software,D32000,19/11/2010,2830250,13.16,Bytes Technology Group,149549
Solihull MBC,http://statistics.data.gov.uk/id/local-authority/00CT,Central Services to the Public,PC Fund,IT Equipment & Software,D32000,19/11/2010,2830250,1170.68,Bytes Technology Group,149549
Solihull MBC,http://statistics.data.gov.uk/id/local-authority/00CT,Central Services to the Public,Telecommunication Support,IT Equipment & Software,D32000,19/11/2010,2830250,30.32,Bytes Technology Group,149549
Solihull MBC,http://statistics.data.gov.uk/id/local-authority/00CT,Environmental and Regulatory Services,Public Health Act Funeral,General Creditors,S00000,15/11/2010,2824877,749,C Bastock (Funeral Directors)Ltd,9719
Solihull MBC,http://statistics.data.gov.uk/id/local-authority/00CT,Children & Education Services,Langley Secondary,Contractors,Y21000,11/11/2010,2822857,6030,C M T Flooring,225853
Solihull MBC,http://statistics.data.gov.uk/id/local-authority/00CT,Children & Education Services,St Peter's,Capitation,D11001,02/11/2010,2811440,2059,C R Clarke,9021
Solihull MBC,http://statistics.data.gov.uk/id/local-authority/00CT,Children & Education Services,St Peter's,Capitation,D11001,02/11/2010,2811440,105,C R Clarke,9021
Solihull MBC,http://statistics.data.gov.uk/id/local-authority/00CT,Children & Education Services,Monkspath J&I,Building Maint Day To Day,B31001,15/11/2010,2824280,890,Camera One Limited,70631
Solihull MBC,http://statistics.data.gov.uk/id/local-authority/00CT,Children & Education Services,Coleshill Heath J&I,Building Maint Day To Day,B31001,24/11/2010,2832505,1380.63,Camera One Limited,70631
Solihull MBC,http://statistics.data.gov.uk/id/local-authority/00CT,Children & Education Services,Chuckles,Health & Safety,B43003,17/11/2010,2825807,695,Camera One Limited,70631
Solihull MBC,http://statistics.data.gov.uk/id/local-authority/00CT,Children & Education Services,Coleshill Heath J&I,Building Maint Day To Day,B31001,24/11/2010,2832505,-205.63,Camera One Limited,70631
Solihull MBC,http://statistics.data.gov.uk/id/local-authority/00CT,Children & Education Services,Hatchford Brook J&I,Building Maint Day To Day,B31001,25/11/2010,2834911,1950,Camera One Limited,70631
Solihull MBC,http://statistics.data.gov.uk/id/local-authority/00CT,Children & Education Services,Langley Arts & Sports Complex,Lettings,I20004,09/11/2010,2820352,270,Cancer Research UK,110879
Solihull MBC,http://statistics.data.gov.uk/id/local-authority/00CT,Children & Education Services,Langley Arts & Sports Complex,Lettings,I20004,09/11/2010,2820352,-226,Cancer Research UK,110879
Solihull MBC,http://statistics.data.gov.uk/id/local-authority/00CT,Children & Education Services,Langley Arts & Sports Complex,Lettings,I20004,09/11/2010,2820352,826,Cancer Research UK,110879
Solihull MBC,http://statistics.data.gov.uk/id/local-authority/00CT,Children & Education Services,Alderbrook,Photocopying,D40001,19/11/2010,2830124,2084.52,Canon (UK) Ltd,9772
Solihull MBC,http://statistics.data.gov.uk/id/local-authority/00CT,Central Services to the Public,ICT Linux,IT Equipment & Software,D32000,16/11/2010,2825482,995,Canvas Systems,246699
Solihull MBC,http://statistics.data.gov.uk/id/local-authority/00CT,Children & Education Services,Smith's Wood,IT Equipment & Software,D32000,17/11/2010,2825806,4000,Capita Business Services Ltd.,99513
Solihull MBC,http://statistics.data.gov.uk/id/local-authority/00CT,Children & Education Services,Lyndon,Software Licenses & Support,D32906,16/11/2010,2825515,4000,Capita Business Services Ltd.,99513
Solihull MBC,http://statistics.data.gov.uk/id/local-authority/00CT,Children & Education Services,Bentley Heath J&I,IT Equipment & Software,D32000,12/11/2010,2823856,530,Capita Children's Services,273222
Solihull MBC,http://statistics.data.gov.uk/id/local-authority/00CT,Children & Education Services,Hatchford Community Primary,Agency Staff: Teachers,A35001,09/11/2010,2820090,599.64,Capita Education Resourcing,61905
Solihull MBC,http://statistics.data.gov.uk/id/local-authority/00CT,Children & Education Services,16+ (S24) 16-18 Years,Rents For Premises,B22000,01/11/2010,2810819,7417.87,Care & Management Services Ltd,273213
Solihull MBC,http://statistics.data.gov.uk/id/local-authority/00CT,Children & Education Services,16+ (S24) 16-18 Years,Rents For Premises,B22000,01/11/2010,2810808,7417.87,Care & Management Services Ltd,273213
Solihull MBC,http://statistics.data.gov.uk/id/local-authority/00CT,Children & Education Services,Child Disability Dom Care,Clients Expenses,D62000,02/11/2010,2811833,561,Care Help Line (Solihull) Ltd,9791
Solihull MBC,http://statistics.data.gov.uk/id/local-authority/00CT,Children & Education Services,Child Disability Dom Care,Clients Expenses,D62000,02/11/2010,2811831,956,Care Help Line (Solihull) Ltd,9791
Solihull MBC,http://statistics.data.gov.uk/id/local-authority/00CT,Children & Education Services,Child Disability Dom Care,Clients Expenses,D62000,22/11/2010,2830719,1629,Care Help Line (Solihull) Ltd,9791
Solihull MBC,http://statistics.data.gov.uk/id/local-authority/00CT,Children & Education Services,Child Disability Dom Care,Clients Expenses,D62000,19/11/2010,2830238,510,Care Help Line (Solihull) Ltd,9791
Solihull MBC,http://statistics.data.gov.uk/id/local-authority/00CT,Children & Education Services,Lyndon,Building Maint Planned,B31002,09/11/2010,2820335,1655,Carpets Commercial Ltd,120856
Solihull MBC,http://statistics.data.gov.uk/id/local-authority/00CT,Children & Education Services,Lyndon,Building Maint Planned,B31002,09/11/2010,2820335,156,Carpets Commercial Ltd,120856
Solihull MBC,http://statistics.data.gov.uk/id/local-authority/00CT,Children & Education Services,Lyndon,Building Maint Planned,B31002,09/11/2010,2820335,495,Carpets Commercial Ltd,120856
Solihull MBC,http://statistics.data.gov.uk/id/local-authority/00CT,Children & Education Services,Alderbrook,Consumables,D32907,01/11/2010,2810065,1240.86,Cartridge World Solihull,90956
Solihull MBC,http://statistics.data.gov.uk/id/local-authority/00CT,Children & Education Services,Heart Of England,Agency Staff: Teachers,A35001,05/11/2010,2818101,833.44,Celsian,187038
Solihull MBC,http://statistics.data.gov.uk/id/local-authority/00CT,Children & Education Services,Heart Of England,Agency Staff: Teachers,A35001,05/11/2010,2818093,764,Celsian,187038
Solihull MBC,http://statistics.data.gov.uk/id/local-authority/00CT,Children & Education Services,Heart Of England,Agency Staff: Teachers,A35001,05/11/2010,2818095,955,Celsian,187038
Solihull MBC,http://statistics.data.gov.uk/id/local-authority/00CT,Children & Education Services,Heart Of England,Agency Staff: Teachers,A35001,23/11/2010,2831960,764,Celsian,187038
Solihull MBC,http://statistics.data.gov.uk/id/local-authority/00CT,Highways & Transport Services,Street Lighting Contract 1,Furniture & Equipment,D10000,03/11/2010,2812851,913.92,Cemex UK Materials Ltd,123427
Solihull MBC,http://statistics.data.gov.uk/id/local-authority/00CT,Central Services to the Public,Legal Services,Training,A32000,01/11/2010,2810862,-495,Central Law Training Ltd,208299
Solihull MBC,http://statistics.data.gov.uk/id/local-authority/00CT,Children & Education Services,UASC 18+,Other Contracted Services,E29000,08/11/2010,2818820,545.4,Centrion,241769
Solihull MBC,http://statistics.data.gov.uk/id/local-authority/00CT,Children & Education Services,UASC 18+,Clients Transport Costs,C21000,08/11/2010,2818619,48,Centrion,241769
Solihull MBC,http://statistics.data.gov.uk/id/local-authority/00CT,Children & Education Services,UASC 18+,Clients Transport Costs,C21000,08/11/2010,2818609,48,Centrion,241769
Solihull MBC,http://statistics.data.gov.uk/id/local-authority/00CT,Children & Education Services,UASC 18+,Clients Expenses,D62000,08/11/2010,2818585,207.4,Centrion,241769
Solihull MBC,http://statistics.data.gov.uk/id/local-authority/00CT,Children & Education Services,UASC 18+,Other Contracted Services,E29000,08/11/2010,2818684,256.1,Centrion,241769
Solihull MBC,http://statistics.data.gov.uk/id/local-authority/00CT,Children & Education Services,UASC 18+,Clients Expenses,D62000,05/11/2010,2818398,123.7,Centrion,241769
Solihull MBC,http://statistics.data.gov.uk/id/local-authority/00CT,Children & Education Services,UASC 18+,Other Contracted Services,E29000,08/11/2010,2818814,366.42,Centrion,241769
Solihull MBC,http://statistics.data.gov.uk/id/local-authority/00CT,Children & Education Services,UASC 18+,Other Contracted Services,E29000,08/11/2010,2818820,354.6,Centrion,241769
Solihull MBC,http://statistics.data.gov.uk/id/local-authority/00CT,Children & Education Services,UASC 18+,Other Contracted Services,E29000,08/11/2010,2818586,563.58,Centrion,241769
Solihull MBC,http://statistics.data.gov.uk/id/local-authority/00CT,Children & Education Services,UASC 18+,Other Contracted Services,E29000,08/11/2010,2818824,329.58,Centrion,241769
Solihull MBC,http://statistics.data.gov.uk/id/local-authority/00CT,Children & Education Services,UASC 18+,Clients Expenses,D62000,08/11/2010,2818609,20,Centrion,241769
Solihull MBC,http://statistics.data.gov.uk/id/local-authority/00CT,Children & Education Services,UASC 18+,Clients Expenses,D62000,05/11/2010,2818398,20,Centrion,241769
Solihull MBC,http://statistics.data.gov.uk/id/local-authority/00CT,Children & Education Services,UASC 18+,Other Contracted Services,E29000,05/11/2010,2818398,366.42,Centrion,241769
Solihull MBC,http://statistics.data.gov.uk/id/local-authority/00CT,Children & Education Services,UASC 18+,Other Contracted Services,E29000,08/11/2010,2818609,366.42,Centrion,241769
Solihull MBC,http://statistics.data.gov.uk/id/local-authority/00CT,Children & Education Services,UASC 18+,Other Contracted Services,E29000,08/11/2010,2818609,563.58,Centrion,241769
Solihull MBC,http://statistics.data.gov.uk/id/local-authority/00CT,Children & Education Services,UASC 18+,Clients Expenses,D62000,08/11/2010,2818609,103.7,Centrion,241769
Solihull MBC,http://statistics.data.gov.uk/id/local-authority/00CT,Children & Education Services,UASC 18+,Clients Expenses,D62000,08/11/2010,2818585,20,Centrion,241769
Solihull MBC,http://statistics.data.gov.uk/id/local-authority/00CT,Children & Education Services,UASC 18+,Clients Expenses,D62000,08/11/2010,2818619,20,Centrion,241769
Solihull MBC,http://statistics.data.gov.uk/id/local-authority/00CT,Children & Education Services,UASC 18+,Other Contracted Services,E29000,05/11/2010,2818399,356.58,Centrion,241769
Solihull MBC,http://statistics.data.gov.uk/id/local-authority/00CT,Children & Education Services,UASC 18+,Clients Expenses,D62000,08/11/2010,2818820,207.4,Centrion,241769
Solihull MBC,http://statistics.data.gov.uk/id/local-authority/00CT,Children & Education Services,UASC 18+,Clients Expenses,D62000,08/11/2010,2818684,207.4,Centrion,241769
Solihull MBC,http://statistics.data.gov.uk/id/local-authority/00CT,Children & Education Services,UASC 18+,Other Contracted Services,E29000,05/11/2010,2818399,366.42,Centrion,241769
Solihull MBC,http://statistics.data.gov.uk/id/local-authority/00CT,Children & Education Services,UASC 18+,Other Contracted Services,E29000,08/11/2010,2818619,63.58,Centrion,241769
Solihull MBC,http://statistics.data.gov.uk/id/local-authority/00CT,Children & Education Services,UASC 18+,Other Contracted Services,E29000,08/11/2010,2818684,393.9,Centrion,241769
Solihull MBC,http://statistics.data.gov.uk/id/local-authority/00CT,Children & Education Services,UASC 18+,Clients Transport Costs,C21000,05/11/2010,2818398,48,Centrion,241769
Solihull MBC,http://statistics.data.gov.uk/id/local-authority/00CT,Children & Education Services,UASC 18+,Other Contracted Services,E29000,05/11/2010,2818398,323.58,Centrion,241769
Solihull MBC,http://statistics.data.gov.uk/id/local-authority/00CT,Children & Education Services,UASC 18+,Clients Transport Costs,C21000,08/11/2010,2818585,48,Centrion,241769
Solihull MBC,http://statistics.data.gov.uk/id/local-authority/00CT,Children & Education Services,UASC 18+,Clients Transport Costs,C21000,05/11/2010,2818399,48,Centrion,241769
Solihull MBC,http://statistics.data.gov.uk/id/local-authority/00CT,Children & Education Services,UASC 18+,Other Contracted Services,E29000,08/11/2010,2818585,366.42,Centrion,241769
Solihull MBC,http://statistics.data.gov.uk/id/local-authority/00CT,Children & Education Services,UASC 18+,Other Contracted Services,E29000,08/11/2010,2818586,366.42,Centrion,241769
Solihull MBC,http://statistics.data.gov.uk/id/local-authority/00CT,Children & Education Services,UASC 18+,Other Contracted Services,E29000,08/11/2010,2818814,563.58,Centrion,241769
Solihull MBC,http://statistics.data.gov.uk/id/local-authority/00CT,Children & Education Services,UASC 18+,Other Contracted Services,E29000,08/11/2010,2818619,366.42,Centrion,241769
Solihull MBC,http://statistics.data.gov.uk/id/local-authority/00CT,Children & Education Services,UASC 18+,Other Contracted Services,E29000,08/11/2010,2818585,563.58,Centrion,241769
Solihull MBC,http://statistics.data.gov.uk/id/local-authority/00CT,Children & Education Services,UASC 18+,Other Contracted Services,E29000,08/11/2010,2818824,366.42,Centrion,241769
Solihull MBC,http://statistics.data.gov.uk/id/local-authority/00CT,Central Services to the Public,Green Travel Scheme,Other Fees,D52000,08/11/2010,2818907,14260.7,Centro,85433
Solihull MBC,http://statistics.data.gov.uk/id/local-authority/00CT,Children & Education Services,Secondary Transport,Clients Transport Costs,C21000,18/11/2010,2829754,721.35,Centro,85433
Solihull MBC,http://statistics.data.gov.uk/id/local-authority/00CT,Children & Education Services,Special Transport,Clients Transport Costs,C21000,18/11/2010,2829754,480.9,Centro,85433
Solihull MBC,http://statistics.data.gov.uk/id/local-authority/00CT,Central Services to the Public,Green Travel Scheme,Other Fees,D52000,18/11/2010,2829624,560.6,Centro,85433
Solihull MBC,http://statistics.data.gov.uk/id/local-authority/00CT,Children & Education Services,Chapel Fields Jnr,Photocopying,D40001,11/11/2010,2822853,1587.66,CF Asset,221711
Solihull MBC,http://statistics.data.gov.uk/id/local-authority/00CT,Children & Education Services,Lode Heath,Photocopying,D40001,30/11/2010,2838282,1475.13,CF Asset,221711
Solihull MBC,http://statistics.data.gov.uk/id/local-authority/00CT,Children & Education Services,Lode Heath,Photocopying,D40001,30/11/2010,2838281,733,CF Asset,221711
Solihull MBC,http://statistics.data.gov.uk/id/local-authority/00CT,Children & Education Services,Shirley Heath Jnr,Materials For Resale,D11202,11/11/2010,2821765,1182.5,CGP,60954
Solihull MBC,http://statistics.data.gov.uk/id/local-authority/00CT,Children & Education Services,Langley Secondary,Capitation,D11001,25/11/2010,2834407,3326,CGP,60954
Solihull MBC,http://statistics.data.gov.uk/id/local-authority/00CT,Central Services to the Public,Legal Services,Other Fees,D52000,19/11/2010,2830156,1850.63,Charles Bourne,284144
Solihull MBC,http://statistics.data.gov.uk/id/local-authority/00CT,Highways & Transport Services,Street Lighting Contract 1,Furniture & Equipment,D10000,26/11/2010,2835611,887.85,Charles Endirect Ltd,9885
Solihull MBC,http://statistics.data.gov.uk/id/local-authority/00CT,Highways & Transport Services,Street Lighting Contract 1,Furniture & Equipment,D10000,26/11/2010,2835613,1070.9,Charles Endirect Ltd,9885
Solihull MBC,http://statistics.data.gov.uk/id/local-authority/00CT,Highways & Transport Services,Street Lighting Contract 1,Furniture & Equipment,D10000,30/11/2010,2837710,2267.6,Charles Endirect Ltd,9885
Solihull MBC,http://statistics.data.gov.uk/id/local-authority/00CT,Children & Education Services,Lode Heath,Capitation,D11001,09/11/2010,2820087,1231,Charter Office Equipment Ltd,9886
Solihull MBC,http://statistics.data.gov.uk/id/local-authority/00CT,Highways & Transport Services,Street Lighting Contract 1,Strategic Highways Contract,E29200,02/11/2010,2812134,786,Charter Office Equipment Ltd,9886
Solihull MBC,http://statistics.data.gov.uk/id/local-authority/00CT,Central Services to the Public,Accountancy,Professional Fees,D51000,23/11/2010,2831832,8850,Charterfields Ltd,284585
Solihull MBC,http://statistics.data.gov.uk/id/local-authority/00CT,Children & Education Services,LDC Stores,Cleaning / Janitrl Materials,B40002,09/11/2010,2819999,487.78,Cherwell Packaging Ltd,69246
Solihull MBC,http://statistics.data.gov.uk/id/local-authority/00CT,Children & Education Services,Lode Heath,Visits & Pupil Activities,D52002,09/11/2010,2820091,1073.25,Chester Zoo,245911
Solihull MBC,http://statistics.data.gov.uk/id/local-authority/00CT,Children & Education Services,Light Hall,Catering Provisions,D20000,04/11/2010,2817741,560.95,Chicken Joes,216133
Solihull MBC,http://statistics.data.gov.uk/id/local-authority/00CT,Children & Education Services,Section 17 Smiths Wood,Client Sponsored Day Care,D62030,15/11/2010,2824866,621,Child First Nursery,134588
Solihull MBC,http://statistics.data.gov.uk/id/local-authority/00CT,Children & Education Services,Section 17 Chelmsley Wood,Client Sponsored Day Care,D62030,03/11/2010,2812743,810,Child First Nursery,134588
Solihull MBC,http://statistics.data.gov.uk/id/local-authority/00CT,Children & Education Services,Sustainability Cap,Grants,Y41000,11/11/2010,2823088,2340.11,Child First Nursery,134588
Solihull MBC,http://statistics.data.gov.uk/id/local-authority/00CT,Children & Education Services,Grants For Private Sector,Grant & Subscription (SCITT),D92000,29/11/2010,2837470,2778.3,Child First Nursery,134588
Solihull MBC,http://statistics.data.gov.uk/id/local-authority/00CT,Children & Education Services,2Yr Old Free E Learn/Care,Grant & Subscription (SCITT),D92000,18/11/2010,2829619,5141,Child First Nursery,134588
Solihull MBC,http://statistics.data.gov.uk/id/local-authority/00CT,Central Services to the Public,Procurement,Officers Transport Costs,C20000,05/11/2010,2818208,7.2,Chiltern Railways,9916
Solihull MBC,http://statistics.data.gov.uk/id/local-authority/00CT,Children & Education Services,Childrens Centres,Officers Transport Costs,C20000,05/11/2010,2818208,7.2,Chiltern Railways,9916
Solihull MBC,http://statistics.data.gov.uk/id/local-authority/00CT,Central Services to the Public,ICT: Corp Activities,Officers Transport Costs,C20000,05/11/2010,2818208,7.2,Chiltern Railways,9916
Solihull MBC,http://statistics.data.gov.uk/id/local-authority/00CT,Children & Education Services,Parent Engagement,Officers Transport Costs,C20000,05/11/2010,2818208,116,Chiltern Railways,9916
Solihull MBC,http://statistics.data.gov.uk/id/local-authority/00CT,Children & Education Services,Inclusion-Surestart Rev,Officers Transport Costs,C20000,05/11/2010,2818208,7.2,Chiltern Railways,9916
Solihull MBC,http://statistics.data.gov.uk/id/local-authority/00CT,Children & Education Services,Strategic Corp Parenting,Officers Transport Costs,C20000,05/11/2010,2818208,7.2,Chiltern Railways,9916
Solihull MBC,http://statistics.data.gov.uk/id/local-authority/00CT,Central Services to the Public,I & A Management,Officers Transport Costs,C20000,05/11/2010,2818208,7.2,Chiltern Railways,9916
Solihull MBC,http://statistics.data.gov.uk/id/local-authority/00CT,Children & Education Services,Inclusion-Surestart Rev,Officers Transport Costs,C20000,05/11/2010,2818208,7.2,Chiltern Railways,9916
Solihull MBC,http://statistics.data.gov.uk/id/local-authority/00CT,Central Services to the Public,Contact Service Support,Officers Transport Costs,C20000,05/11/2010,2818208,7.5,Chiltern Railways,9916
Solihull MBC,http://statistics.data.gov.uk/id/local-authority/00CT,Children & Education Services,ICIS,Officers Transport Costs,C20000,05/11/2010,2818208,5.6,Chiltern Railways,9916
Solihull MBC,http://statistics.data.gov.uk/id/local-authority/00CT,Environmental and Regulatory Services,Pest Control,Officers Transport Costs,C20000,05/11/2010,2818208,64,Chiltern Railways,9916
Solihull MBC,http://statistics.data.gov.uk/id/local-authority/00CT,Children & Education Services,Parent Engagement,Officers Transport Costs,C20000,05/11/2010,2818208,7.2,Chiltern Railways,9916
Solihull MBC,http://statistics.data.gov.uk/id/local-authority/00CT,Central Services to the Public,Contact Service Support,Officers Transport Costs,C20000,05/11/2010,2818208,53.4,Chiltern Railways,9916
Solihull MBC,http://statistics.data.gov.uk/id/local-authority/00CT,Cultural & Related Services,Phyiscal Activity,Officers Transport Costs,C20000,05/11/2010,2818208,122,Chiltern Railways,9916
Solihull MBC,http://statistics.data.gov.uk/id/local-authority/00CT,Cultural & Related Services,HLA / Management,Officers Transport Costs,C20000,05/11/2010,2818208,78,Chiltern Railways,9916
Solihull MBC,http://statistics.data.gov.uk/id/local-authority/00CT,Children & Education Services,Childrens Centres,Officers Transport Costs,C20000,05/11/2010,2818208,7.2,Chiltern Railways,9916
Solihull MBC,http://statistics.data.gov.uk/id/local-authority/00CT,Central Services to the Public,Postage Pool Post Room,Officers Transport Costs,C20000,05/11/2010,2818208,1260,Chiltern Railways,9916
Solihull MBC,http://statistics.data.gov.uk/id/local-authority/00CT,Central Services to the Public,I & A Management,Officers Transport Costs,C20000,05/11/2010,2818208,7.2,Chiltern Railways,9916
Solihull MBC,http://statistics.data.gov.uk/id/local-authority/00CT,Central Services to the Public,Procurement,Officers Transport Costs,C20000,05/11/2010,2818208,7.2,Chiltern Railways,9916
Solihull MBC,http://statistics.data.gov.uk/id/local-authority/00CT,Central Services to the Public,Postage Pool Post Room,Officers Transport Costs,C20000,05/11/2010,2818208,1260,Chiltern Railways,9916
Solihull MBC,http://statistics.data.gov.uk/id/local-authority/00CT,Cultural & Related Services,HLA / Management,Officers Transport Costs,C20000,05/11/2010,2818208,45.7,Chiltern Railways,9916
Solihull MBC,http://statistics.data.gov.uk/id/local-authority/00CT,Corporate & Democratic Core,Members Expenses,Officers Transport Costs,C20000,05/11/2010,2818208,7.2,Chiltern Railways,9916
Solihull MBC,http://statistics.data.gov.uk/id/local-authority/00CT,Central Services to the Public,Contact Service Support,Officers Transport Costs,C20000,05/11/2010,2818208,7.5,Chiltern Railways,9916
Solihull MBC,http://statistics.data.gov.uk/id/local-authority/00CT,Children & Education Services,KS3 Cent Co-Ord - 23,Officers Transport Costs,C20000,05/11/2010,2818208,7.2,Chiltern Railways,9916
Solihull MBC,http://statistics.data.gov.uk/id/local-authority/00CT,Children & Education Services,Market Facil-S Start Rev,Officers Transport Costs,C20000,05/11/2010,2818208,5.6,Chiltern Railways,9916
Solihull MBC,http://statistics.data.gov.uk/id/local-authority/00CT,Central Services to the Public,Benefits Specific Grants,Officers Transport Costs,C20000,05/11/2010,2818208,7.2,Chiltern Railways,9916
Solihull MBC,http://statistics.data.gov.uk/id/local-authority/00CT,Highways & Transport Services,Civil Parking Enforcement,IT Equipment & Software,D32000,01/11/2010,2810694,1090,Chipside Ltd,207159
Solihull MBC,http://statistics.data.gov.uk/id/local-authority/00CT,Children & Education Services,St Alphege Jnr,Other Fees,D52000,11/11/2010,2821668,500,Christine Dainty Solutions,138196
Solihull MBC,http://statistics.data.gov.uk/id/local-authority/00CT,Children & Education Services,Oak Cottage J&I,IT Equipment & Software,D32000,04/11/2010,2816982,500,Christine Dainty Solutions,138196
Solihull MBC,http://statistics.data.gov.uk/id/local-authority/00CT,Children & Education Services,Knowle J&I,Professional Fees,D51000,16/11/2010,2825663,500,Christine Dainty Solutions,138196
Solihull MBC,http://statistics.data.gov.uk/id/local-authority/00CT,Children & Education Services,Marston Green Jnr,Alarms,B43002,30/11/2010,2837866,907.67,Chubb Electronic Security Ltd,9929
Solihull MBC,http://statistics.data.gov.uk/id/local-authority/00CT,Children & Education Services,St Anne's J&I,Photocopying,D40001,24/11/2010,2832334,658.67,Churchill Office Solutions Ltd,12551
Solihull MBC,http://statistics.data.gov.uk/id/local-authority/00CT,Children & Education Services,Our Lady Wayside J&I,Photocopying,D40001,08/11/2010,2819702,455.1,Cit Vendor Finance (UK) Ltd,109763
Solihull MBC,http://statistics.data.gov.uk/id/local-authority/00CT,Children & Education Services,Sharmans Cross Jnr,Photocopying,D40001,18/11/2010,2829538,487.03,Cit Vendor Finance (UK) Ltd,109763
Solihull MBC,http://statistics.data.gov.uk/id/local-authority/00CT,Central Services to the Public,ICT Linux,Training,A32000,22/10/2010,PC80881,578,City Inn Manchester,Purchase Card Supplier
Solihull MBC,http://statistics.data.gov.uk/id/local-authority/00CT,Children & Education Services,Primary Transport,Transport-Contract Hire,C30000,04/11/2010,2816994,10140.64,Claribel Coaches,9959
Solihull MBC,http://statistics.data.gov.uk/id/local-authority/00CT,Children & Education Services,Secondary Transport,Transport-Contract Hire,C30000,11/11/2010,2821782,15302.05,Claribel Coaches,9959
Solihull MBC,http://statistics.data.gov.uk/id/local-authority/00CT,Children & Education Services,Swimming,Transport-Contract Hire,C30000,04/11/2010,2816994,2161.12,Claribel Coaches,9959
Solihull MBC,http://statistics.data.gov.uk/id/local-authority/00CT,Children & Education Services,Lyndon,Visits & Pupil Activities,D52002,16/11/2010,2825523,1225,Claribel Coaches,9959
Solihull MBC,http://statistics.data.gov.uk/id/local-authority/00CT,Children & Education Services,Langley J&I,Visits & Pupil Activities,D52002,24/11/2010,2832178,715,Claribel Coaches,9959
Solihull MBC,http://statistics.data.gov.uk/id/local-authority/00CT,Corporate & Democratic Core,Year Book & Diary,Printing,D40000,29/11/2010,2837340,1372,Clarity Print Ltd,9960
Solihull MBC,http://statistics.data.gov.uk/id/local-authority/00CT,Children & Education Services,Residential Smiths Wood,Other Contracted Services,E29000,09/11/2010,2820115,14584,Clifford House,9978
Solihull MBC,http://statistics.data.gov.uk/id/local-authority/00CT,Children & Education Services,UASC 16+,External Fostering,E29006,02/11/2010,2812249,3604,Clifford House,9978
Solihull MBC,http://statistics.data.gov.uk/id/local-authority/00CT,Children & Education Services,16+ Childrens Placements,Other Contracted Services,E29000,01/11/2010,2810874,10004,Clifford House,9978
Solihull MBC,http://statistics.data.gov.uk/id/local-authority/00CT,Children & Education Services,Residential CIC,Other Contracted Services,E29000,05/11/2010,2818189,9000,Clifford House,9978
Solihull MBC,http://statistics.data.gov.uk/id/local-authority/00CT,Children & Education Services,Residential CIC,Other Contracted Services,E29000,05/11/2010,2818156,9000,Clifford House,9978
Solihull MBC,http://statistics.data.gov.uk/id/local-authority/00CT,Children & Education Services,Residential CIC,Other Contracted Services,E29000,02/11/2010,2812049,9000,Clifford House,9978
Solihull MBC,http://statistics.data.gov.uk/id/local-authority/00CT,Children & Education Services,Residential CIC,Other Contracted Services,E29000,02/11/2010,2812050,10543.4,Clifford House,9978
Solihull MBC,http://statistics.data.gov.uk/id/local-authority/00CT,Children & Education Services,UASC 16+,External Fostering,E29006,02/11/2010,2812251,3604,Clifford House,9978
Solihull MBC,http://statistics.data.gov.uk/id/local-authority/00CT,Children & Education Services,UASC 16+,External Fostering,E29006,29/11/2010,2837142,3604,Clifford House,9978
Solihull MBC,http://statistics.data.gov.uk/id/local-authority/00CT,Children & Education Services,Residential CIC,Other Contracted Services,E29000,29/11/2010,2836740,3238,Clifford House,9978
Solihull MBC,http://statistics.data.gov.uk/id/local-authority/00CT,Children & Education Services,UASC 16+,External Fostering,E29006,29/11/2010,2837205,3604,Clifford House,9978
Solihull MBC,http://statistics.data.gov.uk/id/local-authority/00CT,Children & Education Services,16+ Childrens Placements,Other Contracted Services,E29000,18/11/2010,2829291,10004,Clifford House,9978
Solihull MBC,http://statistics.data.gov.uk/id/local-authority/00CT,Children & Education Services,UASC 16+,External Fostering,E29006,29/11/2010,2837595,-598.52,Clifford House,9978
Solihull MBC,http://statistics.data.gov.uk/id/local-authority/00CT,Children & Education Services,St Patrick's CE J&I,Building Maint Planned,B31002,04/11/2010,2816983,3472,Close Circuit Security Services Ltd,90851
Solihull MBC,http://statistics.data.gov.uk/id/local-authority/00CT,Children & Education Services,Parkhall Academy Catering,Catering Provisions,D20000,01/11/2010,2810631,494.86,Coca-Cola Enterprises Ltd,9994
Solihull MBC,http://statistics.data.gov.uk/id/local-authority/00CT,Children & Education Services,Parkhall Academy Catering,Catering Provisions,D20000,30/11/2010,2837726,458.98,Coca-Cola Enterprises Ltd,9994
Solihull MBC,http://statistics.data.gov.uk/id/local-authority/00CT,Adult Social Care,Appointee Spend- I-Proc,General Creditors,S00000,05/11/2010,2818183,563.58,Cole Valley Care Limited,120815
Solihull MBC,http://statistics.data.gov.uk/id/local-authority/00CT,Central Services to the Public,Community Initiatives Fund,Grant & Subscription (SCITT),D92000,18/11/2010,2829617,18750,Colebridge Trust,93475
Solihull MBC,http://statistics.data.gov.uk/id/local-authority/00CT,Central Services to the Public,Communications Unit,Postage & Courier Services,D43000,30/11/2010,2838333,2250,Colebridge Trust,93475
Solihull MBC,http://statistics.data.gov.uk/id/local-authority/00CT,Children & Education Services,Special Transport,Transport-Contract Hire,C30000,09/11/2010,2820287,1200,Coleshill Cars Ltd,10006
Solihull MBC,http://statistics.data.gov.uk/id/local-authority/00CT,Children & Education Services,Special Transport,Transport-Contract Hire,C30000,09/11/2010,2820297,1200,Coleshill Cars Ltd,10006
Solihull MBC,http://statistics.data.gov.uk/id/local-authority/00CT,Central Services to the Public,Car Loans Raised,Other Long Term Assets,Q42000,05/11/2010,2818210,5899,Colliers,54189
Solihull MBC,http://statistics.data.gov.uk/id/local-authority/00CT,Central Services to the Public,ICT: Data Centre,IT Equipment & Software,D32000,02/11/2010,2812053,740,Comcen Computer Supplies Ltd,121786
Solihull MBC,http://statistics.data.gov.uk/id/local-authority/00CT,Children & Education Services,Special Transport,Extra District Transport,C30002,04/11/2010,2817002,1496,Community Transport,10033
Solihull MBC,http://statistics.data.gov.uk/id/local-authority/00CT,Children & Education Services,UASC 16+,External Fostering,E29006,15/11/2010,2824952,3095.35,Compass Childrens Services Ltd,87908
Solihull MBC,http://statistics.data.gov.uk/id/local-authority/00CT,Children & Education Services,UASC 16+,External Fostering,E29006,15/11/2010,2824954,3310.8,Compass Childrens Services Ltd,87908
Solihull MBC,http://statistics.data.gov.uk/id/local-authority/00CT,Children & Education Services,UASC U16,External Fostering,E29006,02/11/2010,2812256,3088.5,Compass Childrens Services Ltd,87908
Solihull MBC,http://statistics.data.gov.uk/id/local-authority/00CT,Children & Education Services,UASC 16+,External Fostering,E29006,02/11/2010,2812260,3204,Compass Childrens Services Ltd,87908
Solihull MBC,http://statistics.data.gov.uk/id/local-authority/00CT,Children & Education Services,UASC 16+,Clients Expenses,D62000,02/11/2010,2812260,25,Compass Childrens Services Ltd,87908
Solihull MBC,http://statistics.data.gov.uk/id/local-authority/00CT,Children & Education Services,UASC U16,External Fostering,E29006,02/11/2010,2812252,3025.46,Compass Childrens Services Ltd,87908
Solihull MBC,http://statistics.data.gov.uk/id/local-authority/00CT,Children & Education Services,UASC U16,External Fostering,E29006,15/11/2010,2824949,3126.31,Compass Childrens Services Ltd,87908
Solihull MBC,http://statistics.data.gov.uk/id/local-authority/00CT,Children & Education Services,UASC 16+,External Fostering,E29006,15/11/2010,2824953,3095.35,Compass Childrens Services Ltd,87908
Solihull MBC,http://statistics.data.gov.uk/id/local-authority/00CT,Children & Education Services,UASC 16+,External Fostering,E29006,02/11/2010,2812259,2995.5,Compass Childrens Services Ltd,87908
Solihull MBC,http://statistics.data.gov.uk/id/local-authority/00CT,Children & Education Services,UASC U16,External Fostering,E29006,15/11/2010,2824950,3095.35,Compass Childrens Services Ltd,87908
Solihull MBC,http://statistics.data.gov.uk/id/local-authority/00CT,Children & Education Services,UASC U16,External Fostering,E29006,15/11/2010,2824951,3191.45,Compass Childrens Services Ltd,87908
Solihull MBC,http://statistics.data.gov.uk/id/local-authority/00CT,Children & Education Services,16+ Childrens Placements,Ext Fostering Long Stay,D50101,09/11/2010,2820114,3204,Compass Childrens Services Ltd,87908
Solihull MBC,http://statistics.data.gov.uk/id/local-authority/00CT,Children & Education Services,UASC 16+,Clients Expenses,D62000,15/11/2010,2824954,20,Compass Childrens Services Ltd,87908
Solihull MBC,http://statistics.data.gov.uk/id/local-authority/00CT,Children & Education Services,UASC 16+,External Fostering,E29006,02/11/2010,2812257,2995.5,Compass Childrens Services Ltd,87908
Solihull MBC,http://statistics.data.gov.uk/id/local-authority/00CT,Children & Education Services,UASC U16,External Fostering,E29006,02/11/2010,2812255,2995.5,Compass Childrens Services Ltd,87908
Solihull MBC,http://statistics.data.gov.uk/id/local-authority/00CT,Children & Education Services,16+ Childrens Placements,Ext Fostering Long Stay,D50101,19/11/2010,2830274,3310.8,Compass Childrens Services Ltd,87908
Solihull MBC,http://statistics.data.gov.uk/id/local-authority/00CT,Children & Education Services,16+ Childrens Placements,Ext Fostering Long Stay,D50101,18/11/2010,2829706,3310.8,Compass Childrens Services Ltd,87908
Solihull MBC,http://statistics.data.gov.uk/id/local-authority/00CT,Children & Education Services,16+ Childrens Placements,Ext Fostering Long Stay,D50101,19/11/2010,2830271,1495.2,Compass Childrens Services Ltd,87908
Solihull MBC,http://statistics.data.gov.uk/id/local-authority/00CT,Children & Education Services,St Peter's,IT Equipment & Software,D32000,09/11/2010,2820454,19,Complete Office Solutions(UK) Ltd,280957
Solihull MBC,http://statistics.data.gov.uk/id/local-authority/00CT,Children & Education Services,St Peter's,IT Equipment & Software,D32000,09/11/2010,2820454,14.9,Complete Office Solutions(UK) Ltd,280957
Solihull MBC,http://statistics.data.gov.uk/id/local-authority/00CT,Children & Education Services,St Peter's,IT Equipment & Software,D32000,09/11/2010,2820454,21,Complete Office Solutions(UK) Ltd,280957
Solihull MBC,http://statistics.data.gov.uk/id/local-authority/00CT,Children & Education Services,St Peter's,IT Equipment & Software,D32000,09/11/2010,2820454,33,Complete Office Solutions(UK) Ltd,280957
Solihull MBC,http://statistics.data.gov.uk/id/local-authority/00CT,Children & Education Services,St Peter's,IT Equipment & Software,D32000,09/11/2010,2820454,75,Complete Office Solutions(UK) Ltd,280957
Solihull MBC,http://statistics.data.gov.uk/id/local-authority/00CT,Children & Education Services,St Peter's,IT Equipment & Software,D32000,09/11/2010,2820454,42,Complete Office Solutions(UK) Ltd,280957
Solihull MBC,http://statistics.data.gov.uk/id/local-authority/00CT,Children & Education Services,St Peter's,IT Equipment & Software,D32000,09/11/2010,2820454,157,Complete Office Solutions(UK) Ltd,280957
Solihull MBC,http://statistics.data.gov.uk/id/local-authority/00CT,Children & Education Services,St Peter's,IT Equipment & Software,D32000,09/11/2010,2820454,774,Complete Office Solutions(UK) Ltd,280957
Solihull MBC,http://statistics.data.gov.uk/id/local-authority/00CT,Children & Education Services,St Peter's,IT Equipment & Software,D32000,30/11/2010,2838347,13.5,Complete Office Solutions(UK) Ltd,280957
Solihull MBC,http://statistics.data.gov.uk/id/local-authority/00CT,Children & Education Services,St Peter's,IT Equipment & Software,D32000,30/11/2010,2838347,13.5,Complete Office Solutions(UK) Ltd,280957
Solihull MBC,http://statistics.data.gov.uk/id/local-authority/00CT,Children & Education Services,St Peter's,IT Equipment & Software,D32000,30/11/2010,2838347,14.9,Complete Office Solutions(UK) Ltd,280957
Solihull MBC,http://statistics.data.gov.uk/id/local-authority/00CT,Children & Education Services,St Peter's,IT Equipment & Software,D32000,30/11/2010,2838347,472,Complete Office Solutions(UK) Ltd,280957
Solihull MBC,http://statistics.data.gov.uk/id/local-authority/00CT,Children & Education Services,St Peter's,IT Equipment & Software,D32000,30/11/2010,2838347,27,Complete Office Solutions(UK) Ltd,280957
Solihull MBC,http://statistics.data.gov.uk/id/local-authority/00CT,Children & Education Services,Heart Of England,Building Maint Day To Day,B31001,11/11/2010,2822805,1533,Complete Window & Door Ltd,281565
Solihull MBC,http://statistics.data.gov.uk/id/local-authority/00CT,Children & Education Services,George Fentham J&I,Cleaning Contracts,B40001,01/11/2010,2811109,480.6,Connaught Cleaning Services Limited,109202
Solihull MBC,http://statistics.data.gov.uk/id/local-authority/00CT,Children & Education Services,George Fentham J&I,Cleaning Contracts,B40001,01/11/2010,2811110,640.8,Connaught Cleaning Services Limited,109202
Solihull MBC,http://statistics.data.gov.uk/id/local-authority/00CT,Children & Education Services,George Fentham J&I,Cleaning Contracts,B40001,01/11/2010,2811108,640.8,Connaught Cleaning Services Limited,109202
Solihull MBC,http://statistics.data.gov.uk/id/local-authority/00CT,Central Services to the Public,Occupational Health,Other Contracted Services,E29000,25/11/2010,2835106,1600.35,Connaught Compliance Services Ltd,284917
Solihull MBC,http://statistics.data.gov.uk/id/local-authority/00CT,Central Services to the Public,Council House Complex,Cleaning Contracts,B40001,01/11/2010,2810644,1960.82,Connaught Environmental Ltd,244613
Solihull MBC,http://statistics.data.gov.uk/id/local-authority/00CT,Central Services to the Public,21 Poplar Rd,Cleaning Contracts,B40001,22/11/2010,2830695,846.26,Connaught Environmental Ltd,244613
Solihull MBC,http://statistics.data.gov.uk/id/local-authority/00CT,Central Services to the Public,Chelmsley Wood T/Centre,Cleaning Contracts,B40001,22/11/2010,2830695,2307.99,Connaught Environmental Ltd,244613
Solihull MBC,http://statistics.data.gov.uk/id/local-authority/00CT,Planning & Development Services,Small Business Units,Cleaning Contracts,B40001,22/11/2010,2830695,230.8,Connaught Environmental Ltd,244613
Solihull MBC,http://statistics.data.gov.uk/id/local-authority/00CT,Planning & Development Services,Small Business Units,Cleaning Contracts,B40001,22/11/2010,2830695,230.8,Connaught Environmental Ltd,244613
Solihull MBC,http://statistics.data.gov.uk/id/local-authority/00CT,Cultural & Related Services,Knowle Library,Cleaning Contracts,B40001,22/11/2010,2830695,423.14,Connaught Environmental Ltd,244613
Solihull MBC,http://statistics.data.gov.uk/id/local-authority/00CT,Children & Education Services,Childrens Contact Team,Cleaning Contracts,B40001,22/11/2010,2830695,1038.6,Connaught Environmental Ltd,244613
Solihull MBC,http://statistics.data.gov.uk/id/local-authority/00CT,Cultural & Related Services,Shirley Library,Cleaning Contracts,B40001,22/11/2010,2830695,423.13,Connaught Environmental Ltd,244613
Solihull MBC,http://statistics.data.gov.uk/id/local-authority/00CT,Planning & Development Services,Small Business Units,Cleaning Contracts,B40001,22/11/2010,2830695,653.93,Connaught Environmental Ltd,244613
Solihull MBC,http://statistics.data.gov.uk/id/local-authority/00CT,Cultural & Related Services,Hobs Moat Library,Cleaning Contracts,B40001,22/11/2010,2830695,423.13,Connaught Environmental Ltd,244613
Solihull MBC,http://statistics.data.gov.uk/id/local-authority/00CT,Children & Education Services,Adoption Team,Cleaning Contracts,B40001,22/11/2010,2830695,346.2,Connaught Environmental Ltd,244613
Solihull MBC,http://statistics.data.gov.uk/id/local-authority/00CT,Central Services to the Public,Council House Complex,Cleaning Contracts,B40001,22/11/2010,2830695,6731.64,Connaught Environmental Ltd,244613
Solihull MBC,http://statistics.data.gov.uk/id/local-authority/00CT,Highways & Transport Services,Lode Lane Ms Car Pk,Cleaning Contracts,B40001,22/11/2010,2830695,57.7,Connaught Environmental Ltd,244613
Solihull MBC,http://statistics.data.gov.uk/id/local-authority/00CT,Cultural & Related Services,Castle Bromwich Library,Cleaning Contracts,B40001,22/11/2010,2830695,230.8,Connaught Environmental Ltd,244613
Solihull MBC,http://statistics.data.gov.uk/id/local-authority/00CT,Cultural & Related Services,Dickens Heath Library,Cleaning Contracts,B40001,22/11/2010,2830695,346.2,Connaught Environmental Ltd,244613
Solihull MBC,http://statistics.data.gov.uk/id/local-authority/00CT,Children & Education Services,Disability Team,Cleaning Contracts,B40001,22/11/2010,2830695,423.13,Connaught Environmental Ltd,244613
Solihull MBC,http://statistics.data.gov.uk/id/local-authority/00CT,Children & Education Services,UASC Team,Cleaning Contracts,B40001,22/11/2010,2830695,423.13,Connaught Environmental Ltd,244613
Solihull MBC,http://statistics.data.gov.uk/id/local-authority/00CT,Planning & Development Services,Small Business Units,Cleaning Contracts,B40001,22/11/2010,2830695,134.63,Connaught Environmental Ltd,244613
Solihull MBC,http://statistics.data.gov.uk/id/local-authority/00CT,Planning & Development Services,Small Business Units,Cleaning Contracts,B40001,22/11/2010,2830695,230.8,Connaught Environmental Ltd,244613
Solihull MBC,http://statistics.data.gov.uk/id/local-authority/00CT,Children & Education Services,Jubilee House,Cleaning Contracts,B40001,22/11/2010,2830695,423.13,Connaught Environmental Ltd,244613
Solihull MBC,http://statistics.data.gov.uk/id/local-authority/00CT,Environmental and Regulatory Services,Bereavement Services,Cleaning Contracts,B40001,29/11/2010,2837375,443.13,Connaught Environmental Ltd,244613
Solihull MBC,http://statistics.data.gov.uk/id/local-authority/00CT,Cultural & Related Services,Hampton In Arden Library,Cleaning Contracts,B40001,22/11/2010,2830695,115.4,Connaught Environmental Ltd,244613
Solihull MBC,http://statistics.data.gov.uk/id/local-authority/00CT,Cultural & Related Services,Marston Green Library,Cleaning Contracts,B40001,22/11/2010,2830695,115.4,Connaught Environmental Ltd,244613
Solihull MBC,http://statistics.data.gov.uk/id/local-authority/00CT,Central Services to the Public,Council House Complex,Cleaning Contracts,B40001,22/11/2010,2830695,1538.66,Connaught Environmental Ltd,244613
Solihull MBC,http://statistics.data.gov.uk/id/local-authority/00CT,Environmental and Regulatory Services,Bereavement Services,Cleaning Contracts,B40001,29/11/2010,2837374,443.13,Connaught Environmental Ltd,244613
Solihull MBC,http://statistics.data.gov.uk/id/local-authority/00CT,Central Services to the Public,142 Lode Lane,Cleaning Contracts,B40001,22/11/2010,2830695,423.13,Connaught Environmental Ltd,244613
Solihull MBC,http://statistics.data.gov.uk/id/local-authority/00CT,Central Services to the Public,Keepers Lodge,Cleaning Contracts,B40001,22/11/2010,2830695,1384.79,Connaught Environmental Ltd,244613
Solihull MBC,http://statistics.data.gov.uk/id/local-authority/00CT,Cultural & Related Services,Olton Library,Cleaning Contracts,B40001,22/11/2010,2830695,230.8,Connaught Environmental Ltd,244613
Solihull MBC,http://statistics.data.gov.uk/id/local-authority/00CT,Cultural & Related Services,Balsall Common Library,Cleaning Contracts,B40001,22/11/2010,2830695,423.13,Connaught Environmental Ltd,244613
Solihull MBC,http://statistics.data.gov.uk/id/local-authority/00CT,Adult Social Care,Care Trust Facilities,Cleaning Contracts,B40001,22/11/2010,2830694,6808.57,Connaught Environmental Ltd,244613
Solihull MBC,http://statistics.data.gov.uk/id/local-authority/00CT,Cultural & Related Services,Library Square Complex,Cleaning Contracts,B40001,22/11/2010,2830695,4385.18,Connaught Environmental Ltd,244613
Solihull MBC,http://statistics.data.gov.uk/id/local-authority/00CT,Cultural & Related Services,Meriden Library,Cleaning Contracts,B40001,22/11/2010,2830695,153.87,Connaught Environmental Ltd,244613
Solihull MBC,http://statistics.data.gov.uk/id/local-authority/00CT,Cultural & Related Services,Kingshurst Library,Cleaning Contracts,B40001,22/11/2010,2830695,230.8,Connaught Environmental Ltd,244613
Solihull MBC,http://statistics.data.gov.uk/id/local-authority/00CT,Children & Education Services,Childrens Contact Team,Cleaning Contracts,B40001,22/11/2010,2830695,846.26,Connaught Environmental Ltd,244613
Solihull MBC,http://statistics.data.gov.uk/id/local-authority/00CT,Corporate & Democratic Core,Civic Suite,Cleaning Contracts,B40001,22/11/2010,2830695,1538.66,Connaught Environmental Ltd,244613
Solihull MBC,http://statistics.data.gov.uk/id/local-authority/00CT,Children & Education Services,Heart Of England,Agency Staff: Teachers,A35001,11/11/2010,2822804,540,Connex Holdings Ltd,185358
Solihull MBC,http://statistics.data.gov.uk/id/local-authority/00CT,Children & Education Services,Forest Oak,Agency Staff: Teachers,A35001,04/11/2010,2816837,475,Connex Holdings Ltd,185358
Solihull MBC,http://statistics.data.gov.uk/id/local-authority/00CT,Children & Education Services,Forest Oak,Agency Staff: Teachers,A35001,04/11/2010,2816834,475,Connex Holdings Ltd,185358
Solihull MBC,http://statistics.data.gov.uk/id/local-authority/00CT,Children & Education Services,Smith's Wood Community Primary,Agency Staff: Teachers,A35001,24/11/2010,2832554,850,Connex Holdings Ltd,185358
Solihull MBC,http://statistics.data.gov.uk/id/local-authority/00CT,Children & Education Services,Smith's Wood Community Primary,Agency Staff: Teachers,A35001,24/11/2010,2832548,680,Connex Holdings Ltd,185358
Solihull MBC,http://statistics.data.gov.uk/id/local-authority/00CT,Children & Education Services,Smith's Wood Community Primary,Agency Staff: Teachers,A35001,17/11/2010,2826202,800,Connex Holdings Ltd,185358
Solihull MBC,http://statistics.data.gov.uk/id/local-authority/00CT,Children & Education Services,Heart Of England,Agency Staff: Teachers,A35001,19/11/2010,2829992,540,Connex Holdings Ltd,185358
Solihull MBC,http://statistics.data.gov.uk/id/local-authority/00CT,Children & Education Services,Castle Bromwich Inf,Consultants,Y31000,09/11/2010,2820313,917.48,Construction Management Services,10057
Solihull MBC,http://statistics.data.gov.uk/id/local-authority/00CT,Children & Education Services,Olo Comp Early Years,Consultants,Y31000,03/11/2010,2812899,1323.01,Construction Management Services,10057
Solihull MBC,http://statistics.data.gov.uk/id/local-authority/00CT,Children & Education Services,Light Hall,Consultants,Y31000,26/11/2010,2835499,1695.72,Construction Management Services,10057
Solihull MBC,http://statistics.data.gov.uk/id/local-authority/00CT,Children & Education Services,Section 17 Chelmsley Wood,Clients Expenses,D62000,08/11/2010,2819417,579.5,Contact First.,208518
Solihull MBC,http://statistics.data.gov.uk/id/local-authority/00CT,Children & Education Services,Section 17 Chelmsley Wood,Clients Expenses,D62000,08/11/2010,2819338,579.5,Contact First.,208518
Solihull MBC,http://statistics.data.gov.uk/id/local-authority/00CT,Children & Education Services,Section 17 Chelmsley Wood,Clients Expenses,D62000,08/11/2010,2819422,579.5,Contact First.,208518
Solihull MBC,http://statistics.data.gov.uk/id/local-authority/00CT,Children & Education Services,Section 17 Chelmsley Wood,Clients Expenses,D62000,08/11/2010,2819413,1159,Contact First.,208518
Solihull MBC,http://statistics.data.gov.uk/id/local-authority/00CT,Children & Education Services,Residential South/Central,Other Contracted Services,E29000,04/11/2010,2816817,29892.99,Continuum Care & Education Group,281848
Solihull MBC,http://statistics.data.gov.uk/id/local-authority/00CT,Children & Education Services,Residential South/Central,Other Contracted Services,E29000,04/11/2010,2816953,-8857.01,Continuum Care & Education Group,281848
Solihull MBC,http://statistics.data.gov.uk/id/local-authority/00CT,Children & Education Services,Residential South/Central,Other Contracted Services,E29000,04/11/2010,2816951,-4285.65,Continuum Care & Education Group,281848
Solihull MBC,http://statistics.data.gov.uk/id/local-authority/00CT,Other Housing Services,Housing Strategy Team,Printing,D40000,11/11/2010,2823111,3282,Convex Environmental Media,282020
Solihull MBC,http://statistics.data.gov.uk/id/local-authority/00CT,Children & Education Services,St Peter's,Capitation,D11001,15/11/2010,2824886,247.5,Coordination Group Publications,9041
Solihull MBC,http://statistics.data.gov.uk/id/local-authority/00CT,Children & Education Services,St Peter's,Capitation,D11001,15/11/2010,2824886,247.5,Coordination Group Publications,9041
Solihull MBC,http://statistics.data.gov.uk/id/local-authority/00CT,Children & Education Services,St Peter's,Capitation,D11001,15/11/2010,2824886,220,Coordination Group Publications,9041
Solihull MBC,http://statistics.data.gov.uk/id/local-authority/00CT,Children & Education Services,St Peter's,Capitation,D11001,15/11/2010,2824886,247.5,Coordination Group Publications,9041
Solihull MBC,http://statistics.data.gov.uk/id/local-authority/00CT,Central Services to the Public,Strategic Service General,Licences,D52410,17/11/2010,2826113,4515.6,Copyright Licensing Agency Ltd,10075
Solihull MBC,http://statistics.data.gov.uk/id/local-authority/00CT,Children & Education Services,Licence Fees,Licences,D52410,17/11/2010,2826113,7476.3,Copyright Licensing Agency Ltd,10075
Solihull MBC,http://statistics.data.gov.uk/id/local-authority/00CT,Highways & Transport Services,Places Directorate,Licences,D52410,17/11/2010,2826113,3280.2,Copyright Licensing Agency Ltd,10075
Solihull MBC,http://statistics.data.gov.uk/id/local-authority/00CT,Adult Social Care,ADSS Directorate,Licences,D52410,17/11/2010,2826113,383.4,Copyright Licensing Agency Ltd,10075
Solihull MBC,http://statistics.data.gov.uk/id/local-authority/00CT,Children & Education Services,Coleshill Heath J&I,Furniture & Equipment,D10000,25/11/2010,2834409,2149.81,Cost Cutters,86969
Solihull MBC,http://statistics.data.gov.uk/id/local-authority/00CT,Children & Education Services,Dickens Hth Primary,Maintenance Of Grounds,B30000,25/11/2010,2834727,2720,Countryside Turf,186701
Solihull MBC,http://statistics.data.gov.uk/id/local-authority/00CT,Children & Education Services,Adoption Team,Other Fees,D52000,02/11/2010,2811834,5838,Coventry City Council,10098
Solihull MBC,http://statistics.data.gov.uk/id/local-authority/00CT,Interest & Investment Income,Birmingham Airport,General Creditors,S00000,11/11/2010,2823085,17727,Coventry City Council,10098
Solihull MBC,http://statistics.data.gov.uk/id/local-authority/00CT,Children & Education Services,Lyndon,Visits & Pupil Activities,D52002,23/11/2010,2831626,550,Coventry City Council,10098
Solihull MBC,http://statistics.data.gov.uk/id/local-authority/00CT,Children & Education Services,CWDC Projects/NQSW Pilot,Training,A32000,01/11/2010,2811068,1570,Coventry University,10102
Solihull MBC,http://statistics.data.gov.uk/id/local-authority/00CT,Children & Education Services,CWDC Projects/NQSW Pilot,Training,A32000,01/11/2010,2811071,1570,Coventry University,10102
Solihull MBC,http://statistics.data.gov.uk/id/local-authority/00CT,Central Services to the Public,HRE Management,Training,A32000,19/11/2010,2830230,1170,Coventry University,10102
Solihull MBC,http://statistics.data.gov.uk/id/local-authority/00CT,Children & Education Services,CWDC Projects/NQSW Pilot,Training,A32000,19/11/2010,2830292,1949.99,Coventry University,10102
Solihull MBC,http://statistics.data.gov.uk/id/local-authority/00CT,Cultural & Related Services,Business Support,Furniture & Equipment,D10000,04/11/2010,2817081,680,Covergold Limited,72836
Solihull MBC,http://statistics.data.gov.uk/id/local-authority/00CT,Central Services to the Public,Building & Design,Professional Fees,D51000,19/11/2010,2830134,3050,Cox Turner Morse Ltd,69016
Solihull MBC,http://statistics.data.gov.uk/id/local-authority/00CT,Central Services to the Public,Building & Design,Professional Fees,D51000,18/11/2010,2826233,500,Cox Turner Morse Ltd,69016
Solihull MBC,http://statistics.data.gov.uk/id/local-authority/00CT,Central Services to the Public,Building & Design,Professional Fees,D51000,18/11/2010,2826233,1000,Cox Turner Morse Ltd,69016
Solihull MBC,http://statistics.data.gov.uk/id/local-authority/00CT,Children & Education Services,Mill Lodge Site &Drainage,Consultants,Y31000,24/11/2010,2832177,750,Cox Turner Morse Ltd,69016
Solihull MBC,http://statistics.data.gov.uk/id/local-authority/00CT,Central Services to the Public,Building & Design,Professional Fees,D51000,24/11/2010,2832180,750,Cox Turner Morse Ltd,69016
Solihull MBC,http://statistics.data.gov.uk/id/local-authority/00CT,Adult Social Care,ADSS Directorate,Professional Fees,D51000,10/11/2010,2820952,20000,CPEA Ltd,272381
Solihull MBC,http://statistics.data.gov.uk/id/local-authority/00CT,Children & Education Services,Valley Inf Catering,Furniture & Equipment,Y13000,16/11/2010,2825399,544.22,CPS Catering Equipment Ltd,137951
Solihull MBC,http://statistics.data.gov.uk/id/local-authority/00CT,Children & Education Services,Valley Inf Catering,Furniture & Equipment,Y13000,16/11/2010,2825605,1159,CPS Catering Equipment Ltd,137951
Solihull MBC,http://statistics.data.gov.uk/id/local-authority/00CT,Adult Social Care,Appointee Spend- I-Proc,General Creditors,S00000,05/11/2010,2818138,658.84,Craegmoor Healthcare Ltd,87853
Solihull MBC,http://statistics.data.gov.uk/id/local-authority/00CT,Children & Education Services,Lyndon,Building Maint Planned,B31002,23/11/2010,2831636,486.75,Creation Security Ltd,283887
Solihull MBC,http://statistics.data.gov.uk/id/local-authority/00CT,Children & Education Services,Marston Green Jnr,Capitation,D11001,18/11/2010,2829604,1145.9,Crew,284643
Solihull MBC,http://statistics.data.gov.uk/id/local-authority/00CT,Children & Education Services,DSG - Schools Hr Charges,Other Employee Costs,A39000,17/11/2010,2826142,4860,Criminal  Records  Bureau,205951
Solihull MBC,http://statistics.data.gov.uk/id/local-authority/00CT,Cultural & Related Services,Chelmsley Wood Library,Other Employee Costs,A39000,17/11/2010,2826142,36,Criminal  Records  Bureau,205951
Solihull MBC,http://statistics.data.gov.uk/id/local-authority/00CT,Children & Education Services,Childrens Management,Other Employee Costs,A39000,17/11/2010,2826142,504,Criminal  Records  Bureau,205951
Solihull MBC,http://statistics.data.gov.uk/id/local-authority/00CT,Children & Education Services,Childrens Management,Other Employee Costs,A39000,17/11/2010,2826142,1332,Criminal  Records  Bureau,205951
Solihull MBC,http://statistics.data.gov.uk/id/local-authority/00CT,Central Services to the Public,HR Shared Service,Other Employee Costs,A39000,17/11/2010,2826142,278,Criminal  Records  Bureau,205951
Solihull MBC,http://statistics.data.gov.uk/id/local-authority/00CT,Environmental and Regulatory Services,Vehicle Licensing,Other Employee Costs,A39000,17/11/2010,2826142,5220,Criminal  Records  Bureau,205951
Solihull MBC,http://statistics.data.gov.uk/id/local-authority/00CT,Adult Social Care,In House Transport,Other Employee Costs,A39000,17/11/2010,2826142,36,Criminal  Records  Bureau,205951
Solihull MBC,http://statistics.data.gov.uk/id/local-authority/00CT,Other Housing Services,Hsg Enabling Programme,Consultants,Y31000,04/11/2010,2816925,9250,Cross And Craig Associates,282879
Solihull MBC,http://statistics.data.gov.uk/id/local-authority/00CT,Planning & Development Services,Development Control,Professional Fees,D51000,08/11/2010,2819659,3359.91,Cross Engineering Consultancy,103602
Solihull MBC,http://statistics.data.gov.uk/id/local-authority/00CT,Children & Education Services,Child Disability Dom Care,Clients Expenses,D62000,02/11/2010,2811817,677.33,Crossroads Caring For Carers,122691
Solihull MBC,http://statistics.data.gov.uk/id/local-authority/00CT,Children & Education Services,Child Disability Dom Care,Clients Expenses,D62000,24/11/2010,2832215,647,Crossroads Caring For Carers,122691
Solihull MBC,http://statistics.data.gov.uk/id/local-authority/00CT,Children & Education Services,Child Disability Dom Care,Clients Expenses,D62000,16/11/2010,2825471,507.84,Crossroads Caring For Carers,122691
Solihull MBC,http://statistics.data.gov.uk/id/local-authority/00CT,Children & Education Services,Child Disability Dom Care,Clients Expenses,D62000,19/11/2010,2830265,1474.38,Crossroads Caring For Carers,122691
Solihull MBC,http://statistics.data.gov.uk/id/local-authority/00CT,Children & Education Services,Child Disability Dom Care,Clients Expenses,D62000,24/11/2010,2832218,717,Crossroads Caring For Carers,122691
Solihull MBC,http://statistics.data.gov.uk/id/local-authority/00CT,Children & Education Services,Lanchester,Furniture & Equipment,D10000,08/11/2010,2819747,600,Crystal Radio Systems,125463
Solihull MBC,http://statistics.data.gov.uk/id/local-authority/00CT,Children & Education Services,Heart Of England,Capitation,D11001,05/11/2010,2818068,1595.8,Cse Education Systems Ltd,10138
Solihull MBC,http://statistics.data.gov.uk/id/local-authority/00CT,Children & Education Services,Heart Of England,IT Equipment & Software,D32000,19/11/2010,2830047,808.2,Cse Education Systems Ltd,10138
Solihull MBC,http://statistics.data.gov.uk/id/local-authority/00CT,Children & Education Services,Blossomfield Inf,IT Equipment & Software,D32000,26/11/2010,2835961,500,Custom Data Solutions,55343
Solihull MBC,http://statistics.data.gov.uk/id/local-authority/00CT,Children & Education Services,Sharmans Cross Jnr,Professional Fees,D51000,25/11/2010,2834726,1500,Custom Data Solutions,55343
Solihull MBC,http://statistics.data.gov.uk/id/local-authority/00CT,Central Services to the Public,Cycle To Work Scheme,Furniture & Equipment,D10000,01/11/2010,2810788,1598.29,Cyclescheme Ltd,260217
Solihull MBC,http://statistics.data.gov.uk/id/local-authority/00CT,Central Services to the Public,Cycle To Work Scheme,Furniture & Equipment,D10000,05/11/2010,2818352,849.16,Cyclescheme Ltd,260217
Solihull MBC,http://statistics.data.gov.uk/id/local-authority/00CT,Central Services to the Public,Cycle To Work Scheme,Furniture & Equipment,D10000,01/11/2010,2810788,30,Cyclescheme Ltd,260217
Solihull MBC,http://statistics.data.gov.uk/id/local-authority/00CT,Central Services to the Public,Cycle To Work Scheme,Furniture & Equipment,D10000,25/11/2010,2835129,620.43,Cyclescheme Ltd,260217
Solihull MBC,http://statistics.data.gov.uk/id/local-authority/00CT,Children & Education Services,H Of E Site & Security,Contractors,Y21000,02/11/2010,2812165,8775,D W Clark Drainage Ltd,5108
Solihull MBC,http://statistics.data.gov.uk/id/local-authority/00CT,Children & Education Services,Smith's Wood,Capitation,D11001,03/11/2010,2812790,6096,Danwood Finance Limited,125937
Solihull MBC,http://statistics.data.gov.uk/id/local-authority/00CT,Children & Education Services,Windy Arbor J&I,Photocopying,D40001,15/11/2010,2824715,496.13,Danwood Finance Limited,125937
Solihull MBC,http://statistics.data.gov.uk/id/local-authority/00CT,Children & Education Services,Windy Arbor J&I,Photocopying,D40001,15/11/2010,2824711,1260.79,Danwood Finance Limited,125937
Solihull MBC,http://statistics.data.gov.uk/id/local-authority/00CT,Children & Education Services,Smith's Wood,Capitation,D11001,03/11/2010,2812792,1488,Danwood Finance Limited,125937
Solihull MBC,http://statistics.data.gov.uk/id/local-authority/00CT,Children & Education Services,Monkspath J&I,Photocopying,D40001,05/11/2010,2818014,521.62,Danwood Group Ltd,5121
Solihull MBC,http://statistics.data.gov.uk/id/local-authority/00CT,Central Services to the Public,MFD Equipment,Furniture & Equipment,Y13000,29/11/2010,2837037,2116.92,Danwood Group Ltd,5121
Solihull MBC,http://statistics.data.gov.uk/id/local-authority/00CT,Central Services to the Public,MFD Equipment,Furniture & Equipment,Y13000,29/11/2010,2837043,5780.11,Danwood Group Ltd,5121
Solihull MBC,http://statistics.data.gov.uk/id/local-authority/00CT,Central Services to the Public,MFD Equipment,Furniture & Equipment,Y13000,30/11/2010,2837822,9000,Danwood Group Ltd,5121
Solihull MBC,http://statistics.data.gov.uk/id/local-authority/00CT,Central Services to the Public,MFD Equipment,Furniture & Equipment,Y13000,29/11/2010,2837036,4808.5,Danwood Group Ltd,5121
Solihull MBC,http://statistics.data.gov.uk/id/local-authority/00CT,Central Services to the Public,MFD Equipment,Furniture & Equipment,Y13000,29/11/2010,2837012,1736.96,Danwood Group Ltd,5121
Solihull MBC,http://statistics.data.gov.uk/id/local-authority/00CT,Central Services to the Public,MFD Equipment,Furniture & Equipment,Y13000,29/11/2010,2837081,6390.44,Danwood Group Ltd,5121
Solihull MBC,http://statistics.data.gov.uk/id/local-authority/00CT,Central Services to the Public,MFD Equipment,Furniture & Equipment,Y13000,29/11/2010,2837060,1581.98,Danwood Group Ltd,5121
Solihull MBC,http://statistics.data.gov.uk/id/local-authority/00CT,Central Services to the Public,MFD Equipment,Furniture & Equipment,Y13000,29/11/2010,2837095,7372.33,Danwood Group Ltd,5121
Solihull MBC,http://statistics.data.gov.uk/id/local-authority/00CT,Central Services to the Public,MFD Equipment,Furniture & Equipment,Y13000,29/11/2010,2837040,5780.11,Danwood Group Ltd,5121
Solihull MBC,http://statistics.data.gov.uk/id/local-authority/00CT,Children & Education Services,Inspectors,Photocopying,D40001,24/11/2010,2832287,582.41,Danwood Group Ltd,5121
Solihull MBC,http://statistics.data.gov.uk/id/local-authority/00CT,Central Services to the Public,MFD Equipment,Furniture & Equipment,Y13000,29/11/2010,2837017,949.9,Danwood Group Ltd,5121
Solihull MBC,http://statistics.data.gov.uk/id/local-authority/00CT,Central Services to the Public,MFD Equipment,Furniture & Equipment,Y13000,29/11/2010,2837045,2170.36,Danwood Group Ltd,5121
Solihull MBC,http://statistics.data.gov.uk/id/local-authority/00CT,Central Services to the Public,MFD Equipment,Furniture & Equipment,Y13000,29/11/2010,2837038,5780.11,Danwood Group Ltd,5121
Solihull MBC,http://statistics.data.gov.uk/id/local-authority/00CT,Central Services to the Public,MFD Equipment,Furniture & Equipment,Y13000,29/11/2010,2837075,1429.62,Danwood Group Ltd,5121
Solihull MBC,http://statistics.data.gov.uk/id/local-authority/00CT,Central Services to the Public,MFD Equipment,Furniture & Equipment,Y13000,29/11/2010,2837054,1581.98,Danwood Group Ltd,5121
Solihull MBC,http://statistics.data.gov.uk/id/local-authority/00CT,Central Services to the Public,MFD Equipment,Furniture & Equipment,Y13000,29/11/2010,2837086,7372.33,Danwood Group Ltd,5121
Solihull MBC,http://statistics.data.gov.uk/id/local-authority/00CT,Environmental and Regulatory Services,Vehicle Licensing,Materials,D11000,05/11/2010,2818562,2900,Datatek,218181
Solihull MBC,http://statistics.data.gov.uk/id/local-authority/00CT,Planning & Development Services,Town Centre Management,Other Fees,D52000,18/11/2010,2829744,1200,David Harrop,284242
Solihull MBC,http://statistics.data.gov.uk/id/local-authority/00CT,Central Services to the Public,Legal Services,Other Fees,D52000,19/11/2010,2830279,925.31,David Park,278416
Solihull MBC,http://statistics.data.gov.uk/id/local-authority/00CT,Children & Education Services,Arden,Capitation,D11001,17/11/2010,2825892,1965.92,Dawkes Music,122002
Solihull MBC,http://statistics.data.gov.uk/id/local-authority/00CT,Adult Social Care,In House Transport,Transport-Contract Hire,C30000,05/11/2010,2818201,9875.76,Dawson Rentals Bus & Coach Ltd,147829
Solihull MBC,http://statistics.data.gov.uk/id/local-authority/00CT,Adult Social Care,In House Transport,Transport-Contract Hire,C30000,05/11/2010,2818203,14571.17,Dawson Rentals Bus & Coach Ltd,147829
Solihull MBC,http://statistics.data.gov.uk/id/local-authority/00CT,Adult Social Care,In House Transport,Transport-Contract Hire,C30000,23/11/2010,2831930,630,Dawson Rentals Bus & Coach Ltd,147829
Solihull MBC,http://statistics.data.gov.uk/id/local-authority/00CT,Children & Education Services,Central Area - Youth,Training,A32000,05/11/2010,2818565,1326,De Montfort University,5148
Solihull MBC,http://statistics.data.gov.uk/id/local-authority/00CT,Children & Education Services,Central Area - Youth,Training,A32000,05/11/2010,2818567,1326,De Montfort University,5148
Solihull MBC,http://statistics.data.gov.uk/id/local-authority/00CT,Children & Education Services,Central Area - Youth,Training,A32000,30/11/2010,2837741,1326,De Montfort University,5148
Solihull MBC,http://statistics.data.gov.uk/id/local-authority/00CT,Central Services to the Public,Communications Unit,Professional Fees,D51000,09/11/2010,2820118,450,Delib Ltd,281403
Solihull MBC,http://statistics.data.gov.uk/id/local-authority/00CT,Planning & Development Services,Environmental Improvement Fund,Maintenance Of Grounds,B30000,12/11/2010,2823772,2425,Derek Pointon & Co,136433
Solihull MBC,http://statistics.data.gov.uk/id/local-authority/00CT,Children & Education Services,Castle Bromwich Inf,Furniture & Equipment,Y13000,03/11/2010,2812924,650,Designs For Education,242800
Solihull MBC,http://statistics.data.gov.uk/id/local-authority/00CT,Children & Education Services,Castle Bromwich Inf,Capitation,D11001,25/11/2010,2834739,520,Designs For Education,242800
Solihull MBC,http://statistics.data.gov.uk/id/local-authority/00CT,Children & Education Services,Castle Bromwich Jnr,Photocopying,D40001,11/11/2010,2821653,507.73,Digital Copier Systems Ltd,88169
Solihull MBC,http://statistics.data.gov.uk/id/local-authority/00CT,Children & Education Services,Our Lady Wayside J&I,Capitation,D11001,01/11/2010,2810824,636.48,Diocesan Dept Of Religious Education,15216
Solihull MBC,http://statistics.data.gov.uk/id/local-authority/00CT,Children & Education Services,St Anne's J&I,Capitation,D11001,24/11/2010,2832605,566.1,Diocesan Schools' Commission,9092
Solihull MBC,http://statistics.data.gov.uk/id/local-authority/00CT,Children & Education Services,Our Lady Wayside J&I,Furniture & Equipment,D10000,08/11/2010,2819697,850,Direct Carpets,184838
Solihull MBC,http://statistics.data.gov.uk/id/local-authority/00CT,Central Services to the Public,General Fire Fund,Other Provisions,U12000,23/11/2010,2831939,8389,Disaster Recovery Midlands Ltd,232626
Solihull MBC,http://statistics.data.gov.uk/id/local-authority/00CT,Central Services to the Public,Tenant Team,Internal Income-Miscellaneous,H21000,10/11/2010,2820621,-54.2,Dodd Group (Midlands) Ltd,60305
Solihull MBC,http://statistics.data.gov.uk/id/local-authority/00CT,Children & Education Services,Reynalds Cross,Building Maint Day To Day,B31001,03/11/2010,2812440,3919.87,Dodd Group (Midlands) Ltd,60305
Solihull MBC,http://statistics.data.gov.uk/id/local-authority/00CT,Cultural & Related Services,Parks Other,Internal Building Maintenance,H20908,10/11/2010,2820621,54.2,Dodd Group (Midlands) Ltd,60305
Solihull MBC,http://statistics.data.gov.uk/id/local-authority/00CT,Children & Education Services,PSD-Schools Package 1,Reactive Works (Landlord),B31301,02/11/2010,2811334,648.41,Dodd Group (Midlands) Ltd,60305
Solihull MBC,http://statistics.data.gov.uk/id/local-authority/00CT,Children & Education Services,St Patrick's CE J&I,Building Maint Day To Day,B31001,09/11/2010,2819947,458.05,Dodd Group (Midlands) Ltd,60305
Solihull MBC,http://statistics.data.gov.uk/id/local-authority/00CT,Children & Education Services,Heart Of England,Building Maint Planned,B31002,10/11/2010,2821443,762.58,Dodd Group (Midlands) Ltd,60305
Solihull MBC,http://statistics.data.gov.uk/id/local-authority/00CT,Children & Education Services,Ulverley J&I,Building Maint Day To Day,B31001,02/11/2010,2811312,1006.45,Dodd Group (Midlands) Ltd,60305
Solihull MBC,http://statistics.data.gov.uk/id/local-authority/00CT,Children & Education Services,Lyndon,Building Maint Day To Day,B31001,09/11/2010,2819950,4123.05,Dodd Group (Midlands) Ltd,60305
Solihull MBC,http://statistics.data.gov.uk/id/local-authority/00CT,Central Services to the Public,PS Cap Miscellaneous,Contractors,Y21000,09/11/2010,2819915,9543.22,Dodd Group (Midlands) Ltd,60305
Solihull MBC,http://statistics.data.gov.uk/id/local-authority/00CT,Children & Education Services,Valley Inf,Building Maint Day To Day,B31001,02/11/2010,2811372,936.17,Dodd Group (Midlands) Ltd,60305
Solihull MBC,http://statistics.data.gov.uk/id/local-authority/00CT,Children & Education Services,Heart Of England,Building Maint Planned,B31002,10/11/2010,2821442,3579.14,Dodd Group (Midlands) Ltd,60305
Solihull MBC,http://statistics.data.gov.uk/id/local-authority/00CT,Other Housing Services,PSD-Solihull 6Th Form Col,Repair & Maintn Of Buildings,B31000,02/11/2010,2811286,507.25,Dodd Group (Midlands) Ltd,60305
Solihull MBC,http://statistics.data.gov.uk/id/local-authority/00CT,Children & Education Services,PSD-Schools Package 1,Reactive Works (Landlord),B31301,10/11/2010,2820674,435.35,Dodd Group (Midlands) Ltd,60305
Solihull MBC,http://statistics.data.gov.uk/id/local-authority/00CT,Central Services to the Public,Tenant Works,Reactive Works (Tenant),B31351,01/11/2010,2810977,551.14,Dodd Group (Midlands) Ltd,60305
Solihull MBC,http://statistics.data.gov.uk/id/local-authority/00CT,Children & Education Services,Ulverley J&I,Internal Building Maintenance,H20908,02/11/2010,2811312,100.65,Dodd Group (Midlands) Ltd,60305
Solihull MBC,http://statistics.data.gov.uk/id/local-authority/00CT,Children & Education Services,Knowle J&I,Building Maint Day To Day,B31001,02/11/2010,2811364,684.08,Dodd Group (Midlands) Ltd,60305
Solihull MBC,http://statistics.data.gov.uk/id/local-authority/00CT,Central Services to the Public,Landlord Team,Reactive Works (Landlord),B31301,02/11/2010,2811321,503.12,Dodd Group (Midlands) Ltd,60305
Solihull MBC,http://statistics.data.gov.uk/id/local-authority/00CT,Children & Education Services,Heart Of England,Building Maint Planned,B31002,10/11/2010,2821443,2491.82,Dodd Group (Midlands) Ltd,60305
Solihull MBC,http://statistics.data.gov.uk/id/local-authority/00CT,Children & Education Services,PSD-Schools Package 1,Reactive Works (Landlord),B31301,02/11/2010,2811338,479.07,Dodd Group (Midlands) Ltd,60305
Solihull MBC,http://statistics.data.gov.uk/id/local-authority/00CT,Cultural & Related Services,Parks Other,Repair & Maintn Of Buildings,B31000,10/11/2010,2820621,541.96,Dodd Group (Midlands) Ltd,60305
Solihull MBC,http://statistics.data.gov.uk/id/local-authority/00CT,Children & Education Services,S.C.I.L. School Joint Costs,Building Maint Day To Day,B31001,15/11/2010,2824121,2828.23,Dodd Group (Midlands) Ltd,60305
Solihull MBC,http://statistics.data.gov.uk/id/local-authority/00CT,Children & Education Services,Chapel Fields Jnr,Building Maint Day To Day,B31001,09/11/2010,2819929,539.56,Dodd Group (Midlands) Ltd,60305
Solihull MBC,http://statistics.data.gov.uk/id/local-authority/00CT,Children & Education Services,Knowle J&I,Internal Building Maintenance,H20908,02/11/2010,2811364,68.41,Dodd Group (Midlands) Ltd,60305
Solihull MBC,http://statistics.data.gov.uk/id/local-authority/00CT,Central Services to the Public,Tenant Team,Internal Income-Miscellaneous,H21000,02/11/2010,2811310,-63.91,Dodd Group (Midlands) Ltd,60305
Solihull MBC,http://statistics.data.gov.uk/id/local-authority/00CT,Children & Education Services,PSD-Schools Package 1,Reactive Works (Landlord),B31301,02/11/2010,2811329,671.74,Dodd Group (Midlands) Ltd,60305
Solihull MBC,http://statistics.data.gov.uk/id/local-authority/00CT,Children & Education Services,St James Jnr,Building Maint Day To Day,B31001,12/11/2010,2823287,504.84,Dodd Group (Midlands) Ltd,60305
Solihull MBC,http://statistics.data.gov.uk/id/local-authority/00CT,Central Services to the Public,Tenant Works,Repair & Maintn Of Buildings,B31000,09/11/2010,2819953,4950.84,Dodd Group (Midlands) Ltd,60305
Solihull MBC,http://statistics.data.gov.uk/id/local-authority/00CT,Other Housing Services,PSD- Primary Care Trust,Reactive Works (Landlord),B31301,12/11/2010,2823294,499.34,Dodd Group (Midlands) Ltd,60305
Solihull MBC,http://statistics.data.gov.uk/id/local-authority/00CT,Other Housing Services,PSD- Primary Care Trust,Reactive Works (Landlord),B31301,02/11/2010,2811289,801.57,Dodd Group (Midlands) Ltd,60305
Solihull MBC,http://statistics.data.gov.uk/id/local-authority/00CT,Other Housing Services,PSD- Primary Care Trust,Reactive Works (Landlord),B31301,02/11/2010,2811377,1313.38,Dodd Group (Midlands) Ltd,60305
Solihull MBC,http://statistics.data.gov.uk/id/local-authority/00CT,Children & Education Services,Heart Of England,Building Maint Day To Day,B31001,05/11/2010,2818123,316.02,Dodd Group (Midlands) Ltd,60305
Solihull MBC,http://statistics.data.gov.uk/id/local-authority/00CT,Central Services to the Public,Moat Lane Depot,Repair & Maintn Of Buildings,B31000,12/11/2010,2823312,690.85,Dodd Group (Midlands) Ltd,60305
Solihull MBC,http://statistics.data.gov.uk/id/local-authority/00CT,Central Services to the Public,Council House Complex,Internal Building Maintenance,H20908,02/11/2010,2811310,63.91,Dodd Group (Midlands) Ltd,60305
Solihull MBC,http://statistics.data.gov.uk/id/local-authority/00CT,Central Services to the Public,Tenant Team,Internal Income-Miscellaneous,H21000,02/11/2010,2811364,-68.41,Dodd Group (Midlands) Ltd,60305
Solihull MBC,http://statistics.data.gov.uk/id/local-authority/00CT,Children & Education Services,Heart Of England,Building Maint Day To Day,B31001,05/11/2010,2818123,141.08,Dodd Group (Midlands) Ltd,60305
Solihull MBC,http://statistics.data.gov.uk/id/local-authority/00CT,Children & Education Services,PSD-Schools Package 1,Reactive Works (Landlord),B31301,02/11/2010,2811381,1054.16,Dodd Group (Midlands) Ltd,60305
Solihull MBC,http://statistics.data.gov.uk/id/local-authority/00CT,Central Services to the Public,Tenant Works,Repair & Maintn Of Buildings,B31000,12/11/2010,2823228,9877.06,Dodd Group (Midlands) Ltd,60305
Solihull MBC,http://statistics.data.gov.uk/id/local-authority/00CT,Central Services to the Public,Tenant Team,Internal Income-Miscellaneous,H21000,02/11/2010,2811312,-100.65,Dodd Group (Midlands) Ltd,60305
Solihull MBC,http://statistics.data.gov.uk/id/local-authority/00CT,Central Services to the Public,Electrical Testing Repairs,Contractors,Y21000,12/11/2010,2823236,478.33,Dodd Group (Midlands) Ltd,60305
Solihull MBC,http://statistics.data.gov.uk/id/local-authority/00CT,Central Services to the Public,Council House Complex,Repair & Maintn Of Buildings,B31000,02/11/2010,2811310,639.08,Dodd Group (Midlands) Ltd,60305
Solihull MBC,http://statistics.data.gov.uk/id/local-authority/00CT,Children & Education Services,Sharmans Cross Jnr,Building Maint Day To Day,B31001,09/11/2010,2819945,862.47,Dodd Group (Midlands) Ltd,60305
Solihull MBC,http://statistics.data.gov.uk/id/local-authority/00CT,Children & Education Services,Heart Of England,Building Maint Planned,B31002,10/11/2010,2821443,2855.47,Dodd Group (Midlands) Ltd,60305
Solihull MBC,http://statistics.data.gov.uk/id/local-authority/00CT,Central Services to the Public,Landlord Team,Servicing,B31304,02/11/2010,2811383,550.47,Dodd Group (Midlands) Ltd,60305
Solihull MBC,http://statistics.data.gov.uk/id/local-authority/00CT,Children & Education Services,Windy Arbor J&I,Building Maint Day To Day,B31001,01/11/2010,2810867,755.15,Dodd Group (Midlands) Ltd,60305
Solihull MBC,http://statistics.data.gov.uk/id/local-authority/00CT,Central Services to the Public,Tenant Works,Repair & Maintn Of Buildings,B31000,09/11/2010,2819952,4777.85,Dodd Group (Midlands) Ltd,60305
Solihull MBC,http://statistics.data.gov.uk/id/local-authority/00CT,Children & Education Services,PSD-Schools Package 1,Reactive Works (Landlord),B31301,02/11/2010,2811347,446.23,Dodd Group (Midlands) Ltd,60305
Solihull MBC,http://statistics.data.gov.uk/id/local-authority/00CT,Central Services to the Public,Landlord Team,Servicing,B31304,09/11/2010,2819951,3733.46,Dodd Group (Midlands) Ltd,60305
Solihull MBC,http://statistics.data.gov.uk/id/local-authority/00CT,Central Services to the Public,Landlord Team,Servicing,B31304,02/11/2010,2811263,623.7,Dodd Group (Midlands) Ltd,60305
Solihull MBC,http://statistics.data.gov.uk/id/local-authority/00CT,Central Services to the Public,Tenant Team,Internal Income-Miscellaneous,H21000,03/11/2010,2812440,-391.99,Dodd Group (Midlands) Ltd,60305
Solihull MBC,http://statistics.data.gov.uk/id/local-authority/00CT,Children & Education Services,Shirley Heath Jnr,Building Maint Day To Day,B31001,02/11/2010,2811371,1699.97,Dodd Group (Midlands) Ltd,60305
Solihull MBC,http://statistics.data.gov.uk/id/local-authority/00CT,Children & Education Services,Reynalds Cross,Internal Building Maintenance,H20908,03/11/2010,2812440,391.99,Dodd Group (Midlands) Ltd,60305
Solihull MBC,http://statistics.data.gov.uk/id/local-authority/00CT,Children & Education Services,Light Hall,Building Maint Day To Day,B31001,12/11/2010,2823269,671.59,Dodd Group (Midlands) Ltd,60305
Solihull MBC,http://statistics.data.gov.uk/id/local-authority/00CT,Central Services to the Public,Tenant Works,Reactive Works (Tenant),B31351,12/11/2010,2823280,617.49,Dodd Group (Midlands) Ltd,60305
Solihull MBC,http://statistics.data.gov.uk/id/local-authority/00CT,Children & Education Services,PSD-Schools Package 1,Reactive Works (Landlord),B31301,02/11/2010,2811331,567.42,Dodd Group (Midlands) Ltd,60305
Solihull MBC,http://statistics.data.gov.uk/id/local-authority/00CT,Children & Education Services,PSD-Schools Package 1,Reactive Works (Landlord),B31301,29/11/2010,2836679,3034.15,Dodd Group (Midlands) Ltd,60305
Solihull MBC,http://statistics.data.gov.uk/id/local-authority/00CT,Central Services to the Public,Landlord Team,Reactive Works (Landlord),B31301,24/11/2010,2832063,739.01,Dodd Group (Midlands) Ltd,60305
Solihull MBC,http://statistics.data.gov.uk/id/local-authority/00CT,Central Services to the Public,Tenant Works,Repair & Maintn Of Buildings,B31000,30/11/2010,2837671,478.53,Dodd Group (Midlands) Ltd,60305
Solihull MBC,http://statistics.data.gov.uk/id/local-authority/00CT,Children & Education Services,PSD-Schools Package 1,Reactive Works (Landlord),B31301,29/11/2010,2836675,878.68,Dodd Group (Midlands) Ltd,60305
Solihull MBC,http://statistics.data.gov.uk/id/local-authority/00CT,Central Services to the Public,Landlord Team,Planned Works (Landlord),B31303,18/11/2010,2826375,60029.63,Dodd Group (Midlands) Ltd,60305
Solihull MBC,http://statistics.data.gov.uk/id/local-authority/00CT,Central Services to the Public,Landlord Team,Reactive Works (Landlord),B31301,23/11/2010,2831448,540.42,Dodd Group (Midlands) Ltd,60305
Solihull MBC,http://statistics.data.gov.uk/id/local-authority/00CT,Central Services to the Public,Tenant Team,Internal Income-Miscellaneous,H21000,29/11/2010,2836673,-51,Dodd Group (Midlands) Ltd,60305
Solihull MBC,http://statistics.data.gov.uk/id/local-authority/00CT,Children & Education Services,PSD-Schools Package 1,Reactive Works (Landlord),B31301,22/11/2010,2830333,645.61,Dodd Group (Midlands) Ltd,60305
Solihull MBC,http://statistics.data.gov.uk/id/local-authority/00CT,Children & Education Services,PSD-Schools Package 1,Reactive Works (Landlord),B31301,24/11/2010,2832072,460.64,Dodd Group (Midlands) Ltd,60305
Solihull MBC,http://statistics.data.gov.uk/id/local-authority/00CT,Central Services to the Public,Tenant Works,Reactive Works (External),B31353,17/11/2010,2825720,838.29,Dodd Group (Midlands) Ltd,60305
Solihull MBC,http://statistics.data.gov.uk/id/local-authority/00CT,Children & Education Services,Bentley Heath J&I,Building Maint Day To Day,B31001,30/11/2010,2837667,562.04,Dodd Group (Midlands) Ltd,60305
Solihull MBC,http://statistics.data.gov.uk/id/local-authority/00CT,Central Services to the Public,Landlord Team,Reactive Works (Landlord),B31301,23/11/2010,2831449,843.37,Dodd Group (Midlands) Ltd,60305
Solihull MBC,http://statistics.data.gov.uk/id/local-authority/00CT,Central Services to the Public,Electrical Refurbishment,Contractors,Y21000,18/11/2010,2826376,16095.21,Dodd Group (Midlands) Ltd,60305
Solihull MBC,http://statistics.data.gov.uk/id/local-authority/00CT,Children & Education Services,PSD-Schools Package 1,Reactive Works (Landlord),B31301,23/11/2010,2831451,965.61,Dodd Group (Midlands) Ltd,60305
Solihull MBC,http://statistics.data.gov.uk/id/local-authority/00CT,Children & Education Services,Yorkswood J&I,Building Maint Day To Day,B31001,23/11/2010,2831513,1551.9,Dodd Group (Midlands) Ltd,60305
Solihull MBC,http://statistics.data.gov.uk/id/local-authority/00CT,Children & Education Services,Tidbury Green J&I,Building Maint Day To Day,B31001,24/11/2010,2832049,437.77,Dodd Group (Midlands) Ltd,60305
Solihull MBC,http://statistics.data.gov.uk/id/local-authority/00CT,Children & Education Services,Lyndon,Building Maint Day To Day,B31001,24/11/2010,2832036,470.85,Dodd Group (Midlands) Ltd,60305
Solihull MBC,http://statistics.data.gov.uk/id/local-authority/00CT,Children & Education Services,Lady K C.Centre,Internal Building Maintenance,H20908,29/11/2010,2836673,51,Dodd Group (Midlands) Ltd,60305
Solihull MBC,http://statistics.data.gov.uk/id/local-authority/00CT,Central Services to the Public,Landlord Team,Reactive Works (Landlord),B31301,23/11/2010,2831450,829.95,Dodd Group (Midlands) Ltd,60305
Solihull MBC,http://statistics.data.gov.uk/id/local-authority/00CT,Children & Education Services,PSD-Schools Package 1,Reactive Works (Landlord),B31301,24/11/2010,2832068,450.81,Dodd Group (Midlands) Ltd,60305
Solihull MBC,http://statistics.data.gov.uk/id/local-authority/00CT,Children & Education Services,Meriden J&I,Building Maint Day To Day,B31001,26/11/2010,2835211,444.83,Dodd Group (Midlands) Ltd,60305
Solihull MBC,http://statistics.data.gov.uk/id/local-authority/00CT,Central Services to the Public,Tenant Works,Repair & Maintn Of Buildings,B31000,29/11/2010,2836620,6083.22,Dodd Group (Midlands) Ltd,60305
Solihull MBC,http://statistics.data.gov.uk/id/local-authority/00CT,Central Services to the Public,Tenant Works,Reactive Works (External),B31353,18/11/2010,2826373,4854.8,Dodd Group (Midlands) Ltd,60305
Solihull MBC,http://statistics.data.gov.uk/id/local-authority/00CT,Children & Education Services,PSD-Schools Package 1,Reactive Works (Landlord),B31301,30/11/2010,2837657,1471.14,Dodd Group (Midlands) Ltd,60305
Solihull MBC,http://statistics.data.gov.uk/id/local-authority/00CT,Children & Education Services,PSD-Schools Package 1,Repair & Maintn Of Buildings,B31000,24/11/2010,2832114,509,Dodd Group (Midlands) Ltd,60305
Solihull MBC,http://statistics.data.gov.uk/id/local-authority/00CT,Children & Education Services,Lyndon,Building Maint Day To Day,B31001,22/11/2010,2830331,525.07,Dodd Group (Midlands) Ltd,60305
Solihull MBC,http://statistics.data.gov.uk/id/local-authority/00CT,Central Services to the Public,Tenant Works,Repair & Maintn Of Buildings,B31000,30/11/2010,2837654,1216.38,Dodd Group (Midlands) Ltd,60305
Solihull MBC,http://statistics.data.gov.uk/id/local-authority/00CT,Other Housing Services,PSD- Primary Care Trust,Servicing,B31304,23/11/2010,2831459,538.68,Dodd Group (Midlands) Ltd,60305
Solihull MBC,http://statistics.data.gov.uk/id/local-authority/00CT,Children & Education Services,Hatchford Brook J&I,Building Maint Day To Day,B31001,30/11/2010,2837670,446.7,Dodd Group (Midlands) Ltd,60305
Solihull MBC,http://statistics.data.gov.uk/id/local-authority/00CT,Children & Education Services,PSD-Schools Package 1,Reactive Works (Landlord),B31301,30/11/2010,2837663,589.29,Dodd Group (Midlands) Ltd,60305
Solihull MBC,http://statistics.data.gov.uk/id/local-authority/00CT,Children & Education Services,Lady K C.Centre,Repair & Maintn Of Buildings,B31000,29/11/2010,2836673,509.97,Dodd Group (Midlands) Ltd,60305
Solihull MBC,http://statistics.data.gov.uk/id/local-authority/00CT,Central Services to the Public,Tenant Works,Repair & Maintn Of Buildings,B31000,24/11/2010,2832066,505.03,Dodd Group (Midlands) Ltd,60305
Solihull MBC,http://statistics.data.gov.uk/id/local-authority/00CT,Central Services to the Public,Tenant Team,Internal Income-Miscellaneous,H21000,24/11/2010,2832047,-65.27,Dodd Group (Midlands) Ltd,60305
Solihull MBC,http://statistics.data.gov.uk/id/local-authority/00CT,Children & Education Services,PSD-Schools Package 1,Reactive Works (Landlord),B31301,17/11/2010,2825719,4036.21,Dodd Group (Midlands) Ltd,60305
Solihull MBC,http://statistics.data.gov.uk/id/local-authority/00CT,Other Housing Services,PSD- Primary Care Trust,Servicing,B31304,23/11/2010,2831461,654.37,Dodd Group (Midlands) Ltd,60305
Solihull MBC,http://statistics.data.gov.uk/id/local-authority/00CT,Children & Education Services,Blossomfield Inf,Building Maint Day To Day,B31001,23/11/2010,2831474,944.75,Dodd Group (Midlands) Ltd,60305
Solihull MBC,http://statistics.data.gov.uk/id/local-authority/00CT,Central Services to the Public,Disabled Discrimination Act,Contractors,Y21000,24/11/2010,2832410,1600.38,Dodd Group (Midlands) Ltd,60305
Solihull MBC,http://statistics.data.gov.uk/id/local-authority/00CT,Central Services to the Public,Tenant Works,Reactive Works (External),B31353,24/11/2010,2832113,540.52,Dodd Group (Midlands) Ltd,60305
Solihull MBC,http://statistics.data.gov.uk/id/local-authority/00CT,Children & Education Services,PSD-Schools Package 1,Reactive Works (Landlord),B31301,29/11/2010,2836622,911.85,Dodd Group (Midlands) Ltd,60305
Solihull MBC,http://statistics.data.gov.uk/id/local-authority/00CT,Children & Education Services,S.C.I.L. School Joint Costs,Building Maint Day To Day,B31001,24/11/2010,2832062,580.31,Dodd Group (Midlands) Ltd,60305
Solihull MBC,http://statistics.data.gov.uk/id/local-authority/00CT,Children & Education Services,Coleshill Heath J&I,Building Maint Day To Day,B31001,22/11/2010,2830330,702.89,Dodd Group (Midlands) Ltd,60305
Solihull MBC,http://statistics.data.gov.uk/id/local-authority/00CT,Children & Education Services,St Peter's,Building Maint Day To Day,B31001,24/11/2010,2832047,652.72,Dodd Group (Midlands) Ltd,60305
Solihull MBC,http://statistics.data.gov.uk/id/local-authority/00CT,Children & Education Services,Balsall Common J&I,Building Maint Day To Day,B31001,25/11/2010,2833171,1229.45,Dodd Group (Midlands) Ltd,60305
Solihull MBC,http://statistics.data.gov.uk/id/local-authority/00CT,Central Services to the Public,Landlord Team,Planned Works (Landlord),B31303,18/11/2010,2826374,31197.81,Dodd Group (Midlands) Ltd,60305
Solihull MBC,http://statistics.data.gov.uk/id/local-authority/00CT,Children & Education Services,St Peter's,Internal Building Maintenance,H20908,24/11/2010,2832047,65.27,Dodd Group (Midlands) Ltd,60305
Solihull MBC,http://statistics.data.gov.uk/id/local-authority/00CT,Children & Education Services,PSD-Schools Package 1,Reactive Works (Landlord),B31301,29/11/2010,2836678,1314.2,Dodd Group (Midlands) Ltd,60305
Solihull MBC,http://statistics.data.gov.uk/id/local-authority/00CT,Central Services to the Public,PS Cap Miscellaneous,Contractors,Y21000,09/11/2010,2819959,-9543.22,Dodd Group (Midlands) Ltd,60305
Solihull MBC,http://statistics.data.gov.uk/id/local-authority/00CT,Children & Education Services,Inspectors,Training,A32000,24/11/2010,2832138,665,Dods Parliamentary Communications Limited,129680
Solihull MBC,http://statistics.data.gov.uk/id/local-authority/00CT,Children & Education Services,Berkswell J&I,Maintenance Of Grounds,B30000,11/11/2010,2823134,18703,Doherty & Lee Co Ltd,5214
Solihull MBC,http://statistics.data.gov.uk/id/local-authority/00CT,Children & Education Services,Residential CIC,Other Contracted Services,E29000,02/11/2010,2812028,17050,Donyland Lodge,282019
Solihull MBC,http://statistics.data.gov.uk/id/local-authority/00CT,Children & Education Services,Residential CIC,Other Contracted Services,E29000,02/11/2010,2811793,3850,Donyland Lodge,282019
Solihull MBC,http://statistics.data.gov.uk/id/local-authority/00CT,Children & Education Services,Residential CIC,Other Contracted Services,E29000,02/11/2010,2812057,16500,Donyland Lodge,282019
Solihull MBC,http://statistics.data.gov.uk/id/local-authority/00CT,Highways & Transport Services,SCP Improvements,Contractors,Y21000,16/11/2010,2825643,2428,Dorman Varitext,216250
Solihull MBC,http://statistics.data.gov.uk/id/local-authority/00CT,Highways & Transport Services,Road Safety Speeding Int,Contractors,Y21000,19/11/2010,2830253,775,Dorman Varitext,216250
Solihull MBC,http://statistics.data.gov.uk/id/local-authority/00CT,Highways & Transport Services,SCP Improvements,Contractors,Y21000,16/11/2010,2825644,2428,Dorman Varitext,216250
Solihull MBC,http://statistics.data.gov.uk/id/local-authority/00CT,Central Services to the Public,Corporate Governance,Training,A32000,11/11/2010,2823132,500,Dove Training Services Ltd,212538
Solihull MBC,http://statistics.data.gov.uk/id/local-authority/00CT,Planning & Development Services,Land At Meriden,Consultants,Y31000,09/11/2010,2820364,1932.5,Dtz Debenham Tie Leung Ltd,189306
Solihull MBC,http://statistics.data.gov.uk/id/local-authority/00CT,Planning & Development Services,Land At Meriden,Consultants,Y31000,09/11/2010,2820363,2650,Dtz Debenham Tie Leung Ltd,189306
Solihull MBC,http://statistics.data.gov.uk/id/local-authority/00CT,Adult Social Care,Appointee Spend- I-Proc,General Creditors,S00000,05/11/2010,2818181,1863.33,Dudley Court Residential Home,244309
Solihull MBC,http://statistics.data.gov.uk/id/local-authority/00CT,Children & Education Services,Section 17 Chelmsley Wood,Clients Expenses,D62000,08/11/2010,2819423,8058.5,Dudley Lodge,134531
Solihull MBC,http://statistics.data.gov.uk/id/local-authority/00CT,Children & Education Services,West Midlands Sen Hub,Accountable Body External Grants,D92092,12/11/2010,2823482,3000,Dudley MBC,5272
Solihull MBC,http://statistics.data.gov.uk/id/local-authority/00CT,Interest & Investment Income,Birmingham Airport,General Creditors,S00000,11/11/2010,2823081,17079,Dudley MBC,5272
Solihull MBC,http://statistics.data.gov.uk/id/local-authority/00CT,Children & Education Services,Dorridge Inf,Capitation,D11001,30/11/2010,2838375,1471.18,Durham University,285339
Solihull MBC,http://statistics.data.gov.uk/id/local-authority/00CT,Children & Education Services,Lyndon,Training,A32000,18/10/2010,PC51297,1895,Dyslexia Inst.Egham,Purchase Card Supplier
Solihull MBC,http://statistics.data.gov.uk/id/local-authority/00CT,Highways & Transport Services,Street Lighting Contract 1,Furniture & Equipment,D10000,10/11/2010,2821494,1076,E H Smith (Builders Merchants) Ltd,5294
Solihull MBC,http://statistics.data.gov.uk/id/local-authority/00CT,Highways & Transport Services,Street Lighting Contract 1,Furniture & Equipment,D10000,10/11/2010,2821494,424,E H Smith (Builders Merchants) Ltd,5294
Solihull MBC,http://statistics.data.gov.uk/id/local-authority/00CT,Children & Education Services,St Alphege Inf,Building Maint Day To Day,B31001,16/11/2010,2825166,853.98,E J Gilbert & Sons,5296
Solihull MBC,http://statistics.data.gov.uk/id/local-authority/00CT,Highways & Transport Services,Street Lighting Contract 1,Other Contracted Services,E29000,02/11/2010,2812059,10509,e.on Energy,108799
Solihull MBC,http://statistics.data.gov.uk/id/local-authority/00CT,Highways & Transport Services,Street Lighting Contract 1,Other Contracted Services,E29000,02/11/2010,2812001,441,e.on Energy,108799
Solihull MBC,http://statistics.data.gov.uk/id/local-authority/00CT,Highways & Transport Services,Street Lighting Contract 1,Other Contracted Services,E29000,02/11/2010,2812002,1640,e.on Energy,108799
Solihull MBC,http://statistics.data.gov.uk/id/local-authority/00CT,Highways & Transport Services,Street Lighting Contract 1,Other Contracted Services,E29000,05/11/2010,2818325,668.78,e.on Energy,108799
Solihull MBC,http://statistics.data.gov.uk/id/local-authority/00CT,Highways & Transport Services,Street Lighting Contract 1,Other Contracted Services,E29000,02/11/2010,2811764,427,e.on Energy,108799
Solihull MBC,http://statistics.data.gov.uk/id/local-authority/00CT,Highways & Transport Services,Street Lighting Contract 1,Other Contracted Services,E29000,29/11/2010,2836966,497,e.on Energy,108799
Solihull MBC,http://statistics.data.gov.uk/id/local-authority/00CT,Highways & Transport Services,Street Lighting Contract 1,Other Contracted Services,E29000,26/11/2010,2836034,973.08,e.on Energy,108799
Solihull MBC,http://statistics.data.gov.uk/id/local-authority/00CT,Highways & Transport Services,Street Lighting Contract 1,Other Contracted Services,E29000,18/11/2010,2829710,781.18,e.on Energy,108799
Solihull MBC,http://statistics.data.gov.uk/id/local-authority/00CT,Highways & Transport Services,Street Lighting Contract 1,Other Contracted Services,E29000,29/11/2010,2836934,441,e.on Energy,108799
Solihull MBC,http://statistics.data.gov.uk/id/local-authority/00CT,Highways & Transport Services,Street Lighting Contract 1,Strategic Highways Contract,E29200,02/11/2010,2812040,713,e.on UK Energy Services - Sustainable Energy,260157
Solihull MBC,http://statistics.data.gov.uk/id/local-authority/00CT,Highways & Transport Services,Street Lighting Contract 1,Strategic Highways Contract,E29200,02/11/2010,2812066,962,e.on UK Energy Services - Sustainable Energy,260157
Solihull MBC,http://statistics.data.gov.uk/id/local-authority/00CT,Highways & Transport Services,Street Lighting Contract 1,Strategic Highways Contract,E29200,02/11/2010,2812044,1499,e.on UK Energy Services - Sustainable Energy,260157
Solihull MBC,http://statistics.data.gov.uk/id/local-authority/00CT,Highways & Transport Services,Street Lighting Contract 1,Other Contracted Services,E29000,05/11/2010,2818558,1498,e.on UK Energy Services - Sustainable Energy,260157
Solihull MBC,http://statistics.data.gov.uk/id/local-authority/00CT,Highways & Transport Services,Street Lighting Contract 1,Other Contracted Services,E29000,10/11/2010,2821058,616,e.on UK Energy Services - Sustainable Energy,260157
Solihull MBC,http://statistics.data.gov.uk/id/local-authority/00CT,Highways & Transport Services,Street Lighting Contract 1,Strategic Highways Contract,E29200,02/11/2010,2812067,656,e.on UK Energy Services - Sustainable Energy,260157
Solihull MBC,http://statistics.data.gov.uk/id/local-authority/00CT,Highways & Transport Services,Street Lighting Contract 1,Other Contracted Services,E29000,17/11/2010,2825918,1134,e.on UK Energy Services - Sustainable Energy,260157
Solihull MBC,http://statistics.data.gov.uk/id/local-authority/00CT,Children & Education Services,Smith's Wood Community Primary,Furniture & Equipment,D10000,18/11/2010,2829284,516.95,E4E,123767
Solihull MBC,http://statistics.data.gov.uk/id/local-authority/00CT,Children & Education Services,Sharmans Cross Jnr,Visits & Pupil Activities,D52002,25/11/2010,2834423,198,Early Years,5313
Solihull MBC,http://statistics.data.gov.uk/id/local-authority/00CT,Children & Education Services,Sharmans Cross Jnr,Visits & Pupil Activities,D52002,25/11/2010,2834423,1357.9,Early Years,5313
Solihull MBC,http://statistics.data.gov.uk/id/local-authority/00CT,Children & Education Services,Peterbrook J&I,Capitation,D11001,18/11/2010,2829523,659.34,Early Years Resources,110323
Solihull MBC,http://statistics.data.gov.uk/id/local-authority/00CT,Children & Education Services,St Margaret's J&I,Training,A32000,03/11/2010,2812331,1050,East Anglia Education Ltd,231520
Solihull MBC,http://statistics.data.gov.uk/id/local-authority/00CT,Children & Education Services,St Margaret's J&I,Training,A32000,03/11/2010,2812331,289,East Anglia Education Ltd,231520
Solihull MBC,http://statistics.data.gov.uk/id/local-authority/00CT,Children & Education Services,Meriden J&I,Professional Fees,D51000,25/11/2010,2833188,1355,East Anglia Education Ltd,231520
Solihull MBC,http://statistics.data.gov.uk/id/local-authority/00CT,Children & Education Services,Bentley Heath J&I,Furniture & Equipment,D10000,04/11/2010,2816852,522,Eastern Shires Purchasing Organisation,6363
Solihull MBC,http://statistics.data.gov.uk/id/local-authority/00CT,Children & Education Services,Archbishop Grimshaw,Capitation,D11001,01/11/2010,2811063,688.33,Eastern Shires Purchasing Organisation,6363
Solihull MBC,http://statistics.data.gov.uk/id/local-authority/00CT,Children & Education Services,Marston Green Inf,Furniture & Equipment,D10000,01/11/2010,2810809,650,Eastern Shires Purchasing Organisation,6363
Solihull MBC,http://statistics.data.gov.uk/id/local-authority/00CT,Children & Education Services,Bentley Heath J&I,Furniture & Equipment,D10000,04/11/2010,2816854,884,Eastern Shires Purchasing Organisation,6363
Solihull MBC,http://statistics.data.gov.uk/id/local-authority/00CT,Children & Education Services,Lode Heath,Furniture & Equipment,D10000,10/11/2010,2821441,797,Eastern Shires Purchasing Organisation,6363
Solihull MBC,http://statistics.data.gov.uk/id/local-authority/00CT,Children & Education Services,Lyndon,Capitation,D11001,09/11/2010,2820392,732,Eastern Shires Purchasing Organisation,6363
Solihull MBC,http://statistics.data.gov.uk/id/local-authority/00CT,Children & Education Services,Ulverley J&I,Capitation,D11001,12/11/2010,2823441,522.1,Eastern Shires Purchasing Organisation,6363
Solihull MBC,http://statistics.data.gov.uk/id/local-authority/00CT,Children & Education Services,Oak Cottage J&I,Furniture & Equipment,D10000,04/11/2010,2816977,543.6,Eastern Shires Purchasing Organisation,6363
Solihull MBC,http://statistics.data.gov.uk/id/local-authority/00CT,Children & Education Services,Lyndon,Furniture & Equipment,D10000,09/11/2010,2820400,2128,Eastern Shires Purchasing Organisation,6363
Solihull MBC,http://statistics.data.gov.uk/id/local-authority/00CT,Children & Education Services,LDC Stores,Cleaning / Janitrl Materials,B40002,08/11/2010,2819790,544.45,Eastern Shires Purchasing Organisation,6363
Solihull MBC,http://statistics.data.gov.uk/id/local-authority/00CT,Children & Education Services,Heart Of England,Capitation,D11001,10/11/2010,2821470,820,Eastern Shires Purchasing Organisation,6363
Solihull MBC,http://statistics.data.gov.uk/id/local-authority/00CT,Children & Education Services,Music Service,Stationery,D41000,15/11/2010,2824741,428.24,Eastern Shires Purchasing Organisation,6363
Solihull MBC,http://statistics.data.gov.uk/id/local-authority/00CT,Children & Education Services,Valley Inf,Capitation,D11001,10/11/2010,2821343,465.12,Eastern Shires Purchasing Organisation,6363
Solihull MBC,http://statistics.data.gov.uk/id/local-authority/00CT,Children & Education Services,Marston Green Inf,Furniture & Equipment,D10000,01/11/2010,2810820,480.6,Eastern Shires Purchasing Organisation,6363
Solihull MBC,http://statistics.data.gov.uk/id/local-authority/00CT,Children & Education Services,Oak Cottage J&I,Furniture & Equipment,D10000,04/11/2010,2816981,650,Eastern Shires Purchasing Organisation,6363
Solihull MBC,http://statistics.data.gov.uk/id/local-authority/00CT,Children & Education Services,Marston Green Inf,Furniture & Equipment,D10000,01/11/2010,2810815,510.4,Eastern Shires Purchasing Organisation,6363
Solihull MBC,http://statistics.data.gov.uk/id/local-authority/00CT,Children & Education Services,St Peter's,Furniture & Equipment,D10000,25/11/2010,2833184,960,Eastern Shires Purchasing Organisation,6363
Solihull MBC,http://statistics.data.gov.uk/id/local-authority/00CT,Children & Education Services,Marston Green Inf,Furniture & Equipment,D10000,16/11/2010,2825175,560,Eastern Shires Purchasing Organisation,6363
Solihull MBC,http://statistics.data.gov.uk/id/local-authority/00CT,Children & Education Services,Windy Arbor J&I,Capitation,D11001,19/11/2010,2830139,426.5,Eastern Shires Purchasing Organisation,6363
Solihull MBC,http://statistics.data.gov.uk/id/local-authority/00CT,Children & Education Services,St Patrick's CE J&I,Capitation,D11001,30/11/2010,2838457,634.79,Eastern Shires Purchasing Organisation,6363
Solihull MBC,http://statistics.data.gov.uk/id/local-authority/00CT,Children & Education Services,Heart Of England,Cleaning / Janitrl Materials,B40002,19/11/2010,2830038,1120,Eastern Shires Purchasing Organisation,6363
